Body Name,Body,Date,Department,Beneficiary,Summary of Purpose (SeRCOP),Amount,Merchant Code,Transaction Number
Sandwell Metropolitan Borough Council,http://www.sandwell.gov.uk/info/200202/performance_and_spending/3233/government_procurement_cards,02-Oct-19,Childrens Services,OFFICE DEPOT UK,Childrens Services,1.91,Printing Stationery&Gen Office,1920Oct_PC00001
Sandwell Metropolitan Borough Council,http://www.sandwell.gov.uk/info/200202/performance_and_spending/3233/government_procurement_cards,02-Oct-19,Adult Social Care Health and Wellbeing - Total,OFFICE DEPOT UK,Total Adult Social Care,18.77,Printing Stationery&Gen Office,1920Oct_PC00002
Sandwell Metropolitan Borough Council,http://www.sandwell.gov.uk/info/200202/performance_and_spending/3233/government_procurement_cards,02-Oct-19,Housing & Communities,Amazon.co.uk MO42F64E4,Neighbourhoods,17.9,Printing Stationery&Gen Office,1920Oct_PC00003
Sandwell Metropolitan Borough Council,http://www.sandwell.gov.uk/info/200202/performance_and_spending/3233/government_procurement_cards,02-Oct-19,Housing & Communities,AMZNMktplace,Neighbourhoods,2.06,Printing Stationery&Gen Office,1920Oct_PC00004
Sandwell Metropolitan Borough Council,http://www.sandwell.gov.uk/info/200202/performance_and_spending/3233/government_procurement_cards,02-Oct-19,Housing & Communities,AMZNMktplace,Neighbourhoods,137.07,Equipment & Furniture,1920Oct_PC00005
Sandwell Metropolitan Borough Council,http://www.sandwell.gov.uk/info/200202/performance_and_spending/3233/government_procurement_cards,02-Oct-19,Housing & Communities,Amazon.co.uk MO14L14I4,Neighbourhoods,32.06,ICT,1920Oct_PC00006
Sandwell Metropolitan Borough Council,http://www.sandwell.gov.uk/info/200202/performance_and_spending/3233/government_procurement_cards,02-Oct-19,Childrens Services,AMZNMKTPLACE AMAZON.CO,Childrens Services,44.12,Equipment & Furniture,1920Oct_PC00007
Sandwell Metropolitan Borough Council,http://www.sandwell.gov.uk/info/200202/performance_and_spending/3233/government_procurement_cards,02-Oct-19,Housing & Communities,AMZ NETTA Direct,Neighbourhoods,-59.99,Equipment & Furniture,1920Oct_PC00008
Sandwell Metropolitan Borough Council,http://www.sandwell.gov.uk/info/200202/performance_and_spending/3233/government_procurement_cards,02-Oct-19,Housing & Communities,AMZ NETTA Direct,Neighbourhoods,-11.17,"Postages, Carriage & Courier Services",1920Oct_PC00009
Sandwell Metropolitan Borough Council,http://www.sandwell.gov.uk/info/200202/performance_and_spending/3233/government_procurement_cards,02-Oct-19,Housing & Communities,SAINSBURYS SACAT0558,Neighbourhoods,0.8,Catering Provisions,1920Oct_PC00010
Sandwell Metropolitan Borough Council,http://www.sandwell.gov.uk/info/200202/performance_and_spending/3233/government_procurement_cards,02-Oct-19,Childrens Services,Trainline,Childrens Services,75.3,Public Transport,1920Oct_PC00011
Sandwell Metropolitan Borough Council,http://www.sandwell.gov.uk/info/200202/performance_and_spending/3233/government_procurement_cards,02-Oct-19,Housing & Communities,Virgin Trains,Neighbourhoods,126,Public Transport,1920Oct_PC00012
Sandwell Metropolitan Borough Council,http://www.sandwell.gov.uk/info/200202/performance_and_spending/3233/government_procurement_cards,02-Oct-19,Adult Social Care Health and Wellbeing - Total,Trainline.com,Total Adult Social Care,20.1,Public Transport,1920Oct_PC00013
Sandwell Metropolitan Borough Council,http://www.sandwell.gov.uk/info/200202/performance_and_spending/3233/government_procurement_cards,02-Oct-19,Individual School Budgets With Inclusion,AMZNMktplace,Individual School Budgets With Inclusion,107.47,Learning Resources,1920Oct_PC00014
Sandwell Metropolitan Borough Council,http://www.sandwell.gov.uk/info/200202/performance_and_spending/3233/government_procurement_cards,02-Oct-19,Adult Social Care Health and Wellbeing - Total,Trainline.com,Total Adult Social Care,63.8,Public Transport,1920Oct_PC00015
Sandwell Metropolitan Borough Council,http://www.sandwell.gov.uk/info/200202/performance_and_spending/3233/government_procurement_cards,02-Oct-19,Adult Social Care Health and Wellbeing - Total,Trainline.com,Total Adult Social Care,11.55,Public Transport,1920Oct_PC00016
Sandwell Metropolitan Borough Council,http://www.sandwell.gov.uk/info/200202/performance_and_spending/3233/government_procurement_cards,02-Oct-19,Total Housing Revenue Account,POST OFFICE COUNTER,Total Housing Revenue Account,49.11,"Postages, Carriage & Courier Services",1920Oct_PC00017
Sandwell Metropolitan Borough Council,http://www.sandwell.gov.uk/info/200202/performance_and_spending/3233/government_procurement_cards,02-Oct-19,Resources (Inc SIU),Virgin Trains,Assistant Chief Executive (Excl SIU),62.7,Public Transport,1920Oct_PC00018
Sandwell Metropolitan Borough Council,http://www.sandwell.gov.uk/info/200202/performance_and_spending/3233/government_procurement_cards,02-Oct-19,Resources (Inc SIU),Virgin Trains,Assistant Chief Executive (Excl SIU),62.7,Public Transport,1920Oct_PC00019
Sandwell Metropolitan Borough Council,http://www.sandwell.gov.uk/info/200202/performance_and_spending/3233/government_procurement_cards,02-Oct-19,Resources (Inc SIU),Virgin Trains,Assistant Chief Executive (Excl SIU),62.7,Public Transport,1920Oct_PC00020
Sandwell Metropolitan Borough Council,http://www.sandwell.gov.uk/info/200202/performance_and_spending/3233/government_procurement_cards,03-Oct-19,Resources (Inc SIU),AMZNMKTPLACE AMAZON.CO,Assistant Chief Executive (Excl SIU),10.82,Printing Stationery&Gen Office,1920Oct_PC00021
Sandwell Metropolitan Borough Council,http://www.sandwell.gov.uk/info/200202/performance_and_spending/3233/government_procurement_cards,03-Oct-19,Housing & Communities,OFFICE DEPOT UK,Neighbourhoods,16.2,Equipment & Furniture,1920Oct_PC00022
Sandwell Metropolitan Borough Council,http://www.sandwell.gov.uk/info/200202/performance_and_spending/3233/government_procurement_cards,03-Oct-19,Housing & Communities,OFFICE DEPOT UK,Neighbourhoods,14.49,Equipment & Furniture,1920Oct_PC00023
Sandwell Metropolitan Borough Council,http://www.sandwell.gov.uk/info/200202/performance_and_spending/3233/government_procurement_cards,03-Oct-19,Individual School Budgets With Inclusion,WWW.LAMAZETOYS.CO.UK,Individual School Budgets With Inclusion,20.99,Materials & Consumables,1920Oct_PC00024
Sandwell Metropolitan Borough Council,http://www.sandwell.gov.uk/info/200202/performance_and_spending/3233/government_procurement_cards,03-Oct-19,Individual School Budgets With Inclusion,WWW.THEGLOWCOMPANY.CO.,Individual School Budgets With Inclusion,24.99,Materials & Consumables,1920Oct_PC00025
Sandwell Metropolitan Borough Council,http://www.sandwell.gov.uk/info/200202/performance_and_spending/3233/government_procurement_cards,03-Oct-19,Adult Social Care Health and Wellbeing - Total,BRAUNABILITY UK LTD,Total Adult Social Care,97.5,Equipment & Furniture,1920Oct_PC00026
Sandwell Metropolitan Borough Council,http://www.sandwell.gov.uk/info/200202/performance_and_spending/3233/government_procurement_cards,03-Oct-19,Adult Social Care Health and Wellbeing - Total,PAYPAL  PACKNGSTORE,Total Adult Social Care,32.01,Printing Stationery&Gen Office,1920Oct_PC00027
Sandwell Metropolitan Borough Council,http://www.sandwell.gov.uk/info/200202/performance_and_spending/3233/government_procurement_cards,03-Oct-19,Housing & Communities,AQUAID WATERCOOLERS,Neighbourhoods,132.5,Catering Provisions,1920Oct_PC00028
Sandwell Metropolitan Borough Council,http://www.sandwell.gov.uk/info/200202/performance_and_spending/3233/government_procurement_cards,03-Oct-19,Housing & Communities,SAINSBURYS SACAT0558,Neighbourhoods,18.5,Printing Stationery&Gen Office,1920Oct_PC00029
Sandwell Metropolitan Borough Council,http://www.sandwell.gov.uk/info/200202/performance_and_spending/3233/government_procurement_cards,03-Oct-19,Resources (Inc SIU),OFFICE DEPOT UK,Assistant Chief Executive (Excl SIU),5.91,Printing Stationery&Gen Office,1920Oct_PC00030
Sandwell Metropolitan Borough Council,http://www.sandwell.gov.uk/info/200202/performance_and_spending/3233/government_procurement_cards,03-Oct-19,Resources (Inc SIU),Virgin Trains,Assistant Chief Executive (Excl SIU),10.1,Public Transport,1920Oct_PC00031
Sandwell Metropolitan Borough Council,http://www.sandwell.gov.uk/info/200202/performance_and_spending/3233/government_procurement_cards,03-Oct-19,Childrens Services,ASDA SUPERSTORE,Childrens Services,100,Protective Clothing&Uniforms,1920Oct_PC00032
Sandwell Metropolitan Borough Council,http://www.sandwell.gov.uk/info/200202/performance_and_spending/3233/government_procurement_cards,03-Oct-19,Childrens Services,ASDA SUPERSTORE,Childrens Services,100,Protective Clothing&Uniforms,1920Oct_PC00033
Sandwell Metropolitan Borough Council,http://www.sandwell.gov.uk/info/200202/performance_and_spending/3233/government_procurement_cards,03-Oct-19,Resources (Inc SIU),PAYPAL  SWEETADDICT,Assistant Chief Executive (Excl SIU),10.23,Catering Provisions,1920Oct_PC00034
Sandwell Metropolitan Borough Council,http://www.sandwell.gov.uk/info/200202/performance_and_spending/3233/government_procurement_cards,03-Oct-19,Regeneration & Growth,AMZNMKTPLACE AMAZON.CO,Regeneration And The Economy,149.7,Protective Clothing&Uniforms,1920Oct_PC00035
Sandwell Metropolitan Borough Council,http://www.sandwell.gov.uk/info/200202/performance_and_spending/3233/government_procurement_cards,03-Oct-19,Resources (Inc SIU),Amazon.co.uk MO7EL4L24,Assistant Chief Executive (Excl SIU),10.64,Printing Stationery&Gen Office,1920Oct_PC00036
Sandwell Metropolitan Borough Council,http://www.sandwell.gov.uk/info/200202/performance_and_spending/3233/government_procurement_cards,04-Oct-19,Resources (Inc SIU),AMZNMKTPLACE AMAZON.CO,Assistant Chief Executive (Excl SIU),8.52,ICT,1920Oct_PC00037
Sandwell Metropolitan Borough Council,http://www.sandwell.gov.uk/info/200202/performance_and_spending/3233/government_procurement_cards,04-Oct-19,Housing & Communities,AMZNMKTPLACE AMAZON.CO,Neighbourhoods,62.04,Equipment & Furniture,1920Oct_PC00038
Sandwell Metropolitan Borough Council,http://www.sandwell.gov.uk/info/200202/performance_and_spending/3233/government_procurement_cards,04-Oct-19,Regeneration & Growth,BLACK COUNTRY T SHIRT,Regeneration And The Economy,268.33,Protective Clothing&Uniforms,1920Oct_PC00039
Sandwell Metropolitan Borough Council,http://www.sandwell.gov.uk/info/200202/performance_and_spending/3233/government_procurement_cards,04-Oct-19,Total Housing Revenue Account,STAFFORDSHIRE BLDS SUP,Total Housing Revenue Account,542.67,Materials & Consumables,1920Oct_PC00040
Sandwell Metropolitan Borough Council,http://www.sandwell.gov.uk/info/200202/performance_and_spending/3233/government_procurement_cards,04-Oct-19,Housing & Communities,AMZNMKTPLACE AMAZON.CO,Neighbourhoods,7.49,R& M - Building Maint&Imp.,1920Oct_PC00041
Sandwell Metropolitan Borough Council,http://www.sandwell.gov.uk/info/200202/performance_and_spending/3233/government_procurement_cards,04-Oct-19,Total Housing Revenue Account,EB  DIGITAL SELF SERVI,Total Housing Revenue Account,360,Conference Expenses,1920Oct_PC00042
Sandwell Metropolitan Borough Council,http://www.sandwell.gov.uk/info/200202/performance_and_spending/3233/government_procurement_cards,04-Oct-19,Resources (Inc SIU),AMZNMktplace,Assistant Chief Executive (Excl SIU),53.32,Printing Stationery&Gen Office,1920Oct_PC00043
Sandwell Metropolitan Borough Council,http://www.sandwell.gov.uk/info/200202/performance_and_spending/3233/government_procurement_cards,04-Oct-19,Resources (Inc SIU),Amazon.co.uk MO24H1L34,Assistant Chief Executive (Excl SIU),34.31,ICT,1920Oct_PC00044
Sandwell Metropolitan Borough Council,http://www.sandwell.gov.uk/info/200202/performance_and_spending/3233/government_procurement_cards,04-Oct-19,Dead Capital 1,AMZNMktplace,Total Adult Social Care,9.99,Materials & Consumables,1920Oct_PC00045
Sandwell Metropolitan Borough Council,http://www.sandwell.gov.uk/info/200202/performance_and_spending/3233/government_procurement_cards,04-Oct-19,Adult Social Care Health and Wellbeing - Total,MAG EVENTS,Public Health,558,Conference Expenses,1920Oct_PC00046
Sandwell Metropolitan Borough Council,http://www.sandwell.gov.uk/info/200202/performance_and_spending/3233/government_procurement_cards,04-Oct-19,Individual School Budgets With Inclusion,Amazon.co.uk MO83T8ZS4,Individual School Budgets With Inclusion,46.24,Printing Stationery&Gen Office,1920Oct_PC00047
Sandwell Metropolitan Borough Council,http://www.sandwell.gov.uk/info/200202/performance_and_spending/3233/government_procurement_cards,04-Oct-19,Resources (Inc SIU),OFFICE DEPOT UK,Assistant Chief Executive (Excl SIU),6.4,Printing Stationery&Gen Office,1920Oct_PC00048
Sandwell Metropolitan Borough Council,http://www.sandwell.gov.uk/info/200202/performance_and_spending/3233/government_procurement_cards,04-Oct-19,Total Housing Revenue Account,AMZNMKTPLACE AMAZON.CO,Total Housing Revenue Account,-15,Printing Stationery&Gen Office,1920Oct_PC00049
Sandwell Metropolitan Borough Council,http://www.sandwell.gov.uk/info/200202/performance_and_spending/3233/government_procurement_cards,04-Oct-19,Childrens Services,GEN REGISTER OFFICE,Childrens Services,49.25,Fostering-Gov't Dept's,1920Oct_PC00050
Sandwell Metropolitan Borough Council,http://www.sandwell.gov.uk/info/200202/performance_and_spending/3233/government_procurement_cards,04-Oct-19,Childrens Services,Trainline,Childrens Services,12.45,Public Transport,1920Oct_PC00051
Sandwell Metropolitan Borough Council,http://www.sandwell.gov.uk/info/200202/performance_and_spending/3233/government_procurement_cards,04-Oct-19,Childrens Services,Trainline,Childrens Services,192.2,Public Transport,1920Oct_PC00052
Sandwell Metropolitan Borough Council,http://www.sandwell.gov.uk/info/200202/performance_and_spending/3233/government_procurement_cards,04-Oct-19,Childrens Services,Trainline,Childrens Services,5.25,Public Transport,1920Oct_PC00053
Sandwell Metropolitan Borough Council,http://www.sandwell.gov.uk/info/200202/performance_and_spending/3233/government_procurement_cards,04-Oct-19,Childrens Services,Trainline,Childrens Services,49.1,Public Transport,1920Oct_PC00054
Sandwell Metropolitan Borough Council,http://www.sandwell.gov.uk/info/200202/performance_and_spending/3233/government_procurement_cards,04-Oct-19,Childrens Services,Trainline,Childrens Services,386.5,Public Transport,1920Oct_PC00055
Sandwell Metropolitan Borough Council,http://www.sandwell.gov.uk/info/200202/performance_and_spending/3233/government_procurement_cards,07-Oct-19,Childrens Services,PREMIER INN,Childrens Services,50.83,Residential-Other Establishmen,1920Oct_PC00056
Sandwell Metropolitan Borough Council,http://www.sandwell.gov.uk/info/200202/performance_and_spending/3233/government_procurement_cards,07-Oct-19,Total Housing Revenue Account,AMZNMKTPLACE AMAZON.CO,Total Housing Revenue Account,44.95,Printing Stationery&Gen Office,1920Oct_PC00057
Sandwell Metropolitan Borough Council,http://www.sandwell.gov.uk/info/200202/performance_and_spending/3233/government_procurement_cards,07-Oct-19,Housing & Communities,LBS WORLDWIDE LTD,Neighbourhoods,288.78,R& M - Building Maint&Imp.,1920Oct_PC00058
Sandwell Metropolitan Borough Council,http://www.sandwell.gov.uk/info/200202/performance_and_spending/3233/government_procurement_cards,07-Oct-19,Childrens Services,TTS TRAINING SERVICES,Childrens Services,165,Ind. Emp Exp-Staff Dev&Training,1920Oct_PC00059
Sandwell Metropolitan Borough Council,http://www.sandwell.gov.uk/info/200202/performance_and_spending/3233/government_procurement_cards,07-Oct-19,Housing & Communities,WWW.STAC.CO.UK,Neighbourhoods,656.88,Equipment & Furniture,1920Oct_PC00060
Sandwell Metropolitan Borough Council,http://www.sandwell.gov.uk/info/200202/performance_and_spending/3233/government_procurement_cards,07-Oct-19,Childrens Services,CURRYS ONLINE,Childrens Services,274.17,Equipment & Furniture,1920Oct_PC00061
Sandwell Metropolitan Borough Council,http://www.sandwell.gov.uk/info/200202/performance_and_spending/3233/government_procurement_cards,07-Oct-19,Dead Capital 1,Amazon.co.uk MO4JI7ZS4,Total Adult Social Care,24.16,R & M - Security,1920Oct_PC00062
Sandwell Metropolitan Borough Council,http://www.sandwell.gov.uk/info/200202/performance_and_spending/3233/government_procurement_cards,07-Oct-19,Housing & Communities,EBUYER (UK) LTD,Neighbourhoods,56.68,ICT,1920Oct_PC00063
Sandwell Metropolitan Borough Council,http://www.sandwell.gov.uk/info/200202/performance_and_spending/3233/government_procurement_cards,07-Oct-19,Regeneration & Growth,MORECOMPUTERS.COM,Regeneration And The Economy,140.31,Printing Stationery&Gen Office,1920Oct_PC00064
Sandwell Metropolitan Borough Council,http://www.sandwell.gov.uk/info/200202/performance_and_spending/3233/government_procurement_cards,07-Oct-19,Regeneration & Growth,Amazon.co.uk MO93L9NQ4,Regeneration And The Economy,30,Materials & Consumables,1920Oct_PC00065
Sandwell Metropolitan Borough Council,http://www.sandwell.gov.uk/info/200202/performance_and_spending/3233/government_procurement_cards,07-Oct-19,Total Housing Revenue Account,AMZNMktplace,Total Housing Revenue Account,67.43,Printing Stationery&Gen Office,1920Oct_PC00066
Sandwell Metropolitan Borough Council,http://www.sandwell.gov.uk/info/200202/performance_and_spending/3233/government_procurement_cards,07-Oct-19,Total Housing Revenue Account,AMZNMktplace,Total Housing Revenue Account,131.38,ICT,1920Oct_PC00067
Sandwell Metropolitan Borough Council,http://www.sandwell.gov.uk/info/200202/performance_and_spending/3233/government_procurement_cards,07-Oct-19,Individual School Budgets With Inclusion,AMZNMktplace,Individual School Budgets With Inclusion,59.09,Materials & Consumables,1920Oct_PC00068
Sandwell Metropolitan Borough Council,http://www.sandwell.gov.uk/info/200202/performance_and_spending/3233/government_procurement_cards,07-Oct-19,Childrens Services,AMZNMktplace,Childrens Services,6.66,Telephones,1920Oct_PC00069
Sandwell Metropolitan Borough Council,http://www.sandwell.gov.uk/info/200202/performance_and_spending/3233/government_procurement_cards,07-Oct-19,Resources (Inc SIU),Amazon.co.uk MO5332NZ4,Assistant Chief Executive (Excl SIU),18.86,Printing Stationery&Gen Office,1920Oct_PC00070
Sandwell Metropolitan Borough Council,http://www.sandwell.gov.uk/info/200202/performance_and_spending/3233/government_procurement_cards,07-Oct-19,Resources (Inc SIU),AMZNMktplace,Assistant Chief Executive (Excl SIU),91.58,ICT,1920Oct_PC00071
Sandwell Metropolitan Borough Council,http://www.sandwell.gov.uk/info/200202/performance_and_spending/3233/government_procurement_cards,07-Oct-19,Childrens Services,GEN REGISTER OFFICE,Childrens Services,-38.75,Fostering-Gov't Dept's,1920Oct_PC00072
Sandwell Metropolitan Borough Council,http://www.sandwell.gov.uk/info/200202/performance_and_spending/3233/government_procurement_cards,07-Oct-19,Dead Capital 1,OFFICE DEPOT UK,Total Adult Social Care,31.48,Printing Stationery&Gen Office,1920Oct_PC00073
Sandwell Metropolitan Borough Council,http://www.sandwell.gov.uk/info/200202/performance_and_spending/3233/government_procurement_cards,07-Oct-19,Individual School Budgets With Inclusion,OFFICE DEPOT UK,Individual School Budgets With Inclusion,41.78,Printing Stationery&Gen Office,1920Oct_PC00074
Sandwell Metropolitan Borough Council,http://www.sandwell.gov.uk/info/200202/performance_and_spending/3233/government_procurement_cards,07-Oct-19,Resources (Inc SIU),AMZNMktplace,Assistant Chief Executive (Excl SIU),84.05,Printing Stationery&Gen Office,1920Oct_PC00075
Sandwell Metropolitan Borough Council,http://www.sandwell.gov.uk/info/200202/performance_and_spending/3233/government_procurement_cards,07-Oct-19,Resources (Inc SIU),BROMSGROVE STN SST,Assistant Chief Executive (Excl SIU),11.5,Public Transport,1920Oct_PC00076
Sandwell Metropolitan Borough Council,http://www.sandwell.gov.uk/info/200202/performance_and_spending/3233/government_procurement_cards,07-Oct-19,Resources (Inc SIU),ACCA,Assistant Chief Executive (Excl SIU),155,Ind. Emp Exp-Staff Dev&Training,1920Oct_PC00077
Sandwell Metropolitan Borough Council,http://www.sandwell.gov.uk/info/200202/performance_and_spending/3233/government_procurement_cards,07-Oct-19,Childrens Services,Trainline,Childrens Services,49.75,Public Transport,1920Oct_PC00078
Sandwell Metropolitan Borough Council,http://www.sandwell.gov.uk/info/200202/performance_and_spending/3233/government_procurement_cards,07-Oct-19,Childrens Services,DUDLEY MBC  INTERN,Childrens Services,16.5,Printing Stationery&Gen Office,1920Oct_PC00079
Sandwell Metropolitan Borough Council,http://www.sandwell.gov.uk/info/200202/performance_and_spending/3233/government_procurement_cards,07-Oct-19,Resources (Inc SIU),WEST COAST TRAINS,Assistant Chief Executive (Excl SIU),4.8,Public Transport,1920Oct_PC00080
Sandwell Metropolitan Borough Council,http://www.sandwell.gov.uk/info/200202/performance_and_spending/3233/government_procurement_cards,07-Oct-19,Resources (Inc SIU),WEST COAST TRAINS,Assistant Chief Executive (Excl SIU),6.3,Public Transport,1920Oct_PC00081
Sandwell Metropolitan Borough Council,http://www.sandwell.gov.uk/info/200202/performance_and_spending/3233/government_procurement_cards,07-Oct-19,Childrens Services,Amazon.co.uk MO3489LK4,Childrens Services,24.47,Printing Stationery&Gen Office,1920Oct_PC00082
Sandwell Metropolitan Borough Council,http://www.sandwell.gov.uk/info/200202/performance_and_spending/3233/government_procurement_cards,07-Oct-19,Resources (Inc SIU),AMZNMktplace,Assistant Chief Executive (Excl SIU),355.72,ICT,1920Oct_PC00083
Sandwell Metropolitan Borough Council,http://www.sandwell.gov.uk/info/200202/performance_and_spending/3233/government_procurement_cards,07-Oct-19,Total Housing Revenue Account,VIKING UK,Total Housing Revenue Account,11.88,ICT,1920Oct_PC00084
Sandwell Metropolitan Borough Council,http://www.sandwell.gov.uk/info/200202/performance_and_spending/3233/government_procurement_cards,07-Oct-19,Dead Capital 1,Trainline,Total Adult Social Care,195.56,Public Transport,1920Oct_PC00085
Sandwell Metropolitan Borough Council,http://www.sandwell.gov.uk/info/200202/performance_and_spending/3233/government_procurement_cards,07-Oct-19,Regeneration & Growth,TESCO STORES 5362,Regeneration And The Economy,6.16,Printing Stationery&Gen Office,1920Oct_PC00086
Sandwell Metropolitan Borough Council,http://www.sandwell.gov.uk/info/200202/performance_and_spending/3233/government_procurement_cards,07-Oct-19,Total Housing Revenue Account,AMZNMktplace,Total Housing Revenue Account,12.08,Materials & Consumables,1920Oct_PC00087
Sandwell Metropolitan Borough Council,http://www.sandwell.gov.uk/info/200202/performance_and_spending/3233/government_procurement_cards,07-Oct-19,Housing & Communities,TESCO STORES 6197,Neighbourhoods,15,Civic Events,1920Oct_PC00088
Sandwell Metropolitan Borough Council,http://www.sandwell.gov.uk/info/200202/performance_and_spending/3233/government_procurement_cards,07-Oct-19,Regeneration & Growth,AMZNMktplace,Regeneration And The Economy,38.97,Repairs & Maintenance,1920Oct_PC00089
Sandwell Metropolitan Borough Council,http://www.sandwell.gov.uk/info/200202/performance_and_spending/3233/government_procurement_cards,07-Oct-19,Individual School Budgets With Inclusion,Amazon.co.uk MO3N45ZL4,Individual School Budgets With Inclusion,76.95,Ind. Emp Exp-Staff Dev&Training,1920Oct_PC00090
Sandwell Metropolitan Borough Council,http://www.sandwell.gov.uk/info/200202/performance_and_spending/3233/government_procurement_cards,08-Oct-19,Total Housing Revenue Account,WILKO.COM,Total Housing Revenue Account,93.33,Materials & Consumables,1920Oct_PC00091
Sandwell Metropolitan Borough Council,http://www.sandwell.gov.uk/info/200202/performance_and_spending/3233/government_procurement_cards,08-Oct-19,Dead Capital 1,PAYPAL  KARABAR LTD,Total Adult Social Care,212.42,Equipment & Furniture,1920Oct_PC00092
Sandwell Metropolitan Borough Council,http://www.sandwell.gov.uk/info/200202/performance_and_spending/3233/government_procurement_cards,08-Oct-19,Resources (Inc SIU),AMZNMKTPLACE AMAZON.CO,Assistant Chief Executive (Excl SIU),7.4,Printing Stationery&Gen Office,1920Oct_PC00093
Sandwell Metropolitan Borough Council,http://www.sandwell.gov.uk/info/200202/performance_and_spending/3233/government_procurement_cards,08-Oct-19,Housing & Communities,THE BCI FORUM R/T,Neighbourhoods,30,Materials & Consumables,1920Oct_PC00094
Sandwell Metropolitan Borough Council,http://www.sandwell.gov.uk/info/200202/performance_and_spending/3233/government_procurement_cards,08-Oct-19,Leaving Care Team 4,WWW.IKEA.COM,Leaving Care Team 4,44.12,Equipment & Furniture,1920Oct_PC00095
Sandwell Metropolitan Borough Council,http://www.sandwell.gov.uk/info/200202/performance_and_spending/3233/government_procurement_cards,08-Oct-19,Leaving Care Team 4,THE RANGE,Leaving Care Team 4,54.04,Fixtures & Fittings,1920Oct_PC00096
Sandwell Metropolitan Borough Council,http://www.sandwell.gov.uk/info/200202/performance_and_spending/3233/government_procurement_cards,08-Oct-19,Leaving Care Team 4,ASDA SUPERSTORE,Leaving Care Team 4,222.7,Equipment & Furniture,1920Oct_PC00097
Sandwell Metropolitan Borough Council,http://www.sandwell.gov.uk/info/200202/performance_and_spending/3233/government_procurement_cards,08-Oct-19,Leaving Care Team 4,POUNDSTRETCHER 003,Leaving Care Team 4,13.32,Fixtures & Fittings,1920Oct_PC00098
Sandwell Metropolitan Borough Council,http://www.sandwell.gov.uk/info/200202/performance_and_spending/3233/government_procurement_cards,08-Oct-19,Childrens Services,ARGOS RETAIL GROUP,Childrens Services,54.17,Equipment & Furniture,1920Oct_PC00099
Sandwell Metropolitan Borough Council,http://www.sandwell.gov.uk/info/200202/performance_and_spending/3233/government_procurement_cards,08-Oct-19,Housing & Communities,ASDA SUPERSTORE,Neighbourhoods,20.83,Civic Events,1920Oct_PC00100
Sandwell Metropolitan Borough Council,http://www.sandwell.gov.uk/info/200202/performance_and_spending/3233/government_procurement_cards,08-Oct-19,Housing & Communities,AMZNMktplace,Neighbourhoods,21.62,Fixtures & Fittings,1920Oct_PC00101
Sandwell Metropolitan Borough Council,http://www.sandwell.gov.uk/info/200202/performance_and_spending/3233/government_procurement_cards,08-Oct-19,Total Housing Revenue Account,,Total Housing Revenue Account,44.37,Protective Clothing&Uniforms,1920Oct_PC00102
Sandwell Metropolitan Borough Council,http://www.sandwell.gov.uk/info/200202/performance_and_spending/3233/government_procurement_cards,08-Oct-19,Total Housing Revenue Account,OFFICE DEPOT UK,Total Housing Revenue Account,44.34,Printing Stationery&Gen Office,1920Oct_PC00103
Sandwell Metropolitan Borough Council,http://www.sandwell.gov.uk/info/200202/performance_and_spending/3233/government_procurement_cards,08-Oct-19,Total Housing Revenue Account,OFFICE DEPOT UK,Total Housing Revenue Account,1.99,Printing Stationery&Gen Office,1920Oct_PC00104
Sandwell Metropolitan Borough Council,http://www.sandwell.gov.uk/info/200202/performance_and_spending/3233/government_procurement_cards,08-Oct-19,Total Housing Revenue Account,OFFICE DEPOT UK,Total Housing Revenue Account,25.89,Printing Stationery&Gen Office,1920Oct_PC00105
Sandwell Metropolitan Borough Council,http://www.sandwell.gov.uk/info/200202/performance_and_spending/3233/government_procurement_cards,08-Oct-19,Housing & Communities,CRADLEY HEATH T/O,Neighbourhoods,7.2,Public Transport,1920Oct_PC00106
Sandwell Metropolitan Borough Council,http://www.sandwell.gov.uk/info/200202/performance_and_spending/3233/government_procurement_cards,08-Oct-19,Individual School Budgets With Inclusion,AMZNMKTPLACE AMAZON.CO,Individual School Budgets With Inclusion,5.8,ICT,1920Oct_PC00107
Sandwell Metropolitan Borough Council,http://www.sandwell.gov.uk/info/200202/performance_and_spending/3233/government_procurement_cards,08-Oct-19,Resources (Inc SIU),Trainline,Assistant Chief Executive (Excl SIU),102.16,Public Transport,1920Oct_PC00108
Sandwell Metropolitan Borough Council,http://www.sandwell.gov.uk/info/200202/performance_and_spending/3233/government_procurement_cards,08-Oct-19,Childrens Services,SAINSBURYS SACAT0558,Childrens Services,4.85,Catering Provisions,1920Oct_PC00109
Sandwell Metropolitan Borough Council,http://www.sandwell.gov.uk/info/200202/performance_and_spending/3233/government_procurement_cards,08-Oct-19,Childrens Services,Trainline,Childrens Services,127.1,Public Transport,1920Oct_PC00110
Sandwell Metropolitan Borough Council,http://www.sandwell.gov.uk/info/200202/performance_and_spending/3233/government_procurement_cards,08-Oct-19,Resources (Inc SIU),ALDI 45 772,Assistant Chief Executive (Excl SIU),4.72,Catering Provisions,1920Oct_PC00111
Sandwell Metropolitan Borough Council,http://www.sandwell.gov.uk/info/200202/performance_and_spending/3233/government_procurement_cards,08-Oct-19,Housing & Communities,AMZNMktplace,Neighbourhoods,15.99,R& M - Building Maint&Imp.,1920Oct_PC00112
Sandwell Metropolitan Borough Council,http://www.sandwell.gov.uk/info/200202/performance_and_spending/3233/government_procurement_cards,09-Oct-19,Housing & Communities,AMZNMKTPLACE AMAZON.CO,Neighbourhoods,16.6,R& M - Building Maint&Imp.,1920Oct_PC00113
Sandwell Metropolitan Borough Council,http://www.sandwell.gov.uk/info/200202/performance_and_spending/3233/government_procurement_cards,09-Oct-19,Dead Capital 1,WWW.LABELSANDTAGS.CO.U,Total Adult Social Care,17.7,Printing Stationery&Gen Office,1920Oct_PC00114
Sandwell Metropolitan Borough Council,http://www.sandwell.gov.uk/info/200202/performance_and_spending/3233/government_procurement_cards,09-Oct-19,Total Housing Revenue Account,STAFFORDSHIRE BLDS SUP,Total Housing Revenue Account,105.2,Materials & Consumables,1920Oct_PC00115
Sandwell Metropolitan Borough Council,http://www.sandwell.gov.uk/info/200202/performance_and_spending/3233/government_procurement_cards,09-Oct-19,Dead Capital 1,AMZNMKTPLACE AMAZON.CO,Total Adult Social Care,9.99,Materials & Consumables,1920Oct_PC00116
Sandwell Metropolitan Borough Council,http://www.sandwell.gov.uk/info/200202/performance_and_spending/3233/government_procurement_cards,09-Oct-19,Resources (Inc SIU),LIDL GB WEST BROMWICH,Assistant Chief Executive (Excl SIU),15.02,Catering Provisions,1920Oct_PC00117
Sandwell Metropolitan Borough Council,http://www.sandwell.gov.uk/info/200202/performance_and_spending/3233/government_procurement_cards,09-Oct-19,Resources (Inc SIU),Amazon Prime MO7EQ6TA4,Assistant Chief Executive (Excl SIU),6.66,Subscriptions,1920Oct_PC00118
Sandwell Metropolitan Borough Council,http://www.sandwell.gov.uk/info/200202/performance_and_spending/3233/government_procurement_cards,09-Oct-19,Regeneration & Growth,AMZNMKTPLACE AMAZON.CO,Regeneration And The Economy,139.05,Printing Stationery&Gen Office,1920Oct_PC00119
Sandwell Metropolitan Borough Council,http://www.sandwell.gov.uk/info/200202/performance_and_spending/3233/government_procurement_cards,09-Oct-19,Regeneration & Growth,AMZNMktplace,Regeneration And The Economy,64.27,Printing Stationery&Gen Office,1920Oct_PC00120
Sandwell Metropolitan Borough Council,http://www.sandwell.gov.uk/info/200202/performance_and_spending/3233/government_procurement_cards,09-Oct-19,Resources (Inc SIU),Amazon.co.uk MO0MO1TF4,Assistant Chief Executive (Excl SIU),75.2,Printing Stationery&Gen Office,1920Oct_PC00121
Sandwell Metropolitan Borough Council,http://www.sandwell.gov.uk/info/200202/performance_and_spending/3233/government_procurement_cards,09-Oct-19,Dead Capital 1,AMZNMktplace,Total Adult Social Care,34.39,ICT,1920Oct_PC00122
Sandwell Metropolitan Borough Council,http://www.sandwell.gov.uk/info/200202/performance_and_spending/3233/government_procurement_cards,09-Oct-19,Resources (Inc SIU),AMZNMktplace,Assistant Chief Executive (Excl SIU),23.33,Printing Stationery&Gen Office,1920Oct_PC00123
Sandwell Metropolitan Borough Council,http://www.sandwell.gov.uk/info/200202/performance_and_spending/3233/government_procurement_cards,09-Oct-19,Total Housing Revenue Account,AMZNMktplace,Total Housing Revenue Account,75.65,Materials & Consumables,1920Oct_PC00124
Sandwell Metropolitan Borough Council,http://www.sandwell.gov.uk/info/200202/performance_and_spending/3233/government_procurement_cards,09-Oct-19,Total Housing Revenue Account,AMZNMktplace,Total Housing Revenue Account,19.57,Materials & Consumables,1920Oct_PC00125
Sandwell Metropolitan Borough Council,http://www.sandwell.gov.uk/info/200202/performance_and_spending/3233/government_procurement_cards,09-Oct-19,Individual School Budgets With Inclusion,AMZNMKTPLACE AMAZON.CO,Individual School Budgets With Inclusion,69.9,ICT,1920Oct_PC00126
Sandwell Metropolitan Borough Council,http://www.sandwell.gov.uk/info/200202/performance_and_spending/3233/government_procurement_cards,09-Oct-19,Housing & Communities,PAYPAL  DETAILEDPRO,Neighbourhoods,28.99,Materials & Consumables,1920Oct_PC00127
Sandwell Metropolitan Borough Council,http://www.sandwell.gov.uk/info/200202/performance_and_spending/3233/government_procurement_cards,09-Oct-19,Housing & Communities,CRADLEY HEATH SST,Neighbourhoods,7.2,Public Transport,1920Oct_PC00128
Sandwell Metropolitan Borough Council,http://www.sandwell.gov.uk/info/200202/performance_and_spending/3233/government_procurement_cards,09-Oct-19,Resources (Inc SIU),BROMSGROVE STN SST,Assistant Chief Executive (Excl SIU),5.4,Public Transport,1920Oct_PC00129
Sandwell Metropolitan Borough Council,http://www.sandwell.gov.uk/info/200202/performance_and_spending/3233/government_procurement_cards,09-Oct-19,Childrens Services,POST OFFICE COUNTER,Childrens Services,6.6,"Postages, Carriage & Courier Services",1920Oct_PC00130
Sandwell Metropolitan Borough Council,http://www.sandwell.gov.uk/info/200202/performance_and_spending/3233/government_procurement_cards,09-Oct-19,Childrens Services,AMZNMKTPLACE AMAZON.CO,Childrens Services,25.99,Printing Stationery&Gen Office,1920Oct_PC00131
Sandwell Metropolitan Borough Council,http://www.sandwell.gov.uk/info/200202/performance_and_spending/3233/government_procurement_cards,09-Oct-19,Childrens Services,RONTEC DUDLEY PORT,Childrens Services,2.2,Catering Provisions,1920Oct_PC00132
Sandwell Metropolitan Borough Council,http://www.sandwell.gov.uk/info/200202/performance_and_spending/3233/government_procurement_cards,09-Oct-19,Regeneration & Growth,Amazon.co.uk MO0KM5TO4,Regeneration And The Economy,17.01,Printing Stationery&Gen Office,1920Oct_PC00133
Sandwell Metropolitan Borough Council,http://www.sandwell.gov.uk/info/200202/performance_and_spending/3233/government_procurement_cards,09-Oct-19,Dead Capital 1,Trainline.com,Total Adult Social Care,120.06,Public Transport,1920Oct_PC00134
Sandwell Metropolitan Borough Council,http://www.sandwell.gov.uk/info/200202/performance_and_spending/3233/government_procurement_cards,09-Oct-19,Childrens Services,Virgin Trains,Corporate Management,382.2,Public Transport,1920Oct_PC00135
Sandwell Metropolitan Borough Council,http://www.sandwell.gov.uk/info/200202/performance_and_spending/3233/government_procurement_cards,09-Oct-19,Individual School Budgets With Inclusion,ADOPTIONUK.ORG,Individual School Budgets With Inclusion,65.02,Conference Expenses,1920Oct_PC00136
Sandwell Metropolitan Borough Council,http://www.sandwell.gov.uk/info/200202/performance_and_spending/3233/government_procurement_cards,09-Oct-19,Housing & Communities,RINGGO,Neighbourhoods,5.11,Car Parking,1920Oct_PC00137
Sandwell Metropolitan Borough Council,http://www.sandwell.gov.uk/info/200202/performance_and_spending/3233/government_procurement_cards,10-Oct-19,Resources (Inc SIU),AMZNMKTPLACE AMAZON.CO,Assistant Chief Executive (Excl SIU),24.15,Materials & Consumables,1920Oct_PC00138
Sandwell Metropolitan Borough Council,http://www.sandwell.gov.uk/info/200202/performance_and_spending/3233/government_procurement_cards,10-Oct-19,Resources (Inc SIU),AMZNMKTPLACE AMAZON.CO,Assistant Chief Executive (Excl SIU),33.32,Printing Stationery&Gen Office,1920Oct_PC00139
Sandwell Metropolitan Borough Council,http://www.sandwell.gov.uk/info/200202/performance_and_spending/3233/government_procurement_cards,10-Oct-19,Housing & Communities,SAFETYSUPPL,Neighbourhoods,100.45,Materials & Consumables,1920Oct_PC00140
Sandwell Metropolitan Borough Council,http://www.sandwell.gov.uk/info/200202/performance_and_spending/3233/government_procurement_cards,10-Oct-19,Dead Capital 1,CROMWELL WEST MIDLANDS,Total Adult Social Care,28.82,Equipment & Furniture,1920Oct_PC00141
Sandwell Metropolitan Borough Council,http://www.sandwell.gov.uk/info/200202/performance_and_spending/3233/government_procurement_cards,10-Oct-19,Housing & Communities,PUMPKIN CAFE,Neighbourhoods,2.91,Rent Allowances Local Scheme,1920Oct_PC00142
Sandwell Metropolitan Borough Council,http://www.sandwell.gov.uk/info/200202/performance_and_spending/3233/government_procurement_cards,10-Oct-19,Total Housing Revenue Account,WWW.KANE.CO.UK,Total Housing Revenue Account,453.05,Equipment & Furniture,1920Oct_PC00143
Sandwell Metropolitan Borough Council,http://www.sandwell.gov.uk/info/200202/performance_and_spending/3233/government_procurement_cards,10-Oct-19,Housing & Communities,SANDWELL M.B.C.,Neighbourhoods,17.5,Licences,1920Oct_PC00144
Sandwell Metropolitan Borough Council,http://www.sandwell.gov.uk/info/200202/performance_and_spending/3233/government_procurement_cards,10-Oct-19,Childrens Services,BOOKWHEN.COM - BOOKING,Childrens Services,190,Ind. Emp Exp-Staff Dev&Training,1920Oct_PC00145
Sandwell Metropolitan Borough Council,http://www.sandwell.gov.uk/info/200202/performance_and_spending/3233/government_procurement_cards,10-Oct-19,Resources (Inc SIU),AMZNMktplace,Assistant Chief Executive (Excl SIU),28.73,Printing Stationery&Gen Office,1920Oct_PC00146
Sandwell Metropolitan Borough Council,http://www.sandwell.gov.uk/info/200202/performance_and_spending/3233/government_procurement_cards,10-Oct-19,Dead Capital 1,CARE MODELS 2020: INVE,Total Adult Social Care,199,Conference Expenses,1920Oct_PC00147
Sandwell Metropolitan Borough Council,http://www.sandwell.gov.uk/info/200202/performance_and_spending/3233/government_procurement_cards,10-Oct-19,Childrens Services,SQ  A1 SANDWELL SKIP H,Childrens Services,120,Vehicle Hiring Charges,1920Oct_PC00148
Sandwell Metropolitan Borough Council,http://www.sandwell.gov.uk/info/200202/performance_and_spending/3233/government_procurement_cards,10-Oct-19,Housing & Communities,SABA PARK SERVICES LTD,Neighbourhoods,10,Car Parking,1920Oct_PC00149
Sandwell Metropolitan Borough Council,http://www.sandwell.gov.uk/info/200202/performance_and_spending/3233/government_procurement_cards,10-Oct-19,Total Housing Revenue Account,AMZNMktplace,Total Housing Revenue Account,17.9,Equipment & Furniture,1920Oct_PC00150
Sandwell Metropolitan Borough Council,http://www.sandwell.gov.uk/info/200202/performance_and_spending/3233/government_procurement_cards,10-Oct-19,Total Housing Revenue Account,AMZNMktplace,Total Housing Revenue Account,28.62,Equipment & Furniture,1920Oct_PC00151
Sandwell Metropolitan Borough Council,http://www.sandwell.gov.uk/info/200202/performance_and_spending/3233/government_procurement_cards,10-Oct-19,Resources (Inc SIU),AMZNMKTPLACE AMAZON.CO,Assistant Chief Executive (Excl SIU),45.54,ICT,1920Oct_PC00152
Sandwell Metropolitan Borough Council,http://www.sandwell.gov.uk/info/200202/performance_and_spending/3233/government_procurement_cards,10-Oct-19,Resources (Inc SIU),OFFICE DEPOT UK,Assistant Chief Executive (Excl SIU),37.14,Printing Stationery&Gen Office,1920Oct_PC00153
Sandwell Metropolitan Borough Council,http://www.sandwell.gov.uk/info/200202/performance_and_spending/3233/government_procurement_cards,10-Oct-19,Resources (Inc SIU),OFFICE DEPOT UK,Assistant Chief Executive (Excl SIU),159.95,Printing Stationery&Gen Office,1920Oct_PC00154
Sandwell Metropolitan Borough Council,http://www.sandwell.gov.uk/info/200202/performance_and_spending/3233/government_procurement_cards,10-Oct-19,Housing & Communities,CRADLEY HEATH SST,Neighbourhoods,7.2,Public Transport,1920Oct_PC00155
Sandwell Metropolitan Borough Council,http://www.sandwell.gov.uk/info/200202/performance_and_spending/3233/government_procurement_cards,10-Oct-19,Childrens Services,INDIVIDUAL MEMBERSHIP,Childrens Services,80,Ind. Emp Exp-Staff Dev&Training,1920Oct_PC00156
Sandwell Metropolitan Borough Council,http://www.sandwell.gov.uk/info/200202/performance_and_spending/3233/government_procurement_cards,10-Oct-19,Resources (Inc SIU),SANDWELL & DUD SST,Assistant Chief Executive (Excl SIU),5.3,Public Transport,1920Oct_PC00157
Sandwell Metropolitan Borough Council,http://www.sandwell.gov.uk/info/200202/performance_and_spending/3233/government_procurement_cards,10-Oct-19,Childrens Services,Trainline,Childrens Services,98.5,Public Transport,1920Oct_PC00158
Sandwell Metropolitan Borough Council,http://www.sandwell.gov.uk/info/200202/performance_and_spending/3233/government_procurement_cards,10-Oct-19,Individual School Budgets With Inclusion,Trainline.com,Individual School Budgets With Inclusion,67.36,Public Transport,1920Oct_PC00159
Sandwell Metropolitan Borough Council,http://www.sandwell.gov.uk/info/200202/performance_and_spending/3233/government_procurement_cards,10-Oct-19,Total Housing Revenue Account,OFFICE DEPOT UK,Total Housing Revenue Account,48.36,Printing Stationery&Gen Office,1920Oct_PC00160
Sandwell Metropolitan Borough Council,http://www.sandwell.gov.uk/info/200202/performance_and_spending/3233/government_procurement_cards,10-Oct-19,Resources (Inc SIU),TOOLSTATION LTD,Assistant Chief Executive (Excl SIU),1.39,R& M - Building Maint&Imp.,1920Oct_PC00161
Sandwell Metropolitan Borough Council,http://www.sandwell.gov.uk/info/200202/performance_and_spending/3233/government_procurement_cards,10-Oct-19,Childrens Services,OFFICE DEPOT UK,Childrens Services,38.51,Equipment & Furniture,1920Oct_PC00162
Sandwell Metropolitan Borough Council,http://www.sandwell.gov.uk/info/200202/performance_and_spending/3233/government_procurement_cards,10-Oct-19,Childrens Services,Trainline,Childrens Services,91.07,Public Transport,1920Oct_PC00163
Sandwell Metropolitan Borough Council,http://www.sandwell.gov.uk/info/200202/performance_and_spending/3233/government_procurement_cards,10-Oct-19,Housing & Communities,POUNDLAND LTD 1729,Neighbourhoods,4,Catering Provisions,1920Oct_PC00164
Sandwell Metropolitan Borough Council,http://www.sandwell.gov.uk/info/200202/performance_and_spending/3233/government_procurement_cards,10-Oct-19,Housing & Communities,SAINSBURYS SACAT0558,Neighbourhoods,1.5,Catering Provisions,1920Oct_PC00165
Sandwell Metropolitan Borough Council,http://www.sandwell.gov.uk/info/200202/performance_and_spending/3233/government_procurement_cards,10-Oct-19,Resources (Inc SIU),SAINSBURYS 0558,Assistant Chief Executive (Excl SIU),47.7,Catering Provisions,1920Oct_PC00166
Sandwell Metropolitan Borough Council,http://www.sandwell.gov.uk/info/200202/performance_and_spending/3233/government_procurement_cards,10-Oct-19,Dead Capital 1,SAINSBURYS SACAT0558,Total Adult Social Care,19,Catering Provisions,1920Oct_PC00167
Sandwell Metropolitan Borough Council,http://www.sandwell.gov.uk/info/200202/performance_and_spending/3233/government_procurement_cards,10-Oct-19,Childrens Services,BCC REGISTER OFFIC,Childrens Services,36,Residential - OLA's,1920Oct_PC00168
Sandwell Metropolitan Borough Council,http://www.sandwell.gov.uk/info/200202/performance_and_spending/3233/government_procurement_cards,10-Oct-19,Childrens Services,BCC REGISTER OFFIC,Childrens Services,47,Residential - OLA's,1920Oct_PC00169
Sandwell Metropolitan Borough Council,http://www.sandwell.gov.uk/info/200202/performance_and_spending/3233/government_procurement_cards,11-Oct-19,Dead Capital 1,WWW.JARDINELEATHERGOOD,Total Adult Social Care,209.1,Printing Stationery&Gen Office,1920Oct_PC00170
Sandwell Metropolitan Borough Council,http://www.sandwell.gov.uk/info/200202/performance_and_spending/3233/government_procurement_cards,11-Oct-19,Childrens Services,AMZNMktplace,Childrens Services,24.09,Materials & Consumables,1920Oct_PC00171
Sandwell Metropolitan Borough Council,http://www.sandwell.gov.uk/info/200202/performance_and_spending/3233/government_procurement_cards,11-Oct-19,Housing & Communities,EB  DCDC19 CONFERENCE,Neighbourhoods,105.25,Ind. Emp Exp-Staff Dev&Training,1920Oct_PC00172
Sandwell Metropolitan Borough Council,http://www.sandwell.gov.uk/info/200202/performance_and_spending/3233/government_procurement_cards,11-Oct-19,Housing & Communities,TOOLSTATION LTD,Neighbourhoods,1.95,Grounds Maint&Improvements,1920Oct_PC00173
Sandwell Metropolitan Borough Council,http://www.sandwell.gov.uk/info/200202/performance_and_spending/3233/government_procurement_cards,11-Oct-19,Adult Social Care Health and Wellbeing - Total,MCDONALDS,Public Health,20.62,Catering Provisions,1920Oct_PC00174
Sandwell Metropolitan Borough Council,http://www.sandwell.gov.uk/info/200202/performance_and_spending/3233/government_procurement_cards,11-Oct-19,Housing & Communities,ASDA GEORGE COM LEEDS,Neighbourhoods,29.17,Materials & Consumables,1920Oct_PC00175
Sandwell Metropolitan Borough Council,http://www.sandwell.gov.uk/info/200202/performance_and_spending/3233/government_procurement_cards,11-Oct-19,Childrens Services,AMZNMktplace,Childrens Services,27.25,Printing Stationery&Gen Office,1920Oct_PC00176
Sandwell Metropolitan Borough Council,http://www.sandwell.gov.uk/info/200202/performance_and_spending/3233/government_procurement_cards,11-Oct-19,Childrens Services,AMZNMktplace,Childrens Services,43.28,Catering Equipment,1920Oct_PC00177
Sandwell Metropolitan Borough Council,http://www.sandwell.gov.uk/info/200202/performance_and_spending/3233/government_procurement_cards,11-Oct-19,Childrens Services,BEEBYS BUBBLES,Childrens Services,79.17,Laundry,1920Oct_PC00178
Sandwell Metropolitan Borough Council,http://www.sandwell.gov.uk/info/200202/performance_and_spending/3233/government_procurement_cards,11-Oct-19,Childrens Services,HANDY DRY CLEANERS,Childrens Services,53.33,Laundry,1920Oct_PC00179
Sandwell Metropolitan Borough Council,http://www.sandwell.gov.uk/info/200202/performance_and_spending/3233/government_procurement_cards,11-Oct-19,Childrens Services,AMZNMktplace,Childrens Services,77.47,Fixtures & Fittings,1920Oct_PC00180
Sandwell Metropolitan Borough Council,http://www.sandwell.gov.uk/info/200202/performance_and_spending/3233/government_procurement_cards,11-Oct-19,Adult Social Care Health and Wellbeing - Total,WWW.PAPAJOHNS.CO.U,Public Health,53.3,Catering Provisions,1920Oct_PC00181
Sandwell Metropolitan Borough Council,http://www.sandwell.gov.uk/info/200202/performance_and_spending/3233/government_procurement_cards,11-Oct-19,Regeneration & Growth,HOTEL IBIS,Regeneration And The Economy,42.5,Conference Expenses,1920Oct_PC00182
Sandwell Metropolitan Borough Council,http://www.sandwell.gov.uk/info/200202/performance_and_spending/3233/government_procurement_cards,11-Oct-19,Housing & Communities,ASDA SUPERSTORE,Neighbourhoods,11.79,Materials & Consumables,1920Oct_PC00183
Sandwell Metropolitan Borough Council,http://www.sandwell.gov.uk/info/200202/performance_and_spending/3233/government_procurement_cards,11-Oct-19,Housing & Communities,ONE BELOW,Neighbourhoods,4.17,Materials & Consumables,1920Oct_PC00184
Sandwell Metropolitan Borough Council,http://www.sandwell.gov.uk/info/200202/performance_and_spending/3233/government_procurement_cards,11-Oct-19,Housing & Communities,TESCO STORES 6197,Neighbourhoods,58.33,Materials & Consumables,1920Oct_PC00185
Sandwell Metropolitan Borough Council,http://www.sandwell.gov.uk/info/200202/performance_and_spending/3233/government_procurement_cards,11-Oct-19,Regeneration & Growth,AMZNMktplace,Regeneration And The Economy,44.97,Printing Stationery&Gen Office,1920Oct_PC00186
Sandwell Metropolitan Borough Council,http://www.sandwell.gov.uk/info/200202/performance_and_spending/3233/government_procurement_cards,11-Oct-19,Regeneration & Growth,AMZNMktplace,Regeneration And The Economy,108.72,Printing Stationery&Gen Office,1920Oct_PC00187
Sandwell Metropolitan Borough Council,http://www.sandwell.gov.uk/info/200202/performance_and_spending/3233/government_procurement_cards,11-Oct-19,Total Housing Revenue Account,OFFICE DEPOT UK,Total Housing Revenue Account,7.5,Printing Stationery&Gen Office,1920Oct_PC00188
Sandwell Metropolitan Borough Council,http://www.sandwell.gov.uk/info/200202/performance_and_spending/3233/government_procurement_cards,11-Oct-19,Childrens Services,OFFICE DEPOT UK,Childrens Services,51.85,Printing Stationery&Gen Office,1920Oct_PC00189
Sandwell Metropolitan Borough Council,http://www.sandwell.gov.uk/info/200202/performance_and_spending/3233/government_procurement_cards,11-Oct-19,Resources (Inc SIU),AMZ Amazon.co.uk,Assistant Chief Executive (Excl SIU),-28.21,Printing Stationery&Gen Office,1920Oct_PC00190
Sandwell Metropolitan Borough Council,http://www.sandwell.gov.uk/info/200202/performance_and_spending/3233/government_procurement_cards,11-Oct-19,Childrens Services,WWW.ARGOS.CO.UK,Childrens Services,350.93,Equipment & Furniture,1920Oct_PC00191
Sandwell Metropolitan Borough Council,http://www.sandwell.gov.uk/info/200202/performance_and_spending/3233/government_procurement_cards,11-Oct-19,Resources (Inc SIU),SANDWELL & DUD T/O,Assistant Chief Executive (Excl SIU),36.8,Public Transport,1920Oct_PC00192
Sandwell Metropolitan Borough Council,http://www.sandwell.gov.uk/info/200202/performance_and_spending/3233/government_procurement_cards,11-Oct-19,Housing & Communities,CRADLEY HEATH SST,Neighbourhoods,7.2,Public Transport,1920Oct_PC00193
Sandwell Metropolitan Borough Council,http://www.sandwell.gov.uk/info/200202/performance_and_spending/3233/government_procurement_cards,11-Oct-19,Childrens Services,GEN REGISTER OFFICE,Childrens Services,49.25,Adoption-Gov't Dept's,1920Oct_PC00194
Sandwell Metropolitan Borough Council,http://www.sandwell.gov.uk/info/200202/performance_and_spending/3233/government_procurement_cards,11-Oct-19,Childrens Services,WWW.ARGOS.CO.UK,Childrens Services,17.99,Equipment & Furniture,1920Oct_PC00195
Sandwell Metropolitan Borough Council,http://www.sandwell.gov.uk/info/200202/performance_and_spending/3233/government_procurement_cards,11-Oct-19,Childrens Services,Trainline,Childrens Services,42.1,Public Transport,1920Oct_PC00196
Sandwell Metropolitan Borough Council,http://www.sandwell.gov.uk/info/200202/performance_and_spending/3233/government_procurement_cards,11-Oct-19,Regeneration & Growth,Trainline,Regeneration And The Economy,42.33,Public Transport,1920Oct_PC00197
Sandwell Metropolitan Borough Council,http://www.sandwell.gov.uk/info/200202/performance_and_spending/3233/government_procurement_cards,11-Oct-19,Resources (Inc SIU),Cross Country Trains,Assistant Chief Executive (Excl SIU),169.4,Public Transport,1920Oct_PC00198
Sandwell Metropolitan Borough Council,http://www.sandwell.gov.uk/info/200202/performance_and_spending/3233/government_procurement_cards,11-Oct-19,Dead Capital 1,OFFICE DEPOT UK,Total Adult Social Care,7.55,Printing Stationery&Gen Office,1920Oct_PC00199
Sandwell Metropolitan Borough Council,http://www.sandwell.gov.uk/info/200202/performance_and_spending/3233/government_procurement_cards,11-Oct-19,Childrens Services,GEN REGISTER OFFICE,Childrens Services,42,Residential - OLA's,1920Oct_PC00200
Sandwell Metropolitan Borough Council,http://www.sandwell.gov.uk/info/200202/performance_and_spending/3233/government_procurement_cards,11-Oct-19,Childrens Services,ARGOS RETAIL GROUP,Childrens Services,34.99,Equipment & Furniture,1920Oct_PC00201
Sandwell Metropolitan Borough Council,http://www.sandwell.gov.uk/info/200202/performance_and_spending/3233/government_procurement_cards,11-Oct-19,Childrens Services,Trainline,Childrens Services,103.5,Public Transport,1920Oct_PC00202
Sandwell Metropolitan Borough Council,http://www.sandwell.gov.uk/info/200202/performance_and_spending/3233/government_procurement_cards,11-Oct-19,Regeneration & Growth,Trainline.com,Regeneration And The Economy,162.8,Public Transport,1920Oct_PC00203
Sandwell Metropolitan Borough Council,http://www.sandwell.gov.uk/info/200202/performance_and_spending/3233/government_procurement_cards,11-Oct-19,Childrens Services,Trainline,Childrens Services,49.75,Public Transport,1920Oct_PC00204
Sandwell Metropolitan Borough Council,http://www.sandwell.gov.uk/info/200202/performance_and_spending/3233/government_procurement_cards,11-Oct-19,Childrens Services,Trainline,Childrens Services,9.75,Public Transport,1920Oct_PC00205
Sandwell Metropolitan Borough Council,http://www.sandwell.gov.uk/info/200202/performance_and_spending/3233/government_procurement_cards,11-Oct-19,Housing & Communities,POUNDLAND LTD 1123,Neighbourhoods,11,Materials & Consumables,1920Oct_PC00206
Sandwell Metropolitan Borough Council,http://www.sandwell.gov.uk/info/200202/performance_and_spending/3233/government_procurement_cards,14-Oct-19,Dead Capital 1,AMZ Ronnies Remotes,Total Adult Social Care,-9.99,Materials & Consumables,1920Oct_PC00207
Sandwell Metropolitan Borough Council,http://www.sandwell.gov.uk/info/200202/performance_and_spending/3233/government_procurement_cards,14-Oct-19,Individual School Budgets With Inclusion,AMZNMktplace,Individual School Budgets With Inclusion,32.1,Equipment & Furniture,1920Oct_PC00208
Sandwell Metropolitan Borough Council,http://www.sandwell.gov.uk/info/200202/performance_and_spending/3233/government_procurement_cards,14-Oct-19,Housing & Communities,AMZNMKTPLACE AMAZON.CO,Neighbourhoods,18.32,R & M - Security,1920Oct_PC00209
Sandwell Metropolitan Borough Council,http://www.sandwell.gov.uk/info/200202/performance_and_spending/3233/government_procurement_cards,14-Oct-19,Housing & Communities,AMZNMktplace,Neighbourhoods,8.96,Protective Clothing&Uniforms,1920Oct_PC00210
Sandwell Metropolitan Borough Council,http://www.sandwell.gov.uk/info/200202/performance_and_spending/3233/government_procurement_cards,14-Oct-19,Dead Capital 1,AMZNMktplace,Total Adult Social Care,32.42,Printing Stationery&Gen Office,1920Oct_PC00211
Sandwell Metropolitan Borough Council,http://www.sandwell.gov.uk/info/200202/performance_and_spending/3233/government_procurement_cards,14-Oct-19,Housing & Communities,COUNTRY BASKETS,Neighbourhoods,76.87,Materials & Consumables,1920Oct_PC00212
Sandwell Metropolitan Borough Council,http://www.sandwell.gov.uk/info/200202/performance_and_spending/3233/government_procurement_cards,14-Oct-19,Leaving Care Team 4,WILKO RETAIL LIMIT,Leaving Care Team 4,22.71,Equipment & Furniture,1920Oct_PC00213
Sandwell Metropolitan Borough Council,http://www.sandwell.gov.uk/info/200202/performance_and_spending/3233/government_procurement_cards,14-Oct-19,Housing & Communities,LBS WORLDWIDE LTD,Neighbourhoods,86.33,Grounds Maint&Improvements,1920Oct_PC00214
Sandwell Metropolitan Borough Council,http://www.sandwell.gov.uk/info/200202/performance_and_spending/3233/government_procurement_cards,14-Oct-19,Total Housing Revenue Account,cadent gas,Total Housing Revenue Account,619.4,Materials & Consumables,1920Oct_PC00215
Sandwell Metropolitan Borough Council,http://www.sandwell.gov.uk/info/200202/performance_and_spending/3233/government_procurement_cards,14-Oct-19,Childrens Services,Amazon Prime MO1NW60E4,Childrens Services,6.66,Fixtures & Fittings,1920Oct_PC00216
Sandwell Metropolitan Borough Council,http://www.sandwell.gov.uk/info/200202/performance_and_spending/3233/government_procurement_cards,14-Oct-19,Housing & Communities,AMZNMktplace,Neighbourhoods,10.06,Civic Events,1920Oct_PC00217
Sandwell Metropolitan Borough Council,http://www.sandwell.gov.uk/info/200202/performance_and_spending/3233/government_procurement_cards,14-Oct-19,Childrens Services,AMZNMktplace,Childrens Services,17.74,Telephones,1920Oct_PC00218
Sandwell Metropolitan Borough Council,http://www.sandwell.gov.uk/info/200202/performance_and_spending/3233/government_procurement_cards,14-Oct-19,Individual School Budgets With Inclusion,THE YORKSHIRE HOTEL HA,Individual School Budgets With Inclusion,125.1,Conference Expenses,1920Oct_PC00219
Sandwell Metropolitan Borough Council,http://www.sandwell.gov.uk/info/200202/performance_and_spending/3233/government_procurement_cards,14-Oct-19,Regeneration & Growth,AMZNMKTPLACE AMAZON.CO,Regeneration And The Economy,47.96,R& M - Building Maint&Imp.,1920Oct_PC00220
Sandwell Metropolitan Borough Council,http://www.sandwell.gov.uk/info/200202/performance_and_spending/3233/government_procurement_cards,14-Oct-19,Housing & Communities,CRADLEY HEATH T/O,Neighbourhoods,7.2,Public Transport,1920Oct_PC00221
Sandwell Metropolitan Borough Council,http://www.sandwell.gov.uk/info/200202/performance_and_spending/3233/government_procurement_cards,14-Oct-19,Individual School Budgets With Inclusion,CCS Brookfleet Cars,Individual School Budgets With Inclusion,28,Public Transport,1920Oct_PC00222
Sandwell Metropolitan Borough Council,http://www.sandwell.gov.uk/info/200202/performance_and_spending/3233/government_procurement_cards,14-Oct-19,Resources (Inc SIU),OFFICE DEPOT UK,Assistant Chief Executive (Excl SIU),63.49,Printing Stationery&Gen Office,1920Oct_PC00223
Sandwell Metropolitan Borough Council,http://www.sandwell.gov.uk/info/200202/performance_and_spending/3233/government_procurement_cards,14-Oct-19,Childrens Services,B & Q 1276,Childrens Services,16.44,R& M - Building Maint&Imp.,1920Oct_PC00224
Sandwell Metropolitan Borough Council,http://www.sandwell.gov.uk/info/200202/performance_and_spending/3233/government_procurement_cards,14-Oct-19,Childrens Services,Trainline,Childrens Services,12.25,Public Transport,1920Oct_PC00225
Sandwell Metropolitan Borough Council,http://www.sandwell.gov.uk/info/200202/performance_and_spending/3233/government_procurement_cards,14-Oct-19,Childrens Services,Trainline,Childrens Services,91.5,Public Transport,1920Oct_PC00226
Sandwell Metropolitan Borough Council,http://www.sandwell.gov.uk/info/200202/performance_and_spending/3233/government_procurement_cards,14-Oct-19,Childrens Services,DISCLOSURE & BARRING,Childrens Services,13,Professional Services External,1920Oct_PC00227
Sandwell Metropolitan Borough Council,http://www.sandwell.gov.uk/info/200202/performance_and_spending/3233/government_procurement_cards,14-Oct-19,Childrens Services,OFFICE DEPOT UK,Childrens Services,19.01,Fixtures & Fittings,1920Oct_PC00228
Sandwell Metropolitan Borough Council,http://www.sandwell.gov.uk/info/200202/performance_and_spending/3233/government_procurement_cards,14-Oct-19,Childrens Services,Trainline,Childrens Services,64.5,Public Transport,1920Oct_PC00229
Sandwell Metropolitan Borough Council,http://www.sandwell.gov.uk/info/200202/performance_and_spending/3233/government_procurement_cards,14-Oct-19,Dead Capital 1,ARGOS RETAIL GROUP,Total Adult Social Care,74,Materials & Consumables,1920Oct_PC00230
Sandwell Metropolitan Borough Council,http://www.sandwell.gov.uk/info/200202/performance_and_spending/3233/government_procurement_cards,14-Oct-19,Childrens Services,WWW.ARGOS.CO.UK,Childrens Services,18.95,Equipment & Furniture,1920Oct_PC00231
Sandwell Metropolitan Borough Council,http://www.sandwell.gov.uk/info/200202/performance_and_spending/3233/government_procurement_cards,14-Oct-19,Dead Capital 1,OFFICE DEPOT UK,Total Adult Social Care,36.74,Printing Stationery&Gen Office,1920Oct_PC00232
Sandwell Metropolitan Borough Council,http://www.sandwell.gov.uk/info/200202/performance_and_spending/3233/government_procurement_cards,14-Oct-19,Childrens Services,Virgin Trains,Childrens Services,175.45,Public Transport,1920Oct_PC00233
Sandwell Metropolitan Borough Council,http://www.sandwell.gov.uk/info/200202/performance_and_spending/3233/government_procurement_cards,14-Oct-19,Childrens Services,VISITBRITAIN SHOP GB,Childrens Services,48.3,Public Transport,1920Oct_PC00234
Sandwell Metropolitan Borough Council,http://www.sandwell.gov.uk/info/200202/performance_and_spending/3233/government_procurement_cards,14-Oct-19,Childrens Services,OFFICE DEPOT UK,Childrens Services,32.35,Printing Stationery&Gen Office,1920Oct_PC00235
Sandwell Metropolitan Borough Council,http://www.sandwell.gov.uk/info/200202/performance_and_spending/3233/government_procurement_cards,14-Oct-19,Individual School Budgets With Inclusion,CCS Brookfleet Cars,Individual School Budgets With Inclusion,21,Public Transport,1920Oct_PC00236
Sandwell Metropolitan Borough Council,http://www.sandwell.gov.uk/info/200202/performance_and_spending/3233/government_procurement_cards,14-Oct-19,Individual School Budgets With Inclusion,AMZNMktplace,Individual School Budgets With Inclusion,125.38,Materials & Consumables,1920Oct_PC00237
Sandwell Metropolitan Borough Council,http://www.sandwell.gov.uk/info/200202/performance_and_spending/3233/government_procurement_cards,14-Oct-19,Individual School Budgets With Inclusion,Amazon.co.uk MO2CC3094,Individual School Budgets With Inclusion,17.3,Materials & Consumables,1920Oct_PC00238
Sandwell Metropolitan Borough Council,http://www.sandwell.gov.uk/info/200202/performance_and_spending/3233/government_procurement_cards,14-Oct-19,Individual School Budgets With Inclusion,AMZNMktplace,Individual School Budgets With Inclusion,45.99,Equipment & Furniture,1920Oct_PC00239
Sandwell Metropolitan Borough Council,http://www.sandwell.gov.uk/info/200202/performance_and_spending/3233/government_procurement_cards,15-Oct-19,Childrens Services,WWW.ZORO.CO.UK,Childrens Services,18.7,Fixtures & Fittings,1920Oct_PC00240
Sandwell Metropolitan Borough Council,http://www.sandwell.gov.uk/info/200202/performance_and_spending/3233/government_procurement_cards,15-Oct-19,Housing & Communities,WWW.KINGSSEEDS.COM,Neighbourhoods,13.83,Grounds Maint&Improvements,1920Oct_PC00241
Sandwell Metropolitan Borough Council,http://www.sandwell.gov.uk/info/200202/performance_and_spending/3233/government_procurement_cards,15-Oct-19,Housing & Communities,AMZNMKTPLACE AMAZON.CO,Neighbourhoods,26.23,Equipment & Furniture,1920Oct_PC00242
Sandwell Metropolitan Borough Council,http://www.sandwell.gov.uk/info/200202/performance_and_spending/3233/government_procurement_cards,15-Oct-19,Childrens Services,AMZNMKTPLACE AMAZON.CO,Childrens Services,11.28,Catering Equipment,1920Oct_PC00243
Sandwell Metropolitan Borough Council,http://www.sandwell.gov.uk/info/200202/performance_and_spending/3233/government_procurement_cards,15-Oct-19,Leaving Care Team 4,ABS CARPETS AND BE,Leaving Care Team 4,350,Fixtures & Fittings,1920Oct_PC00244
Sandwell Metropolitan Borough Council,http://www.sandwell.gov.uk/info/200202/performance_and_spending/3233/government_procurement_cards,15-Oct-19,Resources (Inc SIU),Amazon Prime MO2YP6P24,Assistant Chief Executive (Excl SIU),6.66,Printing Stationery&Gen Office,1920Oct_PC00245
Sandwell Metropolitan Borough Council,http://www.sandwell.gov.uk/info/200202/performance_and_spending/3233/government_procurement_cards,15-Oct-19,Regeneration & Growth,THE COAL AUTHORITY,Regeneration And The Economy,362,Professional Services External,1920Oct_PC00246
Sandwell Metropolitan Borough Council,http://www.sandwell.gov.uk/info/200202/performance_and_spending/3233/government_procurement_cards,15-Oct-19,Childrens Services,ASDA STORES LTD 5865,Childrens Services,8.37,Materials & Consumables,1920Oct_PC00247
Sandwell Metropolitan Borough Council,http://www.sandwell.gov.uk/info/200202/performance_and_spending/3233/government_procurement_cards,15-Oct-19,Dead Capital 1,R & D MILLER LIMITED,Total Adult Social Care,200,Protective Clothing&Uniforms,1920Oct_PC00248
Sandwell Metropolitan Borough Council,http://www.sandwell.gov.uk/info/200202/performance_and_spending/3233/government_procurement_cards,15-Oct-19,Housing & Communities,AMZNMKTPLACE AMAZON.CO,Neighbourhoods,26.4,Equipment & Furniture,1920Oct_PC00249
Sandwell Metropolitan Borough Council,http://www.sandwell.gov.uk/info/200202/performance_and_spending/3233/government_procurement_cards,15-Oct-19,Housing & Communities,AMZNMktplace,Neighbourhoods,6.99,Equipment & Furniture,1920Oct_PC00250
Sandwell Metropolitan Borough Council,http://www.sandwell.gov.uk/info/200202/performance_and_spending/3233/government_procurement_cards,15-Oct-19,Housing & Communities,Amazon.co.uk MO1NR7PE4,Neighbourhoods,64.83,Printing Stationery&Gen Office,1920Oct_PC00251
Sandwell Metropolitan Borough Council,http://www.sandwell.gov.uk/info/200202/performance_and_spending/3233/government_procurement_cards,15-Oct-19,Housing & Communities,AMZNMktplace,Neighbourhoods,70.47,Printing Stationery&Gen Office,1920Oct_PC00252
Sandwell Metropolitan Borough Council,http://www.sandwell.gov.uk/info/200202/performance_and_spending/3233/government_procurement_cards,15-Oct-19,Resources (Inc SIU),Flextronics,Assistant Chief Executive (Excl SIU),354.03,ICT,1920Oct_PC00253
Sandwell Metropolitan Borough Council,http://www.sandwell.gov.uk/info/200202/performance_and_spending/3233/government_procurement_cards,15-Oct-19,Childrens Services,WWW.ARGOS.CO.UK,Childrens Services,66.6,Equipment & Furniture,1920Oct_PC00254
Sandwell Metropolitan Borough Council,http://www.sandwell.gov.uk/info/200202/performance_and_spending/3233/government_procurement_cards,15-Oct-19,Housing & Communities,HALLOWEEN HOUSE,Neighbourhoods,15.78,Materials & Consumables,1920Oct_PC00255
Sandwell Metropolitan Borough Council,http://www.sandwell.gov.uk/info/200202/performance_and_spending/3233/government_procurement_cards,15-Oct-19,Housing & Communities,WWW.BEMYBEAR.COM,Neighbourhoods,112.99,Civic Events,1920Oct_PC00256
Sandwell Metropolitan Borough Council,http://www.sandwell.gov.uk/info/200202/performance_and_spending/3233/government_procurement_cards,15-Oct-19,Housing & Communities,OFFICE DEPOT UK,Neighbourhoods,50.7,Printing Stationery&Gen Office,1920Oct_PC00257
Sandwell Metropolitan Borough Council,http://www.sandwell.gov.uk/info/200202/performance_and_spending/3233/government_procurement_cards,15-Oct-19,Childrens Services,OFFICE DEPOT UK,Childrens Services,39.7,Fixtures & Fittings,1920Oct_PC00258
Sandwell Metropolitan Borough Council,http://www.sandwell.gov.uk/info/200202/performance_and_spending/3233/government_procurement_cards,15-Oct-19,Resources (Inc SIU),OFFICE DEPOT UK,Assistant Chief Executive (Excl SIU),80.89,Printing Stationery&Gen Office,1920Oct_PC00259
Sandwell Metropolitan Borough Council,http://www.sandwell.gov.uk/info/200202/performance_and_spending/3233/government_procurement_cards,15-Oct-19,Individual School Budgets With Inclusion,Trainline,Individual School Budgets With Inclusion,57.49,Public Transport,1920Oct_PC00260
Sandwell Metropolitan Borough Council,http://www.sandwell.gov.uk/info/200202/performance_and_spending/3233/government_procurement_cards,15-Oct-19,Resources (Inc SIU),Trainline.com,Assistant Chief Executive (Excl SIU),93.71,Public Transport,1920Oct_PC00261
Sandwell Metropolitan Borough Council,http://www.sandwell.gov.uk/info/200202/performance_and_spending/3233/government_procurement_cards,15-Oct-19,Dead Capital 1,RICARDO-AEA LTD,Total Adult Social Care,295,Ind. Emp Exp-Staff Dev&Training,1920Oct_PC00262
Sandwell Metropolitan Borough Council,http://www.sandwell.gov.uk/info/200202/performance_and_spending/3233/government_procurement_cards,15-Oct-19,Childrens Services,ASDA STORES LTD 5865,Childrens Services,6.01,Materials & Consumables,1920Oct_PC00263
Sandwell Metropolitan Borough Council,http://www.sandwell.gov.uk/info/200202/performance_and_spending/3233/government_procurement_cards,15-Oct-19,Resources (Inc SIU),WWW.CIPS.ORG,Assistant Chief Executive (Excl SIU),187,Ind. Emp Exp-Staff Dev&Training,1920Oct_PC00264
Sandwell Metropolitan Borough Council,http://www.sandwell.gov.uk/info/200202/performance_and_spending/3233/government_procurement_cards,15-Oct-19,Childrens Services,TEXTANYWHERE LTD,Childrens Services,25,Telephones,1920Oct_PC00265
Sandwell Metropolitan Borough Council,http://www.sandwell.gov.uk/info/200202/performance_and_spending/3233/government_procurement_cards,15-Oct-19,Childrens Services,Trainline.com,Childrens Services,76.31,Public Transport,1920Oct_PC00266
Sandwell Metropolitan Borough Council,http://www.sandwell.gov.uk/info/200202/performance_and_spending/3233/government_procurement_cards,15-Oct-19,Adult Social Care Health and Wellbeing - Total,AMZNMktplace,Public Health,11.58,Printing Stationery&Gen Office,1920Oct_PC00267
Sandwell Metropolitan Borough Council,http://www.sandwell.gov.uk/info/200202/performance_and_spending/3233/government_procurement_cards,16-Oct-19,Housing & Communities,AMZNMKTPLACE AMAZON.CO,Neighbourhoods,10.55,Catering Equipment,1920Oct_PC00268
Sandwell Metropolitan Borough Council,http://www.sandwell.gov.uk/info/200202/performance_and_spending/3233/government_procurement_cards,16-Oct-19,Housing & Communities,AMZNMKTPLACE AMAZON.CO,Neighbourhoods,7.99,Fixtures & Fittings,1920Oct_PC00269
Sandwell Metropolitan Borough Council,http://www.sandwell.gov.uk/info/200202/performance_and_spending/3233/government_procurement_cards,16-Oct-19,Resources (Inc SIU),Amazon.co.uk MO5MD7G64,Assistant Chief Executive (Excl SIU),36.24,ICT,1920Oct_PC00270
Sandwell Metropolitan Borough Council,http://www.sandwell.gov.uk/info/200202/performance_and_spending/3233/government_procurement_cards,16-Oct-19,Resources (Inc SIU),Amazon.co.uk MO7MY8GH4,Assistant Chief Executive (Excl SIU),24.42,ICT,1920Oct_PC00271
Sandwell Metropolitan Borough Council,http://www.sandwell.gov.uk/info/200202/performance_and_spending/3233/government_procurement_cards,16-Oct-19,Childrens Services,ASDA STORES LTD 5865,Childrens Services,0.83,Materials & Consumables,1920Oct_PC00272
Sandwell Metropolitan Borough Council,http://www.sandwell.gov.uk/info/200202/performance_and_spending/3233/government_procurement_cards,16-Oct-19,Childrens Services,BAKER ROSS,Childrens Services,151.62,Materials & Consumables,1920Oct_PC00273
Sandwell Metropolitan Borough Council,http://www.sandwell.gov.uk/info/200202/performance_and_spending/3233/government_procurement_cards,16-Oct-19,Housing & Communities,BAKER ROSS,Neighbourhoods,12.46,Materials & Consumables,1920Oct_PC00274
Sandwell Metropolitan Borough Council,http://www.sandwell.gov.uk/info/200202/performance_and_spending/3233/government_procurement_cards,16-Oct-19,Total Housing Revenue Account,BT REPAYMENT WORKS,Total Housing Revenue Account,249.17,Materials & Consumables,1920Oct_PC00275
Sandwell Metropolitan Borough Council,http://www.sandwell.gov.uk/info/200202/performance_and_spending/3233/government_procurement_cards,16-Oct-19,Childrens Services,GENERAL BUILDING P,Childrens Services,58.74,R& M - Building Maint&Imp.,1920Oct_PC00276
Sandwell Metropolitan Borough Council,http://www.sandwell.gov.uk/info/200202/performance_and_spending/3233/government_procurement_cards,16-Oct-19,Childrens Services,SNOWDONIA FIRE PROTECT,Childrens Services,35,R & M - Security,1920Oct_PC00277
Sandwell Metropolitan Borough Council,http://www.sandwell.gov.uk/info/200202/performance_and_spending/3233/government_procurement_cards,16-Oct-19,Dead Capital 1,OFFICE DEPOT UK,Total Adult Social Care,21.49,Printing Stationery&Gen Office,1920Oct_PC00278
Sandwell Metropolitan Borough Council,http://www.sandwell.gov.uk/info/200202/performance_and_spending/3233/government_procurement_cards,16-Oct-19,Resources (Inc SIU),OFFICE DEPOT UK,Assistant Chief Executive (Excl SIU),148.5,Ind. Emp Exp-Emp. Welfare,1920Oct_PC00279
Sandwell Metropolitan Borough Council,http://www.sandwell.gov.uk/info/200202/performance_and_spending/3233/government_procurement_cards,16-Oct-19,Housing & Communities,AMZNMKTPLACE AMAZON.CO,Neighbourhoods,58.22,Materials & Consumables,1920Oct_PC00280
Sandwell Metropolitan Borough Council,http://www.sandwell.gov.uk/info/200202/performance_and_spending/3233/government_procurement_cards,16-Oct-19,Resources (Inc SIU),WWW.CIPS.ORG,Assistant Chief Executive (Excl SIU),187,Ind. Emp Exp-Staff Dev&Training,1920Oct_PC00281
Sandwell Metropolitan Borough Council,http://www.sandwell.gov.uk/info/200202/performance_and_spending/3233/government_procurement_cards,16-Oct-19,Resources (Inc SIU),ASDA SUPERSTORE,Assistant Chief Executive (Excl SIU),7.38,Catering Provisions,1920Oct_PC00282
Sandwell Metropolitan Borough Council,http://www.sandwell.gov.uk/info/200202/performance_and_spending/3233/government_procurement_cards,16-Oct-19,Housing & Communities,OFFICE DEPOT UK,Neighbourhoods,29.15,Printing Stationery&Gen Office,1920Oct_PC00283
Sandwell Metropolitan Borough Council,http://www.sandwell.gov.uk/info/200202/performance_and_spending/3233/government_procurement_cards,16-Oct-19,Resources (Inc SIU),HMCOURTS-SERVICE.G,Assistant Chief Executive (Excl SIU),631.5,Council Tax,1920Oct_PC00284
Sandwell Metropolitan Borough Council,http://www.sandwell.gov.uk/info/200202/performance_and_spending/3233/government_procurement_cards,16-Oct-19,Childrens Services,GEN REGISTER OFFICE,Childrens Services,50,Residential - OLA's,1920Oct_PC00285
Sandwell Metropolitan Borough Council,http://www.sandwell.gov.uk/info/200202/performance_and_spending/3233/government_procurement_cards,16-Oct-19,Childrens Services,BCC REGISTER OFFIC,Childrens Services,47,Residential - OLA's,1920Oct_PC00286
Sandwell Metropolitan Borough Council,http://www.sandwell.gov.uk/info/200202/performance_and_spending/3233/government_procurement_cards,16-Oct-19,Childrens Services,ASDA STORES LTD 5865,Childrens Services,3.45,Materials & Consumables,1920Oct_PC00287
Sandwell Metropolitan Borough Council,http://www.sandwell.gov.uk/info/200202/performance_and_spending/3233/government_procurement_cards,16-Oct-19,Total Housing Revenue Account,THE POST OFFICE,Total Housing Revenue Account,220,Licences,1920Oct_PC00288
Sandwell Metropolitan Borough Council,http://www.sandwell.gov.uk/info/200202/performance_and_spending/3233/government_procurement_cards,16-Oct-19,Childrens Services,TRAVIS PERKINS,Childrens Services,53.13,R& M - Building Maint&Imp.,1920Oct_PC00289
Sandwell Metropolitan Borough Council,http://www.sandwell.gov.uk/info/200202/performance_and_spending/3233/government_procurement_cards,17-Oct-19,Housing & Communities,AMZNMKTPLACE AMAZON.CO,Neighbourhoods,41.58,Materials & Consumables,1920Oct_PC00290
Sandwell Metropolitan Borough Council,http://www.sandwell.gov.uk/info/200202/performance_and_spending/3233/government_procurement_cards,17-Oct-19,Housing & Communities,CALDMORE HARDWARE LIMI,Neighbourhoods,9.97,Materials & Consumables,1920Oct_PC00291
Sandwell Metropolitan Borough Council,http://www.sandwell.gov.uk/info/200202/performance_and_spending/3233/government_procurement_cards,17-Oct-19,Housing & Communities,TRACTOR GUARD,Neighbourhoods,375,Repairs & Maintenance,1920Oct_PC00292
Sandwell Metropolitan Borough Council,http://www.sandwell.gov.uk/info/200202/performance_and_spending/3233/government_procurement_cards,17-Oct-19,Total Housing Revenue Account,B & Q 1243,Total Housing Revenue Account,56.67,Materials & Consumables,1920Oct_PC00293
Sandwell Metropolitan Borough Council,http://www.sandwell.gov.uk/info/200202/performance_and_spending/3233/government_procurement_cards,17-Oct-19,Total Housing Revenue Account,B & Q 1243,Total Housing Revenue Account,2.5,Materials & Consumables,1920Oct_PC00294
Sandwell Metropolitan Borough Council,http://www.sandwell.gov.uk/info/200202/performance_and_spending/3233/government_procurement_cards,17-Oct-19,Individual School Budgets With Inclusion,AMZNMKTPLACE AMAZON.CO,Individual School Budgets With Inclusion,82.47,Equipment & Furniture,1920Oct_PC00295
Sandwell Metropolitan Borough Council,http://www.sandwell.gov.uk/info/200202/performance_and_spending/3233/government_procurement_cards,17-Oct-19,Childrens Services,Hotel on Booking.com T,Childrens Services,56.67,Day Care-Other Establishments,1920Oct_PC00296
Sandwell Metropolitan Borough Council,http://www.sandwell.gov.uk/info/200202/performance_and_spending/3233/government_procurement_cards,17-Oct-19,Housing & Communities,Amazon.co.uk MO37A3XT4,Neighbourhoods,4.66,R& M - Building Maint&Imp.,1920Oct_PC00297
Sandwell Metropolitan Borough Council,http://www.sandwell.gov.uk/info/200202/performance_and_spending/3233/government_procurement_cards,17-Oct-19,Childrens Services,HANDY DRY CLEANERS,Childrens Services,66.67,Laundry,1920Oct_PC00298
Sandwell Metropolitan Borough Council,http://www.sandwell.gov.uk/info/200202/performance_and_spending/3233/government_procurement_cards,17-Oct-19,Dead Capital 1,AMZNMktplace,Total Adult Social Care,14.13,Materials & Consumables,1920Oct_PC00299
Sandwell Metropolitan Borough Council,http://www.sandwell.gov.uk/info/200202/performance_and_spending/3233/government_procurement_cards,17-Oct-19,Housing & Communities,AMZNMktplace,Neighbourhoods,17.97,Civic Events,1920Oct_PC00300
Sandwell Metropolitan Borough Council,http://www.sandwell.gov.uk/info/200202/performance_and_spending/3233/government_procurement_cards,17-Oct-19,Housing & Communities,AMZNMktplace,Neighbourhoods,52.79,Civic Events,1920Oct_PC00301
Sandwell Metropolitan Borough Council,http://www.sandwell.gov.uk/info/200202/performance_and_spending/3233/government_procurement_cards,17-Oct-19,Childrens Services,ASDA STORES LTD 5865,Childrens Services,2.5,Materials & Consumables,1920Oct_PC00302
Sandwell Metropolitan Borough Council,http://www.sandwell.gov.uk/info/200202/performance_and_spending/3233/government_procurement_cards,17-Oct-19,Childrens Services,Trainline,Childrens Services,226.75,Fostering-Gov't Dept's,1920Oct_PC00303
Sandwell Metropolitan Borough Council,http://www.sandwell.gov.uk/info/200202/performance_and_spending/3233/government_procurement_cards,17-Oct-19,Regeneration & Growth,Trainline,Regeneration And The Economy,29.76,Public Transport,1920Oct_PC00304
Sandwell Metropolitan Borough Council,http://www.sandwell.gov.uk/info/200202/performance_and_spending/3233/government_procurement_cards,17-Oct-19,Resources (Inc SIU),MAILCHIMP    MISC,Assistant Chief Executive (Excl SIU),72.5,ICT,1920Oct_PC00305
Sandwell Metropolitan Borough Council,http://www.sandwell.gov.uk/info/200202/performance_and_spending/3233/government_procurement_cards,17-Oct-19,Total Housing Revenue Account,OFFICE DEPOT UK,Total Housing Revenue Account,63.63,Printing Stationery&Gen Office,1920Oct_PC00306
Sandwell Metropolitan Borough Council,http://www.sandwell.gov.uk/info/200202/performance_and_spending/3233/government_procurement_cards,17-Oct-19,Childrens Services,Trainline,Childrens Services,5.25,Public Transport,1920Oct_PC00307
Sandwell Metropolitan Borough Council,http://www.sandwell.gov.uk/info/200202/performance_and_spending/3233/government_procurement_cards,17-Oct-19,Childrens Services,Trainline,Childrens Services,197.75,Public Transport,1920Oct_PC00308
Sandwell Metropolitan Borough Council,http://www.sandwell.gov.uk/info/200202/performance_and_spending/3233/government_procurement_cards,17-Oct-19,Dead Capital 1,ARGOS OLDBURY,Total Adult Social Care,5,Materials & Consumables,1920Oct_PC00309
Sandwell Metropolitan Borough Council,http://www.sandwell.gov.uk/info/200202/performance_and_spending/3233/government_procurement_cards,17-Oct-19,Childrens Services,WWW.THECONSORTIUM/WMS,Childrens Services,106.01,Materials & Consumables,1920Oct_PC00310
Sandwell Metropolitan Borough Council,http://www.sandwell.gov.uk/info/200202/performance_and_spending/3233/government_procurement_cards,17-Oct-19,Dead Capital 1,SAINSBURYS SACAT0558,Total Adult Social Care,8.5,Materials & Consumables,1920Oct_PC00311
Sandwell Metropolitan Borough Council,http://www.sandwell.gov.uk/info/200202/performance_and_spending/3233/government_procurement_cards,17-Oct-19,Childrens Services,GEN REGISTER OFFICE,Childrens Services,45.25,Adoption-Gov't Dept's,1920Oct_PC00312
Sandwell Metropolitan Borough Council,http://www.sandwell.gov.uk/info/200202/performance_and_spending/3233/government_procurement_cards,18-Oct-19,Individual School Budgets With Inclusion,FURNITURE@WORK LIMITED,Individual School Budgets With Inclusion,134.8,Equipment & Furniture,1920Oct_PC00313
Sandwell Metropolitan Borough Council,http://www.sandwell.gov.uk/info/200202/performance_and_spending/3233/government_procurement_cards,18-Oct-19,Individual School Budgets With Inclusion,FURNITURE@WORK LIMITED,Individual School Budgets With Inclusion,134.8,Equipment & Furniture,1920Oct_PC00314
Sandwell Metropolitan Borough Council,http://www.sandwell.gov.uk/info/200202/performance_and_spending/3233/government_procurement_cards,18-Oct-19,Total Housing Revenue Account,STAFFORDSHIRE BLDS SUP,Total Housing Revenue Account,15.12,Materials & Consumables,1920Oct_PC00315
Sandwell Metropolitan Borough Council,http://www.sandwell.gov.uk/info/200202/performance_and_spending/3233/government_procurement_cards,18-Oct-19,Regeneration & Growth,AMZNMktplace,Regeneration And The Economy,19.07,Printing Stationery&Gen Office,1920Oct_PC00316
Sandwell Metropolitan Borough Council,http://www.sandwell.gov.uk/info/200202/performance_and_spending/3233/government_procurement_cards,18-Oct-19,Leaving Care Team 4,SAINSBURYS SACAT 0541,Leaving Care Team 4,4.5,Refuse Collection,1920Oct_PC00317
Sandwell Metropolitan Borough Council,http://www.sandwell.gov.uk/info/200202/performance_and_spending/3233/government_procurement_cards,18-Oct-19,Total Housing Revenue Account,AMZNMktplace,Total Housing Revenue Account,94.95,Equipment & Furniture,1920Oct_PC00318
Sandwell Metropolitan Borough Council,http://www.sandwell.gov.uk/info/200202/performance_and_spending/3233/government_procurement_cards,18-Oct-19,Regeneration & Growth,TIMPSON LTD,Regeneration And The Economy,8.33,Equipment & Furniture,1920Oct_PC00319
Sandwell Metropolitan Borough Council,http://www.sandwell.gov.uk/info/200202/performance_and_spending/3233/government_procurement_cards,18-Oct-19,Total Housing Revenue Account,WWW.BALLICOM.CO.UK,Total Housing Revenue Account,19.62,ICT,1920Oct_PC00320
Sandwell Metropolitan Borough Council,http://www.sandwell.gov.uk/info/200202/performance_and_spending/3233/government_procurement_cards,18-Oct-19,Childrens Services,ARGOS RETAIL GROUP,Childrens Services,58.32,Equipment & Furniture,1920Oct_PC00321
Sandwell Metropolitan Borough Council,http://www.sandwell.gov.uk/info/200202/performance_and_spending/3233/government_procurement_cards,18-Oct-19,Housing & Communities,INFORMA UK ECOM GB,Neighbourhoods,32,Materials & Consumables,1920Oct_PC00322
Sandwell Metropolitan Borough Council,http://www.sandwell.gov.uk/info/200202/performance_and_spending/3233/government_procurement_cards,18-Oct-19,Regeneration & Growth,Amazon.co.uk MO2XP7VL4,Regeneration And The Economy,22.47,Fixtures & Fittings,1920Oct_PC00323
Sandwell Metropolitan Borough Council,http://www.sandwell.gov.uk/info/200202/performance_and_spending/3233/government_procurement_cards,18-Oct-19,Leaving Care Team 4,HOME APPLIANCE,Leaving Care Team 4,425,Equipment & Furniture,1920Oct_PC00324
Sandwell Metropolitan Borough Council,http://www.sandwell.gov.uk/info/200202/performance_and_spending/3233/government_procurement_cards,18-Oct-19,Leaving Care Team 4,HOME APPLIANCE,Leaving Care Team 4,141.67,Equipment & Furniture,1920Oct_PC00325
Sandwell Metropolitan Borough Council,http://www.sandwell.gov.uk/info/200202/performance_and_spending/3233/government_procurement_cards,18-Oct-19,Leaving Care Team 4,HOME APPLIANCE,Leaving Care Team 4,133.33,Equipment & Furniture,1920Oct_PC00326
Sandwell Metropolitan Borough Council,http://www.sandwell.gov.uk/info/200202/performance_and_spending/3233/government_procurement_cards,18-Oct-19,Dead Capital 1,TRAVELODGE,Total Adult Social Care,279.98,Conference Expenses,1920Oct_PC00327
Sandwell Metropolitan Borough Council,http://www.sandwell.gov.uk/info/200202/performance_and_spending/3233/government_procurement_cards,18-Oct-19,Housing & Communities,AMZNMktplace,Neighbourhoods,18.32,R & M - Security,1920Oct_PC00328
Sandwell Metropolitan Borough Council,http://www.sandwell.gov.uk/info/200202/performance_and_spending/3233/government_procurement_cards,18-Oct-19,Housing & Communities,PAYPAL  NATIONWIDES,Neighbourhoods,337.5,Ind. Emp Exp-Emp. Welfare,1920Oct_PC00329
Sandwell Metropolitan Borough Council,http://www.sandwell.gov.uk/info/200202/performance_and_spending/3233/government_procurement_cards,18-Oct-19,Resources (Inc SIU),Q PARK BIRMINGHAM BRIN,Assistant Chief Executive (Excl SIU),7.5,Car Parking,1920Oct_PC00330
Sandwell Metropolitan Borough Council,http://www.sandwell.gov.uk/info/200202/performance_and_spending/3233/government_procurement_cards,18-Oct-19,Childrens Services,WWW.ARGOS.CO.UK,Childrens Services,69.12,Equipment & Furniture,1920Oct_PC00331
Sandwell Metropolitan Borough Council,http://www.sandwell.gov.uk/info/200202/performance_and_spending/3233/government_procurement_cards,18-Oct-19,Childrens Services,WWW.ARGOS.CO.UK,Childrens Services,46.62,Equipment & Furniture,1920Oct_PC00332
Sandwell Metropolitan Borough Council,http://www.sandwell.gov.uk/info/200202/performance_and_spending/3233/government_procurement_cards,18-Oct-19,Housing & Communities,AMZNMktplace,Neighbourhoods,10.37,R& M - Building Maint&Imp.,1920Oct_PC00333
Sandwell Metropolitan Borough Council,http://www.sandwell.gov.uk/info/200202/performance_and_spending/3233/government_procurement_cards,18-Oct-19,Childrens Services,AMZNMktplace,Childrens Services,50.28,Grounds Maint&Improvements,1920Oct_PC00334
Sandwell Metropolitan Borough Council,http://www.sandwell.gov.uk/info/200202/performance_and_spending/3233/government_procurement_cards,18-Oct-19,Individual School Budgets With Inclusion,Amazon.co.uk MO7TZ3XV4,Individual School Budgets With Inclusion,29.8,Materials & Consumables,1920Oct_PC00335
Sandwell Metropolitan Borough Council,http://www.sandwell.gov.uk/info/200202/performance_and_spending/3233/government_procurement_cards,18-Oct-19,Total Housing Revenue Account,AMZNMktplace,Total Housing Revenue Account,29.98,Telephones,1920Oct_PC00336
Sandwell Metropolitan Borough Council,http://www.sandwell.gov.uk/info/200202/performance_and_spending/3233/government_procurement_cards,18-Oct-19,Childrens Services,TRAVELODGE,Childrens Services,43.12,Residential - Short Term,1920Oct_PC00337
Sandwell Metropolitan Borough Council,http://www.sandwell.gov.uk/info/200202/performance_and_spending/3233/government_procurement_cards,18-Oct-19,Childrens Services,AMZNMktplace,Childrens Services,32.47,Printing Stationery&Gen Office,1920Oct_PC00338
Sandwell Metropolitan Borough Council,http://www.sandwell.gov.uk/info/200202/performance_and_spending/3233/government_procurement_cards,18-Oct-19,Childrens Services,OFFICE DEPOT UK,Childrens Services,-1.98,Printing Stationery&Gen Office,1920Oct_PC00339
Sandwell Metropolitan Borough Council,http://www.sandwell.gov.uk/info/200202/performance_and_spending/3233/government_procurement_cards,18-Oct-19,Resources (Inc SIU),AMZNMKTPLACE AMAZON.CO,Assistant Chief Executive (Excl SIU),50,Printing Stationery&Gen Office,1920Oct_PC00340
Sandwell Metropolitan Borough Council,http://www.sandwell.gov.uk/info/200202/performance_and_spending/3233/government_procurement_cards,18-Oct-19,Housing & Communities,OFFICE DEPOT UK,Neighbourhoods,5.85,Materials & Consumables,1920Oct_PC00341
Sandwell Metropolitan Borough Council,http://www.sandwell.gov.uk/info/200202/performance_and_spending/3233/government_procurement_cards,18-Oct-19,Individual School Budgets With Inclusion,OFFICE DEPOT UK,Individual School Budgets With Inclusion,257.59,Printing Stationery&Gen Office,1920Oct_PC00342
Sandwell Metropolitan Borough Council,http://www.sandwell.gov.uk/info/200202/performance_and_spending/3233/government_procurement_cards,18-Oct-19,Total Housing Revenue Account,OFFICE DEPOT UK,Total Housing Revenue Account,31.15,Printing Stationery&Gen Office,1920Oct_PC00343
Sandwell Metropolitan Borough Council,http://www.sandwell.gov.uk/info/200202/performance_and_spending/3233/government_procurement_cards,18-Oct-19,Housing & Communities,TESCO STORES 2335,Neighbourhoods,33,Catering Provisions,1920Oct_PC00344
Sandwell Metropolitan Borough Council,http://www.sandwell.gov.uk/info/200202/performance_and_spending/3233/government_procurement_cards,18-Oct-19,Resources (Inc SIU),WEST MIDLANDS METRO,Assistant Chief Executive (Excl SIU),5.5,Public Transport,1920Oct_PC00345
Sandwell Metropolitan Borough Council,http://www.sandwell.gov.uk/info/200202/performance_and_spending/3233/government_procurement_cards,18-Oct-19,Resources (Inc SIU),MAILCHIMP    MISC,Assistant Chief Executive (Excl SIU),238.05,ICT,1920Oct_PC00346
Sandwell Metropolitan Borough Council,http://www.sandwell.gov.uk/info/200202/performance_and_spending/3233/government_procurement_cards,18-Oct-19,Individual School Budgets With Inclusion,RONTEC DUDLEY PORT,Individual School Budgets With Inclusion,5.4,Catering Provisions,1920Oct_PC00347
Sandwell Metropolitan Borough Council,http://www.sandwell.gov.uk/info/200202/performance_and_spending/3233/government_procurement_cards,18-Oct-19,Resources (Inc SIU),ARGOS OLDBURY,Assistant Chief Executive (Excl SIU),18,Catering Provisions,1920Oct_PC00348
Sandwell Metropolitan Borough Council,http://www.sandwell.gov.uk/info/200202/performance_and_spending/3233/government_procurement_cards,18-Oct-19,Regeneration & Growth,SAINSBURYS SACAT0558,Regeneration And The Economy,11,Catering Provisions,1920Oct_PC00349
Sandwell Metropolitan Borough Council,http://www.sandwell.gov.uk/info/200202/performance_and_spending/3233/government_procurement_cards,18-Oct-19,Housing & Communities,HERON FOODS LTD,Neighbourhoods,5,Materials & Consumables,1920Oct_PC00350
Sandwell Metropolitan Borough Council,http://www.sandwell.gov.uk/info/200202/performance_and_spending/3233/government_procurement_cards,18-Oct-19,Housing & Communities,Trainline.com,Neighbourhoods,79.36,Public Transport,1920Oct_PC00351
Sandwell Metropolitan Borough Council,http://www.sandwell.gov.uk/info/200202/performance_and_spending/3233/government_procurement_cards,18-Oct-19,Dead Capital 1,LONDON BOROUGH OF,Total Adult Social Care,35,Professional Services External,1920Oct_PC00352
Sandwell Metropolitan Borough Council,http://www.sandwell.gov.uk/info/200202/performance_and_spending/3233/government_procurement_cards,18-Oct-19,Resources (Inc SIU),AMZNMktplace,Assistant Chief Executive (Excl SIU),11.48,Printing Stationery&Gen Office,1920Oct_PC00353
Sandwell Metropolitan Borough Council,http://www.sandwell.gov.uk/info/200202/performance_and_spending/3233/government_procurement_cards,21-Oct-19,Childrens Services,WWW.ARGOS.CO.UK,Childrens Services,286.61,Equipment & Furniture,1920Oct_PC00354
Sandwell Metropolitan Borough Council,http://www.sandwell.gov.uk/info/200202/performance_and_spending/3233/government_procurement_cards,21-Oct-19,Total Housing Revenue Account,THE PROPERTY CARE,Total Housing Revenue Account,750,Ind. Emp Exp-Staff Dev&Training,1920Oct_PC00355
Sandwell Metropolitan Borough Council,http://www.sandwell.gov.uk/info/200202/performance_and_spending/3233/government_procurement_cards,21-Oct-19,Childrens Services,ARGOS RETAIL GROUP,Childrens Services,166.66,Printing Stationery&Gen Office,1920Oct_PC00356
Sandwell Metropolitan Borough Council,http://www.sandwell.gov.uk/info/200202/performance_and_spending/3233/government_procurement_cards,21-Oct-19,Childrens Services,ASDA STORES LTD 5865,Childrens Services,2.32,Materials & Consumables,1920Oct_PC00357
Sandwell Metropolitan Borough Council,http://www.sandwell.gov.uk/info/200202/performance_and_spending/3233/government_procurement_cards,21-Oct-19,Resources (Inc SIU),CHEMDRY EXCEL,Assistant Chief Executive (Excl SIU),415.83,Contract Cleaning,1920Oct_PC00358
Sandwell Metropolitan Borough Council,http://www.sandwell.gov.uk/info/200202/performance_and_spending/3233/government_procurement_cards,21-Oct-19,Resources (Inc SIU),CHEMDRY EXCEL,Assistant Chief Executive (Excl SIU),408.67,Contract Cleaning,1920Oct_PC00359
Sandwell Metropolitan Borough Council,http://www.sandwell.gov.uk/info/200202/performance_and_spending/3233/government_procurement_cards,21-Oct-19,Childrens Services,CURRYS ONLINE,Childrens Services,128.33,Equipment & Furniture,1920Oct_PC00360
Sandwell Metropolitan Borough Council,http://www.sandwell.gov.uk/info/200202/performance_and_spending/3233/government_procurement_cards,21-Oct-19,Childrens Services,Klarna  abakusdirect c,Childrens Services,291.66,Equipment & Furniture,1920Oct_PC00361
Sandwell Metropolitan Borough Council,http://www.sandwell.gov.uk/info/200202/performance_and_spending/3233/government_procurement_cards,21-Oct-19,Childrens Services,WWW.ARGOS.CO.UK,Childrens Services,332.49,Equipment & Furniture,1920Oct_PC00362
Sandwell Metropolitan Borough Council,http://www.sandwell.gov.uk/info/200202/performance_and_spending/3233/government_procurement_cards,21-Oct-19,Resources (Inc SIU),Amazon Prime MO1VA5M74,Assistant Chief Executive (Excl SIU),6.66,Printing Stationery&Gen Office,1920Oct_PC00363
Sandwell Metropolitan Borough Council,http://www.sandwell.gov.uk/info/200202/performance_and_spending/3233/government_procurement_cards,21-Oct-19,Resources (Inc SIU),AMZNMKTPLACE AMAZON.CO,Assistant Chief Executive (Excl SIU),7.49,Equipment & Furniture,1920Oct_PC00364
Sandwell Metropolitan Borough Council,http://www.sandwell.gov.uk/info/200202/performance_and_spending/3233/government_procurement_cards,21-Oct-19,Total Housing Revenue Account,AMZNMKTPLACE AMAZON.CO,Total Housing Revenue Account,28.75,Equipment & Furniture,1920Oct_PC00365
Sandwell Metropolitan Borough Council,http://www.sandwell.gov.uk/info/200202/performance_and_spending/3233/government_procurement_cards,21-Oct-19,Housing & Communities,THE SALVATION ARMY,Neighbourhoods,2.08,Civic Events,1920Oct_PC00366
Sandwell Metropolitan Borough Council,http://www.sandwell.gov.uk/info/200202/performance_and_spending/3233/government_procurement_cards,21-Oct-19,Childrens Services,Trainline,Childrens Services,389.5,Public Transport,1920Oct_PC00367
Sandwell Metropolitan Borough Council,http://www.sandwell.gov.uk/info/200202/performance_and_spending/3233/government_procurement_cards,21-Oct-19,Regeneration & Growth,OFFICE DEPOT UK,Regeneration And The Economy,97.61,Printing Stationery&Gen Office,1920Oct_PC00368
Sandwell Metropolitan Borough Council,http://www.sandwell.gov.uk/info/200202/performance_and_spending/3233/government_procurement_cards,21-Oct-19,Dead Capital 1,Trainline,Total Adult Social Care,93.7,Public Transport,1920Oct_PC00369
Sandwell Metropolitan Borough Council,http://www.sandwell.gov.uk/info/200202/performance_and_spending/3233/government_procurement_cards,21-Oct-19,Childrens Services,Trainline,Childrens Services,157.75,Public Transport,1920Oct_PC00370
Sandwell Metropolitan Borough Council,http://www.sandwell.gov.uk/info/200202/performance_and_spending/3233/government_procurement_cards,21-Oct-19,Childrens Services,Trainline,Childrens Services,126.5,Public Transport,1920Oct_PC00371
Sandwell Metropolitan Borough Council,http://www.sandwell.gov.uk/info/200202/performance_and_spending/3233/government_procurement_cards,21-Oct-19,Dead Capital 1,Trainline,Total Adult Social Care,9.35,Public Transport,1920Oct_PC00372
Sandwell Metropolitan Borough Council,http://www.sandwell.gov.uk/info/200202/performance_and_spending/3233/government_procurement_cards,21-Oct-19,Individual School Budgets With Inclusion,SANDWELL & DUD SST,Individual School Budgets With Inclusion,26.55,Public Transport,1920Oct_PC00373
Sandwell Metropolitan Borough Council,http://www.sandwell.gov.uk/info/200202/performance_and_spending/3233/government_procurement_cards,21-Oct-19,Individual School Budgets With Inclusion,POUNDLAND LTD 1463,Individual School Budgets With Inclusion,3.34,Catering Provisions,1920Oct_PC00374
Sandwell Metropolitan Borough Council,http://www.sandwell.gov.uk/info/200202/performance_and_spending/3233/government_procurement_cards,21-Oct-19,Childrens Services,Trainline,Childrens Services,49.75,Public Transport,1920Oct_PC00375
Sandwell Metropolitan Borough Council,http://www.sandwell.gov.uk/info/200202/performance_and_spending/3233/government_procurement_cards,21-Oct-19,Childrens Services,ASDA STORES LTD 5865,Childrens Services,5,Materials & Consumables,1920Oct_PC00376
Sandwell Metropolitan Borough Council,http://www.sandwell.gov.uk/info/200202/performance_and_spending/3233/government_procurement_cards,21-Oct-19,Housing & Communities,ROYAL MAIL,Neighbourhoods,552.15,Materials & Consumables,1920Oct_PC00377
Sandwell Metropolitan Borough Council,http://www.sandwell.gov.uk/info/200202/performance_and_spending/3233/government_procurement_cards,21-Oct-19,Childrens Services,Trainline,Childrens Services,12.45,Public Transport,1920Oct_PC00378
Sandwell Metropolitan Borough Council,http://www.sandwell.gov.uk/info/200202/performance_and_spending/3233/government_procurement_cards,21-Oct-19,Childrens Services,WWW.THECONSORTIUM/WMS,Childrens Services,54.54,Equipment & Furniture,1920Oct_PC00379
Sandwell Metropolitan Borough Council,http://www.sandwell.gov.uk/info/200202/performance_and_spending/3233/government_procurement_cards,22-Oct-19,Resources (Inc SIU),PAYPAL  PAULINELAWL,Assistant Chief Executive (Excl SIU),10,Printing Stationery&Gen Office,1920Oct_PC00380
Sandwell Metropolitan Borough Council,http://www.sandwell.gov.uk/info/200202/performance_and_spending/3233/government_procurement_cards,22-Oct-19,Childrens Services,SNOWDONIA WATERSPO,Childrens Services,96.67,Protective Clothing&Uniforms,1920Oct_PC00381
Sandwell Metropolitan Borough Council,http://www.sandwell.gov.uk/info/200202/performance_and_spending/3233/government_procurement_cards,22-Oct-19,Adult Social Care Health and Wellbeing - Total,The Plastic Box Compan,Public Health,45.25,Printing Stationery&Gen Office,1920Oct_PC00382
Sandwell Metropolitan Borough Council,http://www.sandwell.gov.uk/info/200202/performance_and_spending/3233/government_procurement_cards,22-Oct-19,Total Housing Revenue Account,HAMPSHIREFL,Total Housing Revenue Account,60.49,Materials & Consumables,1920Oct_PC00383
Sandwell Metropolitan Borough Council,http://www.sandwell.gov.uk/info/200202/performance_and_spending/3233/government_procurement_cards,22-Oct-19,Dead Capital 1,AMZNMKTPLACE AMAZON.CO,Total Adult Social Care,44.98,ICT,1920Oct_PC00384
Sandwell Metropolitan Borough Council,http://www.sandwell.gov.uk/info/200202/performance_and_spending/3233/government_procurement_cards,22-Oct-19,Childrens Services,ASDA STORES LTD 5865,Childrens Services,3.46,Materials & Consumables,1920Oct_PC00385
Sandwell Metropolitan Borough Council,http://www.sandwell.gov.uk/info/200202/performance_and_spending/3233/government_procurement_cards,22-Oct-19,Housing & Communities,WM MORRISONS STORE,Neighbourhoods,8.05,Civic Events,1920Oct_PC00386
Sandwell Metropolitan Borough Council,http://www.sandwell.gov.uk/info/200202/performance_and_spending/3233/government_procurement_cards,22-Oct-19,Dead Capital 1,SAINSBURYS SACAT0558,Total Adult Social Care,3.12,Materials & Consumables,1920Oct_PC00387
Sandwell Metropolitan Borough Council,http://www.sandwell.gov.uk/info/200202/performance_and_spending/3233/government_procurement_cards,22-Oct-19,Total Housing Revenue Account,AMZNMktplace,Total Housing Revenue Account,20.72,Materials & Consumables,1920Oct_PC00388
Sandwell Metropolitan Borough Council,http://www.sandwell.gov.uk/info/200202/performance_and_spending/3233/government_procurement_cards,22-Oct-19,Childrens Services,AMZNMKTPLACE AMAZON.CO,Childrens Services,11.37,Equipment & Furniture,1920Oct_PC00389
Sandwell Metropolitan Borough Council,http://www.sandwell.gov.uk/info/200202/performance_and_spending/3233/government_procurement_cards,22-Oct-19,Total Housing Revenue Account,OFFICE DEPOT UK,Total Housing Revenue Account,37.29,Printing Stationery&Gen Office,1920Oct_PC00390
Sandwell Metropolitan Borough Council,http://www.sandwell.gov.uk/info/200202/performance_and_spending/3233/government_procurement_cards,22-Oct-19,Total Housing Revenue Account,OFFICE DEPOT UK,Total Housing Revenue Account,0.95,Printing Stationery&Gen Office,1920Oct_PC00391
Sandwell Metropolitan Borough Council,http://www.sandwell.gov.uk/info/200202/performance_and_spending/3233/government_procurement_cards,22-Oct-19,Housing & Communities,W M MORRISONS.COM,Neighbourhoods,55.95,Catering Provisions,1920Oct_PC00392
Sandwell Metropolitan Borough Council,http://www.sandwell.gov.uk/info/200202/performance_and_spending/3233/government_procurement_cards,22-Oct-19,Childrens Services,Trainline,Childrens Services,-21.4,Public Transport,1920Oct_PC00393
Sandwell Metropolitan Borough Council,http://www.sandwell.gov.uk/info/200202/performance_and_spending/3233/government_procurement_cards,22-Oct-19,Regeneration & Growth,CHESTER ROAD SST,Regeneration And The Economy,4.8,Public Transport,1920Oct_PC00394
Sandwell Metropolitan Borough Council,http://www.sandwell.gov.uk/info/200202/performance_and_spending/3233/government_procurement_cards,22-Oct-19,Housing & Communities,Amazon.co.uk MO2GP0MP4,Neighbourhoods,39.79,Materials & Consumables,1920Oct_PC00395
Sandwell Metropolitan Borough Council,http://www.sandwell.gov.uk/info/200202/performance_and_spending/3233/government_procurement_cards,22-Oct-19,Housing & Communities,AMZNMktplace,Neighbourhoods,31.68,Materials & Consumables,1920Oct_PC00396
Sandwell Metropolitan Borough Council,http://www.sandwell.gov.uk/info/200202/performance_and_spending/3233/government_procurement_cards,22-Oct-19,Childrens Services,ASDA STORES LTD 5865,Childrens Services,1.58,Materials & Consumables,1920Oct_PC00397
Sandwell Metropolitan Borough Council,http://www.sandwell.gov.uk/info/200202/performance_and_spending/3233/government_procurement_cards,22-Oct-19,Housing & Communities,AMZNMktplace,Neighbourhoods,57.47,Materials & Consumables,1920Oct_PC00398
Sandwell Metropolitan Borough Council,http://www.sandwell.gov.uk/info/200202/performance_and_spending/3233/government_procurement_cards,22-Oct-19,Childrens Services,Trainline,Childrens Services,189.9,Public Transport,1920Oct_PC00399
Sandwell Metropolitan Borough Council,http://www.sandwell.gov.uk/info/200202/performance_and_spending/3233/government_procurement_cards,22-Oct-19,Childrens Services,Trainline,Childrens Services,28.45,Public Transport,1920Oct_PC00400
Sandwell Metropolitan Borough Council,http://www.sandwell.gov.uk/info/200202/performance_and_spending/3233/government_procurement_cards,22-Oct-19,Childrens Services,Trainline,Childrens Services,11.85,Public Transport,1920Oct_PC00401
Sandwell Metropolitan Borough Council,http://www.sandwell.gov.uk/info/200202/performance_and_spending/3233/government_procurement_cards,23-Oct-19,Housing & Communities,SANDWELL M.B.C.,Neighbourhoods,17.5,Premises Insurance,1920Oct_PC00402
Sandwell Metropolitan Borough Council,http://www.sandwell.gov.uk/info/200202/performance_and_spending/3233/government_procurement_cards,23-Oct-19,Regeneration & Growth,EMAP Publishing Ltd,Regeneration And The Economy,180.25,Printing Stationery&Gen Office,1920Oct_PC00403
Sandwell Metropolitan Borough Council,http://www.sandwell.gov.uk/info/200202/performance_and_spending/3233/government_procurement_cards,23-Oct-19,Resources (Inc SIU),AMZNMktplace,Assistant Chief Executive (Excl SIU),10.79,Printing Stationery&Gen Office,1920Oct_PC00404
Sandwell Metropolitan Borough Council,http://www.sandwell.gov.uk/info/200202/performance_and_spending/3233/government_procurement_cards,23-Oct-19,Housing & Communities,POUNDLAND LTD 1093,Neighbourhoods,15.83,Materials & Consumables,1920Oct_PC00405
Sandwell Metropolitan Borough Council,http://www.sandwell.gov.uk/info/200202/performance_and_spending/3233/government_procurement_cards,23-Oct-19,Dead Capital 1,ACTICARE,Total Adult Social Care,41,Printing Stationery&Gen Office,1920Oct_PC00406
Sandwell Metropolitan Borough Council,http://www.sandwell.gov.uk/info/200202/performance_and_spending/3233/government_procurement_cards,23-Oct-19,Childrens Services,AMZNMKTPLACE AMAZON.CO,Childrens Services,24.98,Equipment & Furniture,1920Oct_PC00407
Sandwell Metropolitan Borough Council,http://www.sandwell.gov.uk/info/200202/performance_and_spending/3233/government_procurement_cards,23-Oct-19,Housing & Communities,SAINSBURYS 0558,Neighbourhoods,121.92,R& M - Building Maint&Imp.,1920Oct_PC00408
Sandwell Metropolitan Borough Council,http://www.sandwell.gov.uk/info/200202/performance_and_spending/3233/government_procurement_cards,23-Oct-19,Housing & Communities,OFFICE DEPOT UK,Neighbourhoods,4.05,Printing Stationery&Gen Office,1920Oct_PC00409
Sandwell Metropolitan Borough Council,http://www.sandwell.gov.uk/info/200202/performance_and_spending/3233/government_procurement_cards,23-Oct-19,Regeneration & Growth,OFFICE DEPOT UK,Regeneration And The Economy,17.15,Equipment & Furniture,1920Oct_PC00410
Sandwell Metropolitan Borough Council,http://www.sandwell.gov.uk/info/200202/performance_and_spending/3233/government_procurement_cards,23-Oct-19,Housing & Communities,Trainline.com,Neighbourhoods,73.87,Public Transport,1920Oct_PC00411
Sandwell Metropolitan Borough Council,http://www.sandwell.gov.uk/info/200202/performance_and_spending/3233/government_procurement_cards,23-Oct-19,Housing & Communities,Trainline.com,Neighbourhoods,6.56,Public Transport,1920Oct_PC00412
Sandwell Metropolitan Borough Council,http://www.sandwell.gov.uk/info/200202/performance_and_spending/3233/government_procurement_cards,23-Oct-19,Housing & Communities,WM MORRISONS STORE,Neighbourhoods,20,Materials & Consumables,1920Oct_PC00413
Sandwell Metropolitan Borough Council,http://www.sandwell.gov.uk/info/200202/performance_and_spending/3233/government_procurement_cards,23-Oct-19,Adult Social Care Health and Wellbeing - Total,AMZNMKTPLACE AMAZON.CO,Public Health,36.98,Printing Stationery&Gen Office,1920Oct_PC00414
Sandwell Metropolitan Borough Council,http://www.sandwell.gov.uk/info/200202/performance_and_spending/3233/government_procurement_cards,23-Oct-19,Resources (Inc SIU),Trainline.com,Assistant Chief Executive (Excl SIU),47.26,Public Transport,1920Oct_PC00415
Sandwell Metropolitan Borough Council,http://www.sandwell.gov.uk/info/200202/performance_and_spending/3233/government_procurement_cards,23-Oct-19,Regeneration & Growth,Amazon.co.uk MO7S70H64,Regeneration And The Economy,16.57,Ind. Emp Exp-Staff Dev&Training,1920Oct_PC00416
Sandwell Metropolitan Borough Council,http://www.sandwell.gov.uk/info/200202/performance_and_spending/3233/government_procurement_cards,23-Oct-19,Childrens Services,GEN REGISTER OFFICE,Childrens Services,94,Fostering-Gov't Dept's,1920Oct_PC00417
Sandwell Metropolitan Borough Council,http://www.sandwell.gov.uk/info/200202/performance_and_spending/3233/government_procurement_cards,23-Oct-19,Childrens Services,BCC REGISTER OFFIC,Childrens Services,47,Fostering-Gov't Dept's,1920Oct_PC00418
Sandwell Metropolitan Borough Council,http://www.sandwell.gov.uk/info/200202/performance_and_spending/3233/government_procurement_cards,23-Oct-19,Individual School Budgets With Inclusion,DYSLEXIA SHOW,Individual School Budgets With Inclusion,43.2,Ind. Emp Exp-Staff Dev&Training,1920Oct_PC00419
Sandwell Metropolitan Borough Council,http://www.sandwell.gov.uk/info/200202/performance_and_spending/3233/government_procurement_cards,23-Oct-19,Individual School Budgets With Inclusion,DYSLEXIA SHOW,Individual School Budgets With Inclusion,21.6,Ind. Emp Exp-Staff Dev&Training,1920Oct_PC00420
Sandwell Metropolitan Borough Council,http://www.sandwell.gov.uk/info/200202/performance_and_spending/3233/government_procurement_cards,23-Oct-19,Individual School Budgets With Inclusion,DYSLEXIA SHOW,Individual School Budgets With Inclusion,21.6,Ind. Emp Exp-Staff Dev&Training,1920Oct_PC00421
Sandwell Metropolitan Borough Council,http://www.sandwell.gov.uk/info/200202/performance_and_spending/3233/government_procurement_cards,23-Oct-19,Childrens Services,Trainline,Childrens Services,133.65,Public Transport,1920Oct_PC00422
Sandwell Metropolitan Borough Council,http://www.sandwell.gov.uk/info/200202/performance_and_spending/3233/government_procurement_cards,24-Oct-19,Resources (Inc SIU),PREMIER INN,Assistant Chief Executive (Excl SIU),419.12,Rent Allowances Local Scheme,1920Oct_PC00423
Sandwell Metropolitan Borough Council,http://www.sandwell.gov.uk/info/200202/performance_and_spending/3233/government_procurement_cards,24-Oct-19,Housing & Communities,AMZNMktplace,Neighbourhoods,19.83,R& M - Building Maint&Imp.,1920Oct_PC00424
Sandwell Metropolitan Borough Council,http://www.sandwell.gov.uk/info/200202/performance_and_spending/3233/government_procurement_cards,24-Oct-19,Dead Capital 1,PAYPAL  EBAY MEGABROKE,Total Adult Social Care,10.79,Printing Stationery&Gen Office,1920Oct_PC00425
Sandwell Metropolitan Borough Council,http://www.sandwell.gov.uk/info/200202/performance_and_spending/3233/government_procurement_cards,24-Oct-19,Dead Capital 1,PAYPAL  EBAY CIRCUITPL,Total Adult Social Care,4.47,Telephones,1920Oct_PC00426
Sandwell Metropolitan Borough Council,http://www.sandwell.gov.uk/info/200202/performance_and_spending/3233/government_procurement_cards,24-Oct-19,Dead Capital 1,PAYPAL  EBAY ZHANGQING,Total Adult Social Care,29.95,Materials & Consumables,1920Oct_PC00427
Sandwell Metropolitan Borough Council,http://www.sandwell.gov.uk/info/200202/performance_and_spending/3233/government_procurement_cards,24-Oct-19,Dead Capital 1,PAYPAL  EBAY VIBEONLIN,Total Adult Social Care,2.71,Printing Stationery&Gen Office,1920Oct_PC00428
Sandwell Metropolitan Borough Council,http://www.sandwell.gov.uk/info/200202/performance_and_spending/3233/government_procurement_cards,24-Oct-19,Housing & Communities,Trainline.com,Neighbourhoods,33.49,Public Transport,1920Oct_PC00429
Sandwell Metropolitan Borough Council,http://www.sandwell.gov.uk/info/200202/performance_and_spending/3233/government_procurement_cards,24-Oct-19,Dead Capital 1,POUNDLAND LTD 1729,Total Adult Social Care,15.83,Materials & Consumables,1920Oct_PC00430
Sandwell Metropolitan Borough Council,http://www.sandwell.gov.uk/info/200202/performance_and_spending/3233/government_procurement_cards,24-Oct-19,Adult Social Care Health and Wellbeing - Total,AMZNMktplace,Public Health,18.14,Printing Stationery&Gen Office,1920Oct_PC00431
Sandwell Metropolitan Borough Council,http://www.sandwell.gov.uk/info/200202/performance_and_spending/3233/government_procurement_cards,24-Oct-19,Childrens Services,HPSALESANDLETTINGS,Childrens Services,250,Tenants Expenses,1920Oct_PC00432
Sandwell Metropolitan Borough Council,http://www.sandwell.gov.uk/info/200202/performance_and_spending/3233/government_procurement_cards,24-Oct-19,Housing & Communities,AMZNMktplace,Neighbourhoods,27.49,Materials & Consumables,1920Oct_PC00433
Sandwell Metropolitan Borough Council,http://www.sandwell.gov.uk/info/200202/performance_and_spending/3233/government_procurement_cards,24-Oct-19,Childrens Services,HANDY DRY CLEANERS,Childrens Services,38.33,Laundry,1920Oct_PC00434
Sandwell Metropolitan Borough Council,http://www.sandwell.gov.uk/info/200202/performance_and_spending/3233/government_procurement_cards,24-Oct-19,Regeneration & Growth,ARGOS OLDBURY,Regeneration And The Economy,24.97,Printing Stationery&Gen Office,1920Oct_PC00435
Sandwell Metropolitan Borough Council,http://www.sandwell.gov.uk/info/200202/performance_and_spending/3233/government_procurement_cards,24-Oct-19,Regeneration & Growth,ARGOS OLDBURY,Regeneration And The Economy,24.99,Printing Stationery&Gen Office,1920Oct_PC00436
Sandwell Metropolitan Borough Council,http://www.sandwell.gov.uk/info/200202/performance_and_spending/3233/government_procurement_cards,24-Oct-19,Housing & Communities,SAINSBURYS 0558,Neighbourhoods,11.67,Materials & Consumables,1920Oct_PC00437
Sandwell Metropolitan Borough Council,http://www.sandwell.gov.uk/info/200202/performance_and_spending/3233/government_procurement_cards,24-Oct-19,Dead Capital 1,OFFICE DEPOT UK,Total Adult Social Care,198.45,Printing Stationery&Gen Office,1920Oct_PC00438
Sandwell Metropolitan Borough Council,http://www.sandwell.gov.uk/info/200202/performance_and_spending/3233/government_procurement_cards,24-Oct-19,Resources (Inc SIU),AMZNMKTPLACE AMAZON.CO,Assistant Chief Executive (Excl SIU),38.97,Printing Stationery&Gen Office,1920Oct_PC00439
Sandwell Metropolitan Borough Council,http://www.sandwell.gov.uk/info/200202/performance_and_spending/3233/government_procurement_cards,24-Oct-19,Housing & Communities,OFFICE DEPOT UK,Neighbourhoods,32.64,Printing Stationery&Gen Office,1920Oct_PC00440
Sandwell Metropolitan Borough Council,http://www.sandwell.gov.uk/info/200202/performance_and_spending/3233/government_procurement_cards,24-Oct-19,Dead Capital 1,OFFICE DEPOT UK,Total Adult Social Care,61.04,Printing Stationery&Gen Office,1920Oct_PC00441
Sandwell Metropolitan Borough Council,http://www.sandwell.gov.uk/info/200202/performance_and_spending/3233/government_procurement_cards,24-Oct-19,Housing & Communities,Trainline,Neighbourhoods,31.19,Public Transport,1920Oct_PC00442
Sandwell Metropolitan Borough Council,http://www.sandwell.gov.uk/info/200202/performance_and_spending/3233/government_procurement_cards,24-Oct-19,Childrens Services,BCC REGISTER OFFIC,Childrens Services,36,Adoption-Gov't Dept's,1920Oct_PC00443
Sandwell Metropolitan Borough Council,http://www.sandwell.gov.uk/info/200202/performance_and_spending/3233/government_procurement_cards,24-Oct-19,Childrens Services,DVLA DRIVER ONLINE,Childrens Services,34,Professional Services External,1920Oct_PC00444
Sandwell Metropolitan Borough Council,http://www.sandwell.gov.uk/info/200202/performance_and_spending/3233/government_procurement_cards,24-Oct-19,Childrens Services,BCC REGISTER OFFIC,Childrens Services,25,Adoption-Gov't Dept's,1920Oct_PC00445
Sandwell Metropolitan Borough Council,http://www.sandwell.gov.uk/info/200202/performance_and_spending/3233/government_procurement_cards,24-Oct-19,Housing & Communities,OFFICE DEPOT UK,Neighbourhoods,4.08,Printing Stationery&Gen Office,1920Oct_PC00446
Sandwell Metropolitan Borough Council,http://www.sandwell.gov.uk/info/200202/performance_and_spending/3233/government_procurement_cards,24-Oct-19,Childrens Services,EXPEDIA 71000542985537,Childrens Services,6,Public Transport,1920Oct_PC00447
Sandwell Metropolitan Borough Council,http://www.sandwell.gov.uk/info/200202/performance_and_spending/3233/government_procurement_cards,24-Oct-19,Adult Social Care Health and Wellbeing - Total,AMZNMktplace,Public Health,125.9,Printing Stationery&Gen Office,1920Oct_PC00448
Sandwell Metropolitan Borough Council,http://www.sandwell.gov.uk/info/200202/performance_and_spending/3233/government_procurement_cards,24-Oct-19,Childrens Services,Trainline,Childrens Services,23.95,Public Transport,1920Oct_PC00449
Sandwell Metropolitan Borough Council,http://www.sandwell.gov.uk/info/200202/performance_and_spending/3233/government_procurement_cards,24-Oct-19,Resources (Inc SIU),OFFICE DEPOT UK,Assistant Chief Executive (Excl SIU),95.6,Printing Stationery&Gen Office,1920Oct_PC00450
Sandwell Metropolitan Borough Council,http://www.sandwell.gov.uk/info/200202/performance_and_spending/3233/government_procurement_cards,24-Oct-19,Regeneration & Growth,OFFICE DEPOT UK,Regeneration And The Economy,6.49,Printing Stationery&Gen Office,1920Oct_PC00451
Sandwell Metropolitan Borough Council,http://www.sandwell.gov.uk/info/200202/performance_and_spending/3233/government_procurement_cards,24-Oct-19,Total Housing Revenue Account,PFI SIGN SOLUTION V/T,Total Housing Revenue Account,54.3,Printing Stationery&Gen Office,1920Oct_PC00452
Sandwell Metropolitan Borough Council,http://www.sandwell.gov.uk/info/200202/performance_and_spending/3233/government_procurement_cards,24-Oct-19,Childrens Services,HPSALESANDLETTINGS,Childrens Services,186.66,Rents,1920Oct_PC00453
Sandwell Metropolitan Borough Council,http://www.sandwell.gov.uk/info/200202/performance_and_spending/3233/government_procurement_cards,24-Oct-19,Housing & Communities,LIDL GB  BLACKHEATH,Neighbourhoods,3.11,Materials & Consumables,1920Oct_PC00454
Sandwell Metropolitan Borough Council,http://www.sandwell.gov.uk/info/200202/performance_and_spending/3233/government_procurement_cards,25-Oct-19,Childrens Services,M & M TIMBER,Childrens Services,112,Grounds Maint&Improvements,1920Oct_PC00455
Sandwell Metropolitan Borough Council,http://www.sandwell.gov.uk/info/200202/performance_and_spending/3233/government_procurement_cards,25-Oct-19,Individual School Budgets With Inclusion,AMZ Amazon.co.uk,Individual School Budgets With Inclusion,-29.8,Materials & Consumables,1920Oct_PC00456
Sandwell Metropolitan Borough Council,http://www.sandwell.gov.uk/info/200202/performance_and_spending/3233/government_procurement_cards,25-Oct-19,Housing & Communities,VERIFONE TAXI/PRIVATE,Neighbourhoods,13.17,Public Transport,1920Oct_PC00457
Sandwell Metropolitan Borough Council,http://www.sandwell.gov.uk/info/200202/performance_and_spending/3233/government_procurement_cards,25-Oct-19,Dead Capital 1,R & D MILLER LIMITED,Total Adult Social Care,551,Protective Clothing&Uniforms,1920Oct_PC00458
Sandwell Metropolitan Borough Council,http://www.sandwell.gov.uk/info/200202/performance_and_spending/3233/government_procurement_cards,25-Oct-19,Housing & Communities,DOVER VANGUARD ROLLER,Neighbourhoods,47,Repairs & Maintenance,1920Oct_PC00459
Sandwell Metropolitan Borough Council,http://www.sandwell.gov.uk/info/200202/performance_and_spending/3233/government_procurement_cards,25-Oct-19,Childrens Services,ASDA STORES LTD 5865,Childrens Services,3.5,Materials & Consumables,1920Oct_PC00460
Sandwell Metropolitan Borough Council,http://www.sandwell.gov.uk/info/200202/performance_and_spending/3233/government_procurement_cards,25-Oct-19,Regeneration & Growth,AMZNMktplace,Regeneration And The Economy,28.72,ICT,1920Oct_PC00461
Sandwell Metropolitan Borough Council,http://www.sandwell.gov.uk/info/200202/performance_and_spending/3233/government_procurement_cards,25-Oct-19,Housing & Communities,AMZNMktplace,Neighbourhoods,15.82,Equipment & Furniture,1920Oct_PC00462
Sandwell Metropolitan Borough Council,http://www.sandwell.gov.uk/info/200202/performance_and_spending/3233/government_procurement_cards,25-Oct-19,Childrens Services,AMZNMktplace,Childrens Services,10.47,Equipment & Furniture,1920Oct_PC00463
Sandwell Metropolitan Borough Council,http://www.sandwell.gov.uk/info/200202/performance_and_spending/3233/government_procurement_cards,25-Oct-19,Housing & Communities,SAINSBURYS 0558,Neighbourhoods,66.42,R& M - Building Maint&Imp.,1920Oct_PC00464
Sandwell Metropolitan Borough Council,http://www.sandwell.gov.uk/info/200202/performance_and_spending/3233/government_procurement_cards,25-Oct-19,Housing & Communities,AMZNMKTPLACE AMAZON.CO,Neighbourhoods,11.42,Materials & Consumables,1920Oct_PC00465
Sandwell Metropolitan Borough Council,http://www.sandwell.gov.uk/info/200202/performance_and_spending/3233/government_procurement_cards,25-Oct-19,Housing & Communities,AMZNMktplace,Neighbourhoods,16.66,Materials & Consumables,1920Oct_PC00466
Sandwell Metropolitan Borough Council,http://www.sandwell.gov.uk/info/200202/performance_and_spending/3233/government_procurement_cards,25-Oct-19,Resources (Inc SIU),AMZNMktplace,Assistant Chief Executive (Excl SIU),18.32,ICT,1920Oct_PC00467
Sandwell Metropolitan Borough Council,http://www.sandwell.gov.uk/info/200202/performance_and_spending/3233/government_procurement_cards,25-Oct-19,Regeneration & Growth,SCREWFIX DIRECT,Regeneration And The Economy,24.53,Fixtures & Fittings,1920Oct_PC00468
Sandwell Metropolitan Borough Council,http://www.sandwell.gov.uk/info/200202/performance_and_spending/3233/government_procurement_cards,25-Oct-19,Housing & Communities,IZ Taxi,Neighbourhoods,16.83,Public Transport,1920Oct_PC00469
Sandwell Metropolitan Borough Council,http://www.sandwell.gov.uk/info/200202/performance_and_spending/3233/government_procurement_cards,25-Oct-19,Housing & Communities,WILKO RETAIL LIMIT,Neighbourhoods,13.75,Materials & Consumables,1920Oct_PC00470
Sandwell Metropolitan Borough Council,http://www.sandwell.gov.uk/info/200202/performance_and_spending/3233/government_procurement_cards,25-Oct-19,Housing & Communities,SAINSBURYS SACAT0558,Neighbourhoods,12.5,R& M - Building Maint&Imp.,1920Oct_PC00471
Sandwell Metropolitan Borough Council,http://www.sandwell.gov.uk/info/200202/performance_and_spending/3233/government_procurement_cards,25-Oct-19,Housing & Communities,AMZNMktplace,Neighbourhoods,9.57,Civic Events,1920Oct_PC00472
Sandwell Metropolitan Borough Council,http://www.sandwell.gov.uk/info/200202/performance_and_spending/3233/government_procurement_cards,25-Oct-19,Childrens Services,OFFICE DEPOT UK,Childrens Services,32,Equipment & Furniture,1920Oct_PC00473
Sandwell Metropolitan Borough Council,http://www.sandwell.gov.uk/info/200202/performance_and_spending/3233/government_procurement_cards,25-Oct-19,Childrens Services,FLYBE BSP 2676087352887,Childrens Services,175.06,Public Transport,1920Oct_PC00474
Sandwell Metropolitan Borough Council,http://www.sandwell.gov.uk/info/200202/performance_and_spending/3233/government_procurement_cards,25-Oct-19,Childrens Services,FLYBE BSP 2676087352886,Childrens Services,175.06,Public Transport,1920Oct_PC00475
Sandwell Metropolitan Borough Council,http://www.sandwell.gov.uk/info/200202/performance_and_spending/3233/government_procurement_cards,25-Oct-19,Regeneration & Growth,OFFICE DEPOT UK,Regeneration And The Economy,53.31,Printing Stationery&Gen Office,1920Oct_PC00476
Sandwell Metropolitan Borough Council,http://www.sandwell.gov.uk/info/200202/performance_and_spending/3233/government_procurement_cards,25-Oct-19,Dead Capital 1,OFFICE DEPOT UK,Total Adult Social Care,17.97,Printing Stationery&Gen Office,1920Oct_PC00477
Sandwell Metropolitan Borough Council,http://www.sandwell.gov.uk/info/200202/performance_and_spending/3233/government_procurement_cards,25-Oct-19,Total Housing Revenue Account,OFFICE DEPOT UK,Total Housing Revenue Account,279.76,Printing Stationery&Gen Office,1920Oct_PC00478
Sandwell Metropolitan Borough Council,http://www.sandwell.gov.uk/info/200202/performance_and_spending/3233/government_procurement_cards,25-Oct-19,Housing & Communities,OFFICE DEPOT UK,Neighbourhoods,38.99,Protective Clothing&Uniforms,1920Oct_PC00479
Sandwell Metropolitan Borough Council,http://www.sandwell.gov.uk/info/200202/performance_and_spending/3233/government_procurement_cards,25-Oct-19,Total Housing Revenue Account,OFFICE DEPOT UK,Total Housing Revenue Account,9.5,Printing Stationery&Gen Office,1920Oct_PC00480
Sandwell Metropolitan Borough Council,http://www.sandwell.gov.uk/info/200202/performance_and_spending/3233/government_procurement_cards,25-Oct-19,Childrens Services,Trainline,Childrens Services,-168,Public Transport,1920Oct_PC00481
Sandwell Metropolitan Borough Council,http://www.sandwell.gov.uk/info/200202/performance_and_spending/3233/government_procurement_cards,25-Oct-19,Childrens Services,WALSALL COUNCIL,Childrens Services,57,Fostering-Gov't Dept's,1920Oct_PC00482
Sandwell Metropolitan Borough Council,http://www.sandwell.gov.uk/info/200202/performance_and_spending/3233/government_procurement_cards,25-Oct-19,Childrens Services,Trainline,Childrens Services,192.2,Public Transport,1920Oct_PC00483
Sandwell Metropolitan Borough Council,http://www.sandwell.gov.uk/info/200202/performance_and_spending/3233/government_procurement_cards,25-Oct-19,Childrens Services,ASDA STORES LTD 5865,Childrens Services,7,Materials & Consumables,1920Oct_PC00484
Sandwell Metropolitan Borough Council,http://www.sandwell.gov.uk/info/200202/performance_and_spending/3233/government_procurement_cards,25-Oct-19,Dead Capital 1,POUNDSTRETCHER 328,Total Adult Social Care,1.38,Cleaning,1920Oct_PC00485
Sandwell Metropolitan Borough Council,http://www.sandwell.gov.uk/info/200202/performance_and_spending/3233/government_procurement_cards,25-Oct-19,Childrens Services,PARTICIPANT UK LTD,Childrens Services,130,Day Care-Other Establishments,1920Oct_PC00486
Sandwell Metropolitan Borough Council,http://www.sandwell.gov.uk/info/200202/performance_and_spending/3233/government_procurement_cards,25-Oct-19,Childrens Services,Trainline,Childrens Services,42.1,Public Transport,1920Oct_PC00487
Sandwell Metropolitan Borough Council,http://www.sandwell.gov.uk/info/200202/performance_and_spending/3233/government_procurement_cards,25-Oct-19,Childrens Services,Trainline,Childrens Services,57.4,Public Transport,1920Oct_PC00488
Sandwell Metropolitan Borough Council,http://www.sandwell.gov.uk/info/200202/performance_and_spending/3233/government_procurement_cards,28-Oct-19,Childrens Services,WORD360 LANGUAGE,Childrens Services,297,Bi-Lingual Translation Serv,1920Oct_PC00489
Sandwell Metropolitan Borough Council,http://www.sandwell.gov.uk/info/200202/performance_and_spending/3233/government_procurement_cards,28-Oct-19,Childrens Services,BEEBYS BUBBLES,Childrens Services,45.83,Laundry,1920Oct_PC00490
Sandwell Metropolitan Borough Council,http://www.sandwell.gov.uk/info/200202/performance_and_spending/3233/government_procurement_cards,28-Oct-19,Dead Capital 1,INGRAMS CHEMIST,Total Adult Social Care,100,Equipment & Furniture,1920Oct_PC00491
Sandwell Metropolitan Borough Council,http://www.sandwell.gov.uk/info/200202/performance_and_spending/3233/government_procurement_cards,28-Oct-19,Housing & Communities,SAFETYSUPPL,Neighbourhoods,93.15,Materials & Consumables,1920Oct_PC00492
Sandwell Metropolitan Borough Council,http://www.sandwell.gov.uk/info/200202/performance_and_spending/3233/government_procurement_cards,28-Oct-19,Regeneration & Growth,DRI Lenovo,Regeneration And The Economy,22.23,Equipment & Furniture,1920Oct_PC00493
Sandwell Metropolitan Borough Council,http://www.sandwell.gov.uk/info/200202/performance_and_spending/3233/government_procurement_cards,28-Oct-19,Housing & Communities,SAINSBURYS SACAT0558,Neighbourhoods,30.17,R& M - Building Maint&Imp.,1920Oct_PC00494
Sandwell Metropolitan Borough Council,http://www.sandwell.gov.uk/info/200202/performance_and_spending/3233/government_procurement_cards,28-Oct-19,Housing & Communities,B&M RETAIL,Neighbourhoods,2.5,Civic Events,1920Oct_PC00495
Sandwell Metropolitan Borough Council,http://www.sandwell.gov.uk/info/200202/performance_and_spending/3233/government_procurement_cards,28-Oct-19,Housing & Communities,Amazon.co.uk MO6UK96H4,Neighbourhoods,33.74,Printing Stationery&Gen Office,1920Oct_PC00496
Sandwell Metropolitan Borough Council,http://www.sandwell.gov.uk/info/200202/performance_and_spending/3233/government_procurement_cards,28-Oct-19,Housing & Communities,TESCO STORES 2335,Neighbourhoods,18.75,Printing Stationery&Gen Office,1920Oct_PC00497
Sandwell Metropolitan Borough Council,http://www.sandwell.gov.uk/info/200202/performance_and_spending/3233/government_procurement_cards,28-Oct-19,Childrens Services,AMZNMktplace,Childrens Services,18.07,Printing Stationery&Gen Office,1920Oct_PC00498
Sandwell Metropolitan Borough Council,http://www.sandwell.gov.uk/info/200202/performance_and_spending/3233/government_procurement_cards,28-Oct-19,Housing & Communities,B & Q 1302,Neighbourhoods,4.39,Materials & Consumables,1920Oct_PC00499
Sandwell Metropolitan Borough Council,http://www.sandwell.gov.uk/info/200202/performance_and_spending/3233/government_procurement_cards,28-Oct-19,Total Housing Revenue Account,AMZNMktplace,Total Housing Revenue Account,58.29,ICT,1920Oct_PC00500
Sandwell Metropolitan Borough Council,http://www.sandwell.gov.uk/info/200202/performance_and_spending/3233/government_procurement_cards,28-Oct-19,Housing & Communities,OFFICE DEPOT UK,Neighbourhoods,29.83,Materials & Consumables,1920Oct_PC00501
Sandwell Metropolitan Borough Council,http://www.sandwell.gov.uk/info/200202/performance_and_spending/3233/government_procurement_cards,28-Oct-19,Dead Capital 1,OFFICE DEPOT UK,Total Adult Social Care,76.95,Printing Stationery&Gen Office,1920Oct_PC00502
Sandwell Metropolitan Borough Council,http://www.sandwell.gov.uk/info/200202/performance_and_spending/3233/government_procurement_cards,28-Oct-19,Dead Capital 1,YORKSHIRE PURCHASING O,Total Adult Social Care,-90.52,Printing Stationery&Gen Office,1920Oct_PC00503
Sandwell Metropolitan Borough Council,http://www.sandwell.gov.uk/info/200202/performance_and_spending/3233/government_procurement_cards,28-Oct-19,Childrens Services,ASDA STORES LTD 5865,Childrens Services,6,Materials & Consumables,1920Oct_PC00504
Sandwell Metropolitan Borough Council,http://www.sandwell.gov.uk/info/200202/performance_and_spending/3233/government_procurement_cards,28-Oct-19,Childrens Services,TIPTON STN T/O,Childrens Services,35.3,Public Transport,1920Oct_PC00505
Sandwell Metropolitan Borough Council,http://www.sandwell.gov.uk/info/200202/performance_and_spending/3233/government_procurement_cards,28-Oct-19,Childrens Services,Trainline,Childrens Services,179.5,Public Transport,1920Oct_PC00506
Sandwell Metropolitan Borough Council,http://www.sandwell.gov.uk/info/200202/performance_and_spending/3233/government_procurement_cards,28-Oct-19,Childrens Services,POST OFFICE COUNTER,Childrens Services,70,"Postages, Carriage & Courier Services",1920Oct_PC00507
Sandwell Metropolitan Borough Council,http://www.sandwell.gov.uk/info/200202/performance_and_spending/3233/government_procurement_cards,28-Oct-19,Regeneration & Growth,AMZNMktplace,Regeneration And The Economy,52.84,Printing Stationery&Gen Office,1920Oct_PC00508
Sandwell Metropolitan Borough Council,http://www.sandwell.gov.uk/info/200202/performance_and_spending/3233/government_procurement_cards,28-Oct-19,Resources (Inc SIU),AMZNMKTPLACE AMAZON.CO,Assistant Chief Executive (Excl SIU),29.96,Printing Stationery&Gen Office,1920Oct_PC00509
Sandwell Metropolitan Borough Council,http://www.sandwell.gov.uk/info/200202/performance_and_spending/3233/government_procurement_cards,28-Oct-19,Dead Capital 1,YORKSHIRE PURCHASING O,Total Adult Social Care,90.52,Printing Stationery&Gen Office,1920Oct_PC00510
Sandwell Metropolitan Borough Council,http://www.sandwell.gov.uk/info/200202/performance_and_spending/3233/government_procurement_cards,28-Oct-19,Housing & Communities,WM MORRISONS STORE,Neighbourhoods,14.99,Civic Events,1920Oct_PC00511
Sandwell Metropolitan Borough Council,http://www.sandwell.gov.uk/info/200202/performance_and_spending/3233/government_procurement_cards,28-Oct-19,Resources (Inc SIU),AMZNMktplace,Assistant Chief Executive (Excl SIU),25.38,Printing Stationery&Gen Office,1920Oct_PC00512
Sandwell Metropolitan Borough Council,http://www.sandwell.gov.uk/info/200202/performance_and_spending/3233/government_procurement_cards,29-Oct-19,Adult Social Care Health and Wellbeing - Total,Amazon.co.uk MO8NE2QB4,Public Health,59.87,Printing Stationery&Gen Office,1920Oct_PC00513
Sandwell Metropolitan Borough Council,http://www.sandwell.gov.uk/info/200202/performance_and_spending/3233/government_procurement_cards,29-Oct-19,Housing & Communities,AMZNMKTPLACE AMAZON.CO,Neighbourhoods,36.63,Equipment & Furniture,1920Oct_PC00514
Sandwell Metropolitan Borough Council,http://www.sandwell.gov.uk/info/200202/performance_and_spending/3233/government_procurement_cards,29-Oct-19,Housing & Communities,WILKO RETAIL LIMITED,Neighbourhoods,4.58,Materials & Consumables,1920Oct_PC00515
Sandwell Metropolitan Borough Council,http://www.sandwell.gov.uk/info/200202/performance_and_spending/3233/government_procurement_cards,29-Oct-19,Housing & Communities,TESCO STORES 4357,Neighbourhoods,11.15,Materials & Consumables,1920Oct_PC00516
Sandwell Metropolitan Borough Council,http://www.sandwell.gov.uk/info/200202/performance_and_spending/3233/government_procurement_cards,29-Oct-19,Housing & Communities,WILKO RETAIL LIMITED,Neighbourhoods,11.05,Materials & Consumables,1920Oct_PC00517
Sandwell Metropolitan Borough Council,http://www.sandwell.gov.uk/info/200202/performance_and_spending/3233/government_procurement_cards,29-Oct-19,Housing & Communities,Amazon.co.uk MO1CB62N4,Neighbourhoods,49.14,Fixtures & Fittings,1920Oct_PC00518
Sandwell Metropolitan Borough Council,http://www.sandwell.gov.uk/info/200202/performance_and_spending/3233/government_procurement_cards,29-Oct-19,Housing & Communities,ASDA SUPERSTORE,Neighbourhoods,46.69,Materials & Consumables,1920Oct_PC00519
Sandwell Metropolitan Borough Council,http://www.sandwell.gov.uk/info/200202/performance_and_spending/3233/government_procurement_cards,29-Oct-19,Total Housing Revenue Account,ARGOS OLDBURY,Total Housing Revenue Account,1745,ICT,1920Oct_PC00520
Sandwell Metropolitan Borough Council,http://www.sandwell.gov.uk/info/200202/performance_and_spending/3233/government_procurement_cards,29-Oct-19,Housing & Communities,ASDA STORE,Neighbourhoods,52.12,Materials & Consumables,1920Oct_PC00521
Sandwell Metropolitan Borough Council,http://www.sandwell.gov.uk/info/200202/performance_and_spending/3233/government_procurement_cards,29-Oct-19,Resources (Inc SIU),MENTIMETER,Assistant Chief Executive (Excl SIU),96.32,Ind. Emp Exp-Staff Dev&Training,1920Oct_PC00522
Sandwell Metropolitan Borough Council,http://www.sandwell.gov.uk/info/200202/performance_and_spending/3233/government_procurement_cards,29-Oct-19,Total Housing Revenue Account,SCREWFIX DIRECT,Total Housing Revenue Account,40.83,Materials & Consumables,1920Oct_PC00523
Sandwell Metropolitan Borough Council,http://www.sandwell.gov.uk/info/200202/performance_and_spending/3233/government_procurement_cards,29-Oct-19,Housing & Communities,TESCO STORES 2335,Neighbourhoods,40,Materials & Consumables,1920Oct_PC00524
Sandwell Metropolitan Borough Council,http://www.sandwell.gov.uk/info/200202/performance_and_spending/3233/government_procurement_cards,29-Oct-19,Housing & Communities,HALLOWEEN HOUSE,Neighbourhoods,8.72,Materials & Consumables,1920Oct_PC00525
Sandwell Metropolitan Borough Council,http://www.sandwell.gov.uk/info/200202/performance_and_spending/3233/government_procurement_cards,29-Oct-19,Housing & Communities,IZ  AJ?s CardStop,Neighbourhoods,5.21,Materials & Consumables,1920Oct_PC00526
Sandwell Metropolitan Borough Council,http://www.sandwell.gov.uk/info/200202/performance_and_spending/3233/government_procurement_cards,29-Oct-19,Regeneration & Growth,AMZNMKTPLACE AMAZON.CO,Regeneration And The Economy,16.9,Printing Stationery&Gen Office,1920Oct_PC00527
Sandwell Metropolitan Borough Council,http://www.sandwell.gov.uk/info/200202/performance_and_spending/3233/government_procurement_cards,29-Oct-19,Housing & Communities,SANDWELL M.B.C.,Neighbourhoods,17.5,Premises Insurance,1920Oct_PC00528
Sandwell Metropolitan Borough Council,http://www.sandwell.gov.uk/info/200202/performance_and_spending/3233/government_procurement_cards,29-Oct-19,Total Housing Revenue Account,AMZNMktplace,Total Housing Revenue Account,148.41,Materials & Consumables,1920Oct_PC00529
Sandwell Metropolitan Borough Council,http://www.sandwell.gov.uk/info/200202/performance_and_spending/3233/government_procurement_cards,29-Oct-19,Resources (Inc SIU),WWW.CIPS.ORG,Assistant Chief Executive (Excl SIU),187,Ind. Emp Exp-Staff Dev&Training,1920Oct_PC00530
Sandwell Metropolitan Borough Council,http://www.sandwell.gov.uk/info/200202/performance_and_spending/3233/government_procurement_cards,29-Oct-19,Dead Capital 1,OFFICE DEPOT UK,Total Adult Social Care,110.2,Printing Stationery&Gen Office,1920Oct_PC00531
Sandwell Metropolitan Borough Council,http://www.sandwell.gov.uk/info/200202/performance_and_spending/3233/government_procurement_cards,29-Oct-19,Housing & Communities,OFFICE DEPOT UK,Neighbourhoods,85.4,Printing Stationery&Gen Office,1920Oct_PC00532
Sandwell Metropolitan Borough Council,http://www.sandwell.gov.uk/info/200202/performance_and_spending/3233/government_procurement_cards,29-Oct-19,Childrens Services,OFFICE DEPOT UK,Childrens Services,75.13,Printing Stationery&Gen Office,1920Oct_PC00533
Sandwell Metropolitan Borough Council,http://www.sandwell.gov.uk/info/200202/performance_and_spending/3233/government_procurement_cards,29-Oct-19,Total Housing Revenue Account,OFFICE DEPOT UK,Total Housing Revenue Account,13.13,Printing Stationery&Gen Office,1920Oct_PC00534
Sandwell Metropolitan Borough Council,http://www.sandwell.gov.uk/info/200202/performance_and_spending/3233/government_procurement_cards,29-Oct-19,Total Housing Revenue Account,AMZNMKTPLACE AMAZON.CO,Total Housing Revenue Account,31.99,Materials & Consumables,1920Oct_PC00535
Sandwell Metropolitan Borough Council,http://www.sandwell.gov.uk/info/200202/performance_and_spending/3233/government_procurement_cards,29-Oct-19,Adult Social Care Health and Wellbeing - Total,SAINSBURYS TO YOU 0558,Dead SeRCOP,35.71,Catering Provisions,1920Oct_PC00536
Sandwell Metropolitan Borough Council,http://www.sandwell.gov.uk/info/200202/performance_and_spending/3233/government_procurement_cards,29-Oct-19,Childrens Services,LIDL GB PORTHMADOG,Childrens Services,9.36,Catering Provisions,1920Oct_PC00537
Sandwell Metropolitan Borough Council,http://www.sandwell.gov.uk/info/200202/performance_and_spending/3233/government_procurement_cards,29-Oct-19,Resources (Inc SIU),KAHOOT! AS,Assistant Chief Executive (Excl SIU),192,Ind. Emp Exp-Staff Dev&Training,1920Oct_PC00538
Sandwell Metropolitan Borough Council,http://www.sandwell.gov.uk/info/200202/performance_and_spending/3233/government_procurement_cards,29-Oct-19,Housing & Communities,TESCO STORES 2335,Neighbourhoods,45,Materials & Consumables,1920Oct_PC00539
Sandwell Metropolitan Borough Council,http://www.sandwell.gov.uk/info/200202/performance_and_spending/3233/government_procurement_cards,29-Oct-19,Resources (Inc SIU),AMZNMKTPLACE AMAZON.CO,Assistant Chief Executive (Excl SIU),76.06,Printing Stationery&Gen Office,1920Oct_PC00540
Sandwell Metropolitan Borough Council,http://www.sandwell.gov.uk/info/200202/performance_and_spending/3233/government_procurement_cards,29-Oct-19,Childrens Services,Trainline,Childrens Services,23.95,Public Transport,1920Oct_PC00541
Sandwell Metropolitan Borough Council,http://www.sandwell.gov.uk/info/200202/performance_and_spending/3233/government_procurement_cards,29-Oct-19,Dead Capital 1,PAYPAL  EBAY DIYFREESH,Total Adult Social Care,3.49,Fixtures & Fittings,1920Oct_PC00542
Sandwell Metropolitan Borough Council,http://www.sandwell.gov.uk/info/200202/performance_and_spending/3233/government_procurement_cards,29-Oct-19,Housing & Communities,PAYPAL  EBAY MARALEXIN,Neighbourhoods,41.97,Printing Stationery&Gen Office,1920Oct_PC00543
Sandwell Metropolitan Borough Council,http://www.sandwell.gov.uk/info/200202/performance_and_spending/3233/government_procurement_cards,29-Oct-19,Childrens Services,GEN REGISTER OFFICE,Childrens Services,126,Fostering-Gov't Dept's,1920Oct_PC00544
Sandwell Metropolitan Borough Council,http://www.sandwell.gov.uk/info/200202/performance_and_spending/3233/government_procurement_cards,29-Oct-19,Housing & Communities,WW.ELEPOS.COM,Neighbourhoods,16.99,Printing Stationery&Gen Office,1920Oct_PC00545
Sandwell Metropolitan Borough Council,http://www.sandwell.gov.uk/info/200202/performance_and_spending/3233/government_procurement_cards,30-Oct-19,Dead Capital 1,PRIMARK 684,Total Adult Social Care,29.77,Ind. Emp Exp-Emp. Welfare,1920Oct_PC00546
Sandwell Metropolitan Borough Council,http://www.sandwell.gov.uk/info/200202/performance_and_spending/3233/government_procurement_cards,30-Oct-19,Total Housing Revenue Account,AMZ Amazon.co.uk,Total Housing Revenue Account,-24.47,Equipment & Furniture,1920Oct_PC00547
Sandwell Metropolitan Borough Council,http://www.sandwell.gov.uk/info/200202/performance_and_spending/3233/government_procurement_cards,30-Oct-19,Total Housing Revenue Account,Amazon.co.uk MO4BA3204,Total Housing Revenue Account,24.96,Materials & Consumables,1920Oct_PC00548
Sandwell Metropolitan Borough Council,http://www.sandwell.gov.uk/info/200202/performance_and_spending/3233/government_procurement_cards,30-Oct-19,Total Housing Revenue Account,AMZNMktplace,Total Housing Revenue Account,18.32,Materials & Consumables,1920Oct_PC00549
Sandwell Metropolitan Borough Council,http://www.sandwell.gov.uk/info/200202/performance_and_spending/3233/government_procurement_cards,30-Oct-19,Childrens Services,FLIP OUT SANDWELL,Childrens Services,21.67,Nursing-Other Establishments,1920Oct_PC00550
Sandwell Metropolitan Borough Council,http://www.sandwell.gov.uk/info/200202/performance_and_spending/3233/government_procurement_cards,30-Oct-19,Childrens Services,GOPAK LTD,Childrens Services,131.93,Equipment & Furniture,1920Oct_PC00551
Sandwell Metropolitan Borough Council,http://www.sandwell.gov.uk/info/200202/performance_and_spending/3233/government_procurement_cards,30-Oct-19,Childrens Services,AMZNMktplace,Childrens Services,12.28,Telephones,1920Oct_PC00552
Sandwell Metropolitan Borough Council,http://www.sandwell.gov.uk/info/200202/performance_and_spending/3233/government_procurement_cards,30-Oct-19,Childrens Services,AMZNMKTPLACE AMAZON.CO,Childrens Services,51.19,Equipment & Furniture,1920Oct_PC00553
Sandwell Metropolitan Borough Council,http://www.sandwell.gov.uk/info/200202/performance_and_spending/3233/government_procurement_cards,30-Oct-19,Dead Capital 1,PAYPAL  EBAY VIBEONLIN,Total Adult Social Care,13.54,Printing Stationery&Gen Office,1920Oct_PC00554
Sandwell Metropolitan Borough Council,http://www.sandwell.gov.uk/info/200202/performance_and_spending/3233/government_procurement_cards,30-Oct-19,Childrens Services,DENCOWEAR,Childrens Services,46.13,Protective Clothing&Uniforms,1920Oct_PC00555
Sandwell Metropolitan Borough Council,http://www.sandwell.gov.uk/info/200202/performance_and_spending/3233/government_procurement_cards,30-Oct-19,Dead Capital 1,PAYPAL  STARTTRAFFI,Total Adult Social Care,93.75,Equipment & Furniture,1920Oct_PC00556
Sandwell Metropolitan Borough Council,http://www.sandwell.gov.uk/info/200202/performance_and_spending/3233/government_procurement_cards,30-Oct-19,Childrens Services,WAYFAIR,Childrens Services,298.6,Equipment & Furniture,1920Oct_PC00557
Sandwell Metropolitan Borough Council,http://www.sandwell.gov.uk/info/200202/performance_and_spending/3233/government_procurement_cards,30-Oct-19,Individual School Budgets With Inclusion,AMZNMKTPLACE AMAZON.CO,Individual School Budgets With Inclusion,29.8,Materials & Consumables,1920Oct_PC00558
Sandwell Metropolitan Borough Council,http://www.sandwell.gov.uk/info/200202/performance_and_spending/3233/government_procurement_cards,30-Oct-19,Individual School Budgets With Inclusion,AMZNMKTPLACE AMAZON.CO,Individual School Budgets With Inclusion,5.25,Printing Stationery&Gen Office,1920Oct_PC00559
Sandwell Metropolitan Borough Council,http://www.sandwell.gov.uk/info/200202/performance_and_spending/3233/government_procurement_cards,30-Oct-19,Resources (Inc SIU),POUNDSTRETCHER 328,Assistant Chief Executive (Excl SIU),5.99,Materials & Consumables,1920Oct_PC00560
Sandwell Metropolitan Borough Council,http://www.sandwell.gov.uk/info/200202/performance_and_spending/3233/government_procurement_cards,30-Oct-19,Housing & Communities,OFFICE DEPOT UK,Neighbourhoods,48.49,Printing Stationery&Gen Office,1920Oct_PC00561
Sandwell Metropolitan Borough Council,http://www.sandwell.gov.uk/info/200202/performance_and_spending/3233/government_procurement_cards,30-Oct-19,Childrens Services,GEN REGISTER OFFICE,Childrens Services,38,Public Transport,1920Oct_PC00562
Sandwell Metropolitan Borough Council,http://www.sandwell.gov.uk/info/200202/performance_and_spending/3233/government_procurement_cards,30-Oct-19,Individual School Budgets With Inclusion,ASDA STORES LTD 5865,Individual School Budgets With Inclusion,7.08,Catering Provisions,1920Oct_PC00563
Sandwell Metropolitan Borough Council,http://www.sandwell.gov.uk/info/200202/performance_and_spending/3233/government_procurement_cards,30-Oct-19,Total Housing Revenue Account,AMZNMktplace,Total Housing Revenue Account,22.25,Equipment & Furniture,1920Oct_PC00564
Sandwell Metropolitan Borough Council,http://www.sandwell.gov.uk/info/200202/performance_and_spending/3233/government_procurement_cards,30-Oct-19,Regeneration & Growth,AMZNMktplace,Regeneration And The Economy,5.81,Printing Stationery&Gen Office,1920Oct_PC00565
Sandwell Metropolitan Borough Council,http://www.sandwell.gov.uk/info/200202/performance_and_spending/3233/government_procurement_cards,30-Oct-19,Childrens Services,AMZNMktplace,Childrens Services,27.88,Equipment & Furniture,1920Oct_PC00566
Sandwell Metropolitan Borough Council,http://www.sandwell.gov.uk/info/200202/performance_and_spending/3233/government_procurement_cards,31-Oct-19,Dead Capital 1,PRIMARK 684,Total Adult Social Care,25,Materials & Consumables,1920Oct_PC00567
Sandwell Metropolitan Borough Council,http://www.sandwell.gov.uk/info/200202/performance_and_spending/3233/government_procurement_cards,31-Oct-19,Childrens Services,ONE BELOW,Childrens Services,4.21,Equipment & Furniture,1920Oct_PC00568
Sandwell Metropolitan Borough Council,http://www.sandwell.gov.uk/info/200202/performance_and_spending/3233/government_procurement_cards,31-Oct-19,Childrens Services,POUNDLAND LTD 1123,Childrens Services,1.67,Printing Stationery&Gen Office,1920Oct_PC00569
Sandwell Metropolitan Borough Council,http://www.sandwell.gov.uk/info/200202/performance_and_spending/3233/government_procurement_cards,31-Oct-19,Childrens Services,DECATHLON UK,Childrens Services,66.5,Equipment & Furniture,1920Oct_PC00570
Sandwell Metropolitan Borough Council,http://www.sandwell.gov.uk/info/200202/performance_and_spending/3233/government_procurement_cards,31-Oct-19,Individual School Budgets With Inclusion,EUROFFICE.CO.UK,Individual School Budgets With Inclusion,38.68,Printing Stationery&Gen Office,1920Oct_PC00571
Sandwell Metropolitan Borough Council,http://www.sandwell.gov.uk/info/200202/performance_and_spending/3233/government_procurement_cards,31-Oct-19,Childrens Services,PP BUTTERFLYEM,Childrens Services,130,Protective Clothing&Uniforms,1920Oct_PC00572
Sandwell Metropolitan Borough Council,http://www.sandwell.gov.uk/info/200202/performance_and_spending/3233/government_procurement_cards,31-Oct-19,Housing & Communities,TESCO PAY AT PUMP 4260,Neighbourhoods,50.01,Fuel,1920Oct_PC00573
Sandwell Metropolitan Borough Council,http://www.sandwell.gov.uk/info/200202/performance_and_spending/3233/government_procurement_cards,31-Oct-19,Housing & Communities,ASDA SUPERSTORE,Neighbourhoods,38.75,Materials & Consumables,1920Oct_PC00574
Sandwell Metropolitan Borough Council,http://www.sandwell.gov.uk/info/200202/performance_and_spending/3233/government_procurement_cards,31-Oct-19,Housing & Communities,ASDA SUPERSTORE,Neighbourhoods,37.5,Materials & Consumables,1920Oct_PC00575
Sandwell Metropolitan Borough Council,http://www.sandwell.gov.uk/info/200202/performance_and_spending/3233/government_procurement_cards,31-Oct-19,Childrens Services,VISTAPRINT,Childrens Services,81.39,Equipment & Furniture,1920Oct_PC00576
Sandwell Metropolitan Borough Council,http://www.sandwell.gov.uk/info/200202/performance_and_spending/3233/government_procurement_cards,31-Oct-19,Housing & Communities,ASDA SUPERSTORE,Neighbourhoods,35,Materials & Consumables,1920Oct_PC00577
Sandwell Metropolitan Borough Council,http://www.sandwell.gov.uk/info/200202/performance_and_spending/3233/government_procurement_cards,31-Oct-19,Housing & Communities,SAINSBURYS 0558,Neighbourhoods,21.67,Materials & Consumables,1920Oct_PC00578
Sandwell Metropolitan Borough Council,http://www.sandwell.gov.uk/info/200202/performance_and_spending/3233/government_procurement_cards,31-Oct-19,Leaving Care Team 4,ABS CARPETS AND BE,Leaving Care Team 4,437.5,Equipment & Furniture,1920Oct_PC00579
Sandwell Metropolitan Borough Council,http://www.sandwell.gov.uk/info/200202/performance_and_spending/3233/government_procurement_cards,31-Oct-19,Housing & Communities,WWW.BUNZLCLEANINGSUPPL,Neighbourhoods,224.4,Materials & Consumables,1920Oct_PC00580
Sandwell Metropolitan Borough Council,http://www.sandwell.gov.uk/info/200202/performance_and_spending/3233/government_procurement_cards,31-Oct-19,Resources (Inc SIU),WWW.PREMIERMAN.COM,Assistant Chief Executive (Excl SIU),9.6,Protective Clothing&Uniforms,1920Oct_PC00581
Sandwell Metropolitan Borough Council,http://www.sandwell.gov.uk/info/200202/performance_and_spending/3233/government_procurement_cards,31-Oct-19,Resources (Inc SIU),WWW.PREMIERMAN.COM,Assistant Chief Executive (Excl SIU),12,Protective Clothing&Uniforms,1920Oct_PC00582
Sandwell Metropolitan Borough Council,http://www.sandwell.gov.uk/info/200202/performance_and_spending/3233/government_procurement_cards,31-Oct-19,Resources (Inc SIU),WWW.PREMIERMAN.COM,Assistant Chief Executive (Excl SIU),3.5,Protective Clothing&Uniforms,1920Oct_PC00583
Sandwell Metropolitan Borough Council,http://www.sandwell.gov.uk/info/200202/performance_and_spending/3233/government_procurement_cards,31-Oct-19,Resources (Inc SIU),WWW.PREMIERMAN.COM,Assistant Chief Executive (Excl SIU),11.2,Protective Clothing&Uniforms,1920Oct_PC00584
Sandwell Metropolitan Borough Council,http://www.sandwell.gov.uk/info/200202/performance_and_spending/3233/government_procurement_cards,31-Oct-19,Dead Capital 1,PRIMARK 684,Total Adult Social Care,30,Materials & Consumables,1920Oct_PC00585
Sandwell Metropolitan Borough Council,http://www.sandwell.gov.uk/info/200202/performance_and_spending/3233/government_procurement_cards,31-Oct-19,Dead Capital 1,OFFICE DEPOT UK,Total Adult Social Care,44.88,Printing Stationery&Gen Office,1920Oct_PC00586
Sandwell Metropolitan Borough Council,http://www.sandwell.gov.uk/info/200202/performance_and_spending/3233/government_procurement_cards,31-Oct-19,Dead Capital 1,OFFICE DEPOT UK,Total Adult Social Care,54.33,Printing Stationery&Gen Office,1920Oct_PC00587
Sandwell Metropolitan Borough Council,http://www.sandwell.gov.uk/info/200202/performance_and_spending/3233/government_procurement_cards,31-Oct-19,Childrens Services,WEST MIDLAND CARD,Childrens Services,55.9,Public Transport,1920Oct_PC00588
Sandwell Metropolitan Borough Council,http://www.sandwell.gov.uk/info/200202/performance_and_spending/3233/government_procurement_cards,31-Oct-19,Childrens Services,booking_uk L0FA4C,Childrens Services,320.71,Public Transport,1920Oct_PC00589
Sandwell Metropolitan Borough Council,http://www.sandwell.gov.uk/info/200202/performance_and_spending/3233/government_procurement_cards,31-Oct-19,Childrens Services,OFFICE DEPOT UK,Childrens Services,52.19,Printing Stationery&Gen Office,1920Oct_PC00590
Sandwell Metropolitan Borough Council,http://www.sandwell.gov.uk/info/200202/performance_and_spending/3233/government_procurement_cards,31-Oct-19,Childrens Services,OFFICE DEPOT UK,Childrens Services,32.43,Printing Stationery&Gen Office,1920Oct_PC00591
Sandwell Metropolitan Borough Council,http://www.sandwell.gov.uk/info/200202/performance_and_spending/3233/government_procurement_cards,31-Oct-19,Childrens Services,Trainline,Childrens Services,-93.75,Residential - OLA's,1920Oct_PC00592
Sandwell Metropolitan Borough Council,http://www.sandwell.gov.uk/info/200202/performance_and_spending/3233/government_procurement_cards,31-Oct-19,Childrens Services,Trainline.com,Childrens Services,5.14,Public Transport,1920Oct_PC00593
Sandwell Metropolitan Borough Council,http://www.sandwell.gov.uk/info/200202/performance_and_spending/3233/government_procurement_cards,31-Oct-19,Total Housing Revenue Account,OFFICE DEPOT UK,Total Housing Revenue Account,123.46,Printing Stationery&Gen Office,1920Oct_PC00594
Sandwell Metropolitan Borough Council,http://www.sandwell.gov.uk/info/200202/performance_and_spending/3233/government_procurement_cards,31-Oct-19,Housing & Communities,OFFICE DEPOT UK,Neighbourhoods,22.35,Printing Stationery&Gen Office,1920Oct_PC00595
Sandwell Metropolitan Borough Council,http://www.sandwell.gov.uk/info/200202/performance_and_spending/3233/government_procurement_cards,31-Oct-19,Housing & Communities,ASDA SUPERSTORE,Neighbourhoods,36,Materials & Consumables,1920Oct_PC00596
Sandwell Metropolitan Borough Council,http://www.sandwell.gov.uk/info/200202/performance_and_spending/3233/government_procurement_cards,31-Oct-19,Childrens Services,Trainline,Childrens Services,23.95,Public Transport,1920Oct_PC00597
Sandwell Metropolitan Borough Council,http://www.sandwell.gov.uk/info/200202/performance_and_spending/3233/government_procurement_cards,31-Oct-19,Regeneration & Growth,Trainline.com,Regeneration And The Economy,26.15,Public Transport,1920Oct_PC00598
Sandwell Metropolitan Borough Council,http://www.sandwell.gov.uk/info/200202/performance_and_spending/3233/government_procurement_cards,31-Oct-19,Dead Capital 1,PAYPAL  EBAY S4U NORFO,Total Adult Social Care,119.7,Protective Clothing&Uniforms,1920Oct_PC00599
Sandwell Metropolitan Borough Council,http://www.sandwell.gov.uk/info/200202/performance_and_spending/3233/government_procurement_cards,31-Oct-19,Childrens Services,Trainline,Childrens Services,12.45,Public Transport,1920Oct_PC00600
Sandwell Metropolitan Borough Council,http://www.sandwell.gov.uk/info/200202/performance_and_spending/3233/government_procurement_cards,31-Oct-19,Total Housing Revenue Account,DOORFIT PRODUCTS,Total Housing Revenue Account,152.35,Materials & Consumables,1920Oct_PC00601
Sandwell Metropolitan Borough Council,http://www.sandwell.gov.uk/info/200202/performance_and_spending/3233/government_procurement_cards,31-Oct-19,Regeneration & Growth,ACT APS,Regeneration And The Economy,32,Ind. Emp Exp-Staff Dev&Training,1920Oct_PC00602
Sandwell Metropolitan Borough Council,http://www.sandwell.gov.uk/info/200202/performance_and_spending/3233/government_procurement_cards,01-Nov-19,Dead Capital 1,WWW.POSTOFFICESHOP.CO.,Total Adult Social Care,89.9,Printing Stationery&Gen Office,1920Oct_PC00603
Sandwell Metropolitan Borough Council,http://www.sandwell.gov.uk/info/200202/performance_and_spending/3233/government_procurement_cards,01-Nov-19,Regeneration & Growth,HOLIDAY INN KENSINGTON,Regeneration And The Economy,145.83,Conference Expenses,1920Oct_PC00604
Sandwell Metropolitan Borough Council,http://www.sandwell.gov.uk/info/200202/performance_and_spending/3233/government_procurement_cards,01-Nov-19,Childrens Services,WWW.INSTANTPRINT.C,Childrens Services,19.99,Equipment & Furniture,1920Oct_PC00605
Sandwell Metropolitan Borough Council,http://www.sandwell.gov.uk/info/200202/performance_and_spending/3233/government_procurement_cards,01-Nov-19,Leaving Care Team 4,SCREWFIX WEST BROMWICH,Leaving Care Team 4,39.97,Fixtures & Fittings,1920Oct_PC00606
Sandwell Metropolitan Borough Council,http://www.sandwell.gov.uk/info/200202/performance_and_spending/3233/government_procurement_cards,01-Nov-19,Adult Social Care Health and Wellbeing - Total,AMZNMKTPLACE AMAZON.CO,Public Health,37.07,Printing Stationery&Gen Office,1920Oct_PC00607
Sandwell Metropolitan Borough Council,http://www.sandwell.gov.uk/info/200202/performance_and_spending/3233/government_procurement_cards,01-Nov-19,Leaving Care Team 4,THE RANGE,Leaving Care Team 4,34.5,Equipment & Furniture,1920Oct_PC00608
Sandwell Metropolitan Borough Council,http://www.sandwell.gov.uk/info/200202/performance_and_spending/3233/government_procurement_cards,01-Nov-19,Leaving Care Team 4,THE RANGE,Leaving Care Team 4,134.9,Fixtures & Fittings,1920Oct_PC00609
Sandwell Metropolitan Borough Council,http://www.sandwell.gov.uk/info/200202/performance_and_spending/3233/government_procurement_cards,01-Nov-19,Leaving Care Team 4,THE RANGE,Leaving Care Team 4,234.81,Fixtures & Fittings,1920Oct_PC00610
Sandwell Metropolitan Borough Council,http://www.sandwell.gov.uk/info/200202/performance_and_spending/3233/government_procurement_cards,01-Nov-19,Childrens Services,VODAFONE LTD,Childrens Services,17.25,ICT,1920Oct_PC00611
Sandwell Metropolitan Borough Council,http://www.sandwell.gov.uk/info/200202/performance_and_spending/3233/government_procurement_cards,01-Nov-19,Housing & Communities,TESCO PAY AT PUMP 4260,Neighbourhoods,33.34,Fuel,1920Oct_PC00612
Sandwell Metropolitan Borough Council,http://www.sandwell.gov.uk/info/200202/performance_and_spending/3233/government_procurement_cards,01-Nov-19,Regeneration & Growth,WWW.DESIGNOFFICESUPPLI,Regeneration And The Economy,87.2,Equipment & Furniture,1920Oct_PC00613
Sandwell Metropolitan Borough Council,http://www.sandwell.gov.uk/info/200202/performance_and_spending/3233/government_procurement_cards,01-Nov-19,Regeneration & Growth,AMZNMKTPLACE AMAZON.CO,Regeneration And The Economy,49.57,ICT,1920Oct_PC00614
Sandwell Metropolitan Borough Council,http://www.sandwell.gov.uk/info/200202/performance_and_spending/3233/government_procurement_cards,01-Nov-19,Childrens Services,ASDA SUPERSTORE,Childrens Services,35.08,Materials & Consumables,1920Oct_PC00615
Sandwell Metropolitan Borough Council,http://www.sandwell.gov.uk/info/200202/performance_and_spending/3233/government_procurement_cards,01-Nov-19,Housing & Communities,PAYPAL  TOOLSTATION,Neighbourhoods,41.72,R& M - Building Maint&Imp.,1920Oct_PC00616
Sandwell Metropolitan Borough Council,http://www.sandwell.gov.uk/info/200202/performance_and_spending/3233/government_procurement_cards,01-Nov-19,Childrens Services,POUNDSTRETCHER 003,Childrens Services,27.18,Materials & Consumables,1920Oct_PC00617
Sandwell Metropolitan Borough Council,http://www.sandwell.gov.uk/info/200202/performance_and_spending/3233/government_procurement_cards,01-Nov-19,Dead Capital 1,AMZNMktplace,Total Adult Social Care,7.49,Materials & Consumables,1920Oct_PC00618
Sandwell Metropolitan Borough Council,http://www.sandwell.gov.uk/info/200202/performance_and_spending/3233/government_procurement_cards,01-Nov-19,Total Housing Revenue Account,TOOLSTATION LTD,Total Housing Revenue Account,31.93,Materials & Consumables,1920Oct_PC00619
Sandwell Metropolitan Borough Council,http://www.sandwell.gov.uk/info/200202/performance_and_spending/3233/government_procurement_cards,01-Nov-19,Housing & Communities,DOVER VANGUARD ROLLER,Neighbourhoods,64,Repairs & Maintenance,1920Oct_PC00620
Sandwell Metropolitan Borough Council,http://www.sandwell.gov.uk/info/200202/performance_and_spending/3233/government_procurement_cards,01-Nov-19,Childrens Services,AMZNMKTPLACE AMAZON.CO,Childrens Services,58.32,Equipment & Furniture,1920Oct_PC00621
Sandwell Metropolitan Borough Council,http://www.sandwell.gov.uk/info/200202/performance_and_spending/3233/government_procurement_cards,01-Nov-19,Childrens Services,AMZNMKTPLACE AMAZON.CO,Childrens Services,79.15,Equipment & Furniture,1920Oct_PC00622
Sandwell Metropolitan Borough Council,http://www.sandwell.gov.uk/info/200202/performance_and_spending/3233/government_procurement_cards,01-Nov-19,Housing & Communities,AMZNMktplace,Neighbourhoods,8.73,Printing Stationery&Gen Office,1920Oct_PC00623
Sandwell Metropolitan Borough Council,http://www.sandwell.gov.uk/info/200202/performance_and_spending/3233/government_procurement_cards,01-Nov-19,Childrens Services,GEN REGISTER OFFICE,Childrens Services,-7.5,Residential - OLA's,1920Oct_PC00624
Sandwell Metropolitan Borough Council,http://www.sandwell.gov.uk/info/200202/performance_and_spending/3233/government_procurement_cards,01-Nov-19,Total Housing Revenue Account,OFFICE DEPOT UK,Total Housing Revenue Account,-51,ICT,1920Oct_PC00625
Sandwell Metropolitan Borough Council,http://www.sandwell.gov.uk/info/200202/performance_and_spending/3233/government_procurement_cards,01-Nov-19,Childrens Services,ALDI 8 778,Childrens Services,5.25,Catering Provisions,1920Oct_PC00626
Sandwell Metropolitan Borough Council,http://www.sandwell.gov.uk/info/200202/performance_and_spending/3233/government_procurement_cards,01-Nov-19,Dead Capital 1,OFFICE DEPOT UK,Total Adult Social Care,4.58,Printing Stationery&Gen Office,1920Oct_PC00627
Sandwell Metropolitan Borough Council,http://www.sandwell.gov.uk/info/200202/performance_and_spending/3233/government_procurement_cards,01-Nov-19,Childrens Services,EDUCATION & TRAINI,Childrens Services,100,Ind. Emp Exp-Staff Dev&Training,1920Oct_PC00628
Sandwell Metropolitan Borough Council,http://www.sandwell.gov.uk/info/200202/performance_and_spending/3233/government_procurement_cards,01-Nov-19,Adult Social Care Health and Wellbeing - Total,OFFICE DEPOT UK,Public Health,64,Printing Stationery&Gen Office,1920Oct_PC00629
Sandwell Metropolitan Borough Council,http://www.sandwell.gov.uk/info/200202/performance_and_spending/3233/government_procurement_cards,01-Nov-19,Childrens Services,OFFICE DEPOT UK,Childrens Services,61.26,Printing Stationery&Gen Office,1920Oct_PC00630
Sandwell Metropolitan Borough Council,http://www.sandwell.gov.uk/info/200202/performance_and_spending/3233/government_procurement_cards,01-Nov-19,Housing & Communities,Virgin Trains,Neighbourhoods,197.1,Public Transport,1920Oct_PC00631
Sandwell Metropolitan Borough Council,http://www.sandwell.gov.uk/info/200202/performance_and_spending/3233/government_procurement_cards,01-Nov-19,Resources (Inc SIU),AMZNMKTPLACE AMAZON.CO,Assistant Chief Executive (Excl SIU),17.71,Printing Stationery&Gen Office,1920Oct_PC00632
Sandwell Metropolitan Borough Council,http://www.sandwell.gov.uk/info/200202/performance_and_spending/3233/government_procurement_cards,01-Nov-19,Childrens Services,Trainline,Childrens Services,98.5,Public Transport,1920Oct_PC00633
Sandwell Metropolitan Borough Council,http://www.sandwell.gov.uk/info/200202/performance_and_spending/3233/government_procurement_cards,01-Nov-19,Total Housing Revenue Account,Amazon Prime 6Y9HF8ZU5,Total Housing Revenue Account,7.99,Subscriptions,1920Oct_PC00634
Sandwell Metropolitan Borough Council,http://www.sandwell.gov.uk/info/200202/performance_and_spending/3233/government_procurement_cards,01-Nov-19,Resources (Inc SIU),AMZNMktplace,Assistant Chief Executive (Excl SIU),99.99,Printing Stationery&Gen Office,1920Oct_PC00635
Sandwell Metropolitan Borough Council,http://www.sandwell.gov.uk/info/200202/performance_and_spending/3233/government_procurement_cards,04-Nov-19,Housing & Communities,Amazon.co.uk 3D47P2FD5,Neighbourhoods,21.98,Materials & Consumables,1920Nov_PC00001
Sandwell Metropolitan Borough Council,http://www.sandwell.gov.uk/info/200202/performance_and_spending/3233/government_procurement_cards,04-Nov-19,Childrens Services,GEN REGISTER OFFICE,Childrens Services,76,Adoption-Gov't Dept's,1920Nov_PC00002
Sandwell Metropolitan Borough Council,http://www.sandwell.gov.uk/info/200202/performance_and_spending/3233/government_procurement_cards,04-Nov-19,Resources (Inc SIU),AMZNMktplace,Assistant Chief Executive (Excl SIU),8.73,Printing Stationery&Gen Office,1920Nov_PC00003
Sandwell Metropolitan Borough Council,http://www.sandwell.gov.uk/info/200202/performance_and_spending/3233/government_procurement_cards,04-Nov-19,Resources (Inc SIU),AMZNMktplace,Assistant Chief Executive (Excl SIU),43.43,Printing Stationery&Gen Office,1920Nov_PC00004
Sandwell Metropolitan Borough Council,http://www.sandwell.gov.uk/info/200202/performance_and_spending/3233/government_procurement_cards,04-Nov-19,Childrens Services,L - Gough Butchers,Childrens Services,126,Catering Provisions,1920Nov_PC00005
Sandwell Metropolitan Borough Council,http://www.sandwell.gov.uk/info/200202/performance_and_spending/3233/government_procurement_cards,04-Nov-19,Childrens Services,ASDA GROCERIES ONLINE,Childrens Services,-3.3,Catering Provisions,1920Nov_PC00006
Sandwell Metropolitan Borough Council,http://www.sandwell.gov.uk/info/200202/performance_and_spending/3233/government_procurement_cards,04-Nov-19,Childrens Services,ASDA GROCERIES ONLINE,Childrens Services,104.46,Catering Provisions,1920Nov_PC00007
Sandwell Metropolitan Borough Council,http://www.sandwell.gov.uk/info/200202/performance_and_spending/3233/government_procurement_cards,04-Nov-19,Childrens Services,WAYFAIR,Childrens Services,-298.6,Equipment & Furniture,1920Nov_PC00008
Sandwell Metropolitan Borough Council,http://www.sandwell.gov.uk/info/200202/performance_and_spending/3233/government_procurement_cards,04-Nov-19,Dead Capital 1,AMZNMktplace,Total Adult Social Care,45.23,Equipment & Furniture,1920Nov_PC00009
Sandwell Metropolitan Borough Council,http://www.sandwell.gov.uk/info/200202/performance_and_spending/3233/government_procurement_cards,04-Nov-19,Childrens Services,DECATHLON UK,Childrens Services,-66.5,Equipment & Furniture,1920Nov_PC00010
Sandwell Metropolitan Borough Council,http://www.sandwell.gov.uk/info/200202/performance_and_spending/3233/government_procurement_cards,04-Nov-19,Childrens Services,POUNDLAND LTD 1576,Childrens Services,32.58,Materials & Consumables,1920Nov_PC00011
Sandwell Metropolitan Borough Council,http://www.sandwell.gov.uk/info/200202/performance_and_spending/3233/government_procurement_cards,04-Nov-19,Childrens Services,SCREWFIX BANGOR GWYNED,Childrens Services,16.04,R& M - Building Maint&Imp.,1920Nov_PC00012
Sandwell Metropolitan Borough Council,http://www.sandwell.gov.uk/info/200202/performance_and_spending/3233/government_procurement_cards,04-Nov-19,Childrens Services,Trainline,Childrens Services,12.95,Public Transport,1920Nov_PC00013
Sandwell Metropolitan Borough Council,http://www.sandwell.gov.uk/info/200202/performance_and_spending/3233/government_procurement_cards,04-Nov-19,Childrens Services,Trainline,Childrens Services,97.15,Public Transport,1920Nov_PC00014
Sandwell Metropolitan Borough Council,http://www.sandwell.gov.uk/info/200202/performance_and_spending/3233/government_procurement_cards,04-Nov-19,Housing & Communities,THE TOOLS MARKET GREAT,Neighbourhoods,20.83,Equipment & Furniture,1920Nov_PC00015
Sandwell Metropolitan Borough Council,http://www.sandwell.gov.uk/info/200202/performance_and_spending/3233/government_procurement_cards,04-Nov-19,Housing & Communities,ALDI 42 772,Neighbourhoods,12.25,Materials & Consumables,1920Nov_PC00016
Sandwell Metropolitan Borough Council,http://www.sandwell.gov.uk/info/200202/performance_and_spending/3233/government_procurement_cards,04-Nov-19,Resources (Inc SIU),POST OFFICE COUNTER,Assistant Chief Executive (Excl SIU),62.9,"Postages, Carriage & Courier Services",1920Nov_PC00017
Sandwell Metropolitan Borough Council,http://www.sandwell.gov.uk/info/200202/performance_and_spending/3233/government_procurement_cards,04-Nov-19,Adult Social Care Health and Wellbeing - Total,WWW.PAPAJOHNS.CO.U,Public Health,68.92,Catering Provisions,1920Nov_PC00018
Sandwell Metropolitan Borough Council,http://www.sandwell.gov.uk/info/200202/performance_and_spending/3233/government_procurement_cards,04-Nov-19,Total Housing Revenue Account,TESCO STORES 2335,Total Housing Revenue Account,11.33,Catering Equipment,1920Nov_PC00019
Sandwell Metropolitan Borough Council,http://www.sandwell.gov.uk/info/200202/performance_and_spending/3233/government_procurement_cards,04-Nov-19,Dead Capital 1,OFFICE DEPOT UK,Total Adult Social Care,0.3,Printing Stationery&Gen Office,1920Nov_PC00020
Sandwell Metropolitan Borough Council,http://www.sandwell.gov.uk/info/200202/performance_and_spending/3233/government_procurement_cards,04-Nov-19,Dead Capital 1,ARGOS RETAIL GROUP,Total Adult Social Care,64.97,ICT,1920Nov_PC00021
Sandwell Metropolitan Borough Council,http://www.sandwell.gov.uk/info/200202/performance_and_spending/3233/government_procurement_cards,04-Nov-19,Total Housing Revenue Account,ECHOBARRIER,Total Housing Revenue Account,1890.87,Materials & Consumables,1920Nov_PC00022
Sandwell Metropolitan Borough Council,http://www.sandwell.gov.uk/info/200202/performance_and_spending/3233/government_procurement_cards,04-Nov-19,Total Housing Revenue Account,Trainline,Total Housing Revenue Account,-180.7,Public Transport,1920Nov_PC00023
Sandwell Metropolitan Borough Council,http://www.sandwell.gov.uk/info/200202/performance_and_spending/3233/government_procurement_cards,04-Nov-19,Total Housing Revenue Account,Trainline,Total Housing Revenue Account,-180.7,Public Transport,1920Nov_PC00024
Sandwell Metropolitan Borough Council,http://www.sandwell.gov.uk/info/200202/performance_and_spending/3233/government_procurement_cards,04-Nov-19,Childrens Services,ASDA STORES LTD 5865,Childrens Services,2.28,Materials & Consumables,1920Nov_PC00025
Sandwell Metropolitan Borough Council,http://www.sandwell.gov.uk/info/200202/performance_and_spending/3233/government_procurement_cards,04-Nov-19,Resources (Inc SIU),GOOGLE  CLOUD_01B69F-A,Assistant Chief Executive (Excl SIU),147.34,ICT,1920Nov_PC00026
Sandwell Metropolitan Borough Council,http://www.sandwell.gov.uk/info/200202/performance_and_spending/3233/government_procurement_cards,05-Nov-19,Childrens Services,GEN REGISTER OFFICE,Childrens Services,-35,Adoption-Gov't Dept's,1920Nov_PC00027
Sandwell Metropolitan Borough Council,http://www.sandwell.gov.uk/info/200202/performance_and_spending/3233/government_procurement_cards,05-Nov-19,Total Housing Revenue Account,THE CLEANING WAREHOUSE,Total Housing Revenue Account,165,Materials & Consumables,1920Nov_PC00028
Sandwell Metropolitan Borough Council,http://www.sandwell.gov.uk/info/200202/performance_and_spending/3233/government_procurement_cards,05-Nov-19,Housing & Communities,Amazon.co.uk Y86V68YL5,Neighbourhoods,18.74,Equipment & Furniture,1920Nov_PC00029
Sandwell Metropolitan Borough Council,http://www.sandwell.gov.uk/info/200202/performance_and_spending/3233/government_procurement_cards,05-Nov-19,Housing & Communities,HIGHFIELD HOUSE HO,Neighbourhoods,1255.83,Operational Services,1920Nov_PC00030
Sandwell Metropolitan Borough Council,http://www.sandwell.gov.uk/info/200202/performance_and_spending/3233/government_procurement_cards,05-Nov-19,Housing & Communities,HIGHFIELD HOUSE HO,Neighbourhoods,1256.67,Operational Services,1920Nov_PC00031
Sandwell Metropolitan Borough Council,http://www.sandwell.gov.uk/info/200202/performance_and_spending/3233/government_procurement_cards,05-Nov-19,Resources (Inc SIU),AMZNMktplace,Assistant Chief Executive (Excl SIU),177.1,Printing Stationery&Gen Office,1920Nov_PC00032
Sandwell Metropolitan Borough Council,http://www.sandwell.gov.uk/info/200202/performance_and_spending/3233/government_procurement_cards,05-Nov-19,Childrens Services,SAINSBURYS SACAT0558,Childrens Services,6.45,Catering Provisions,1920Nov_PC00033
Sandwell Metropolitan Borough Council,http://www.sandwell.gov.uk/info/200202/performance_and_spending/3233/government_procurement_cards,05-Nov-19,Childrens Services,AMZNMktplace,Childrens Services,66.66,Grounds Maint&Improvements,1920Nov_PC00034
Sandwell Metropolitan Borough Council,http://www.sandwell.gov.uk/info/200202/performance_and_spending/3233/government_procurement_cards,05-Nov-19,Childrens Services,HOMEBASE LTD 114,Childrens Services,55,R& M - Building Maint&Imp.,1920Nov_PC00035
Sandwell Metropolitan Borough Council,http://www.sandwell.gov.uk/info/200202/performance_and_spending/3233/government_procurement_cards,05-Nov-19,Childrens Services,ASDA,Childrens Services,35.94,Catering Provisions,1920Nov_PC00036
Sandwell Metropolitan Borough Council,http://www.sandwell.gov.uk/info/200202/performance_and_spending/3233/government_procurement_cards,05-Nov-19,Resources (Inc SIU),TESCO STORES 2335,Assistant Chief Executive (Excl SIU),1.5,Printing Stationery&Gen Office,1920Nov_PC00037
Sandwell Metropolitan Borough Council,http://www.sandwell.gov.uk/info/200202/performance_and_spending/3233/government_procurement_cards,05-Nov-19,Housing & Communities,B & M RETAIL,Neighbourhoods,9.95,Materials & Consumables,1920Nov_PC00038
Sandwell Metropolitan Borough Council,http://www.sandwell.gov.uk/info/200202/performance_and_spending/3233/government_procurement_cards,05-Nov-19,Total Housing Revenue Account,STAFFORDSHIRE BLDS SUP,Total Housing Revenue Account,112.49,Materials & Consumables,1920Nov_PC00039
Sandwell Metropolitan Borough Council,http://www.sandwell.gov.uk/info/200202/performance_and_spending/3233/government_procurement_cards,05-Nov-19,Childrens Services,WWW.ONLINELAPTOPBATTER,Childrens Services,193.45,Rent Allowances Local Scheme,1920Nov_PC00040
Sandwell Metropolitan Borough Council,http://www.sandwell.gov.uk/info/200202/performance_and_spending/3233/government_procurement_cards,05-Nov-19,Dead Capital 1,PAYPAL  EBAY VIBEONLIN,Total Adult Social Care,8.12,Printing Stationery&Gen Office,1920Nov_PC00041
Sandwell Metropolitan Borough Council,http://www.sandwell.gov.uk/info/200202/performance_and_spending/3233/government_procurement_cards,05-Nov-19,Housing & Communities,OFFICE DEPOT UK,Neighbourhoods,69.5,Materials & Consumables,1920Nov_PC00042
Sandwell Metropolitan Borough Council,http://www.sandwell.gov.uk/info/200202/performance_and_spending/3233/government_procurement_cards,05-Nov-19,Individual School Budgets With Inclusion,EB  DEVELOP NARRATIVE,Individual School Budgets With Inclusion,80,Ind. Emp Exp-Staff Dev&Training,1920Nov_PC00043
Sandwell Metropolitan Borough Council,http://www.sandwell.gov.uk/info/200202/performance_and_spending/3233/government_procurement_cards,05-Nov-19,Childrens Services,Trainline,Childrens Services,127.1,Public Transport,1920Nov_PC00044
Sandwell Metropolitan Borough Council,http://www.sandwell.gov.uk/info/200202/performance_and_spending/3233/government_procurement_cards,05-Nov-19,Housing & Communities,OFFICE DEPOT UK,Neighbourhoods,20.28,Printing Stationery&Gen Office,1920Nov_PC00045
Sandwell Metropolitan Borough Council,http://www.sandwell.gov.uk/info/200202/performance_and_spending/3233/government_procurement_cards,05-Nov-19,Leaving Care Team 4,HOME APPLIANCE,Leaving Care Team 4,366.67,Equipment & Furniture,1920Nov_PC00046
Sandwell Metropolitan Borough Council,http://www.sandwell.gov.uk/info/200202/performance_and_spending/3233/government_procurement_cards,05-Nov-19,Leaving Care Team 4,HOME APPLIANCE,Leaving Care Team 4,429.17,Equipment & Furniture,1920Nov_PC00047
Sandwell Metropolitan Borough Council,http://www.sandwell.gov.uk/info/200202/performance_and_spending/3233/government_procurement_cards,05-Nov-19,Leaving Care Team 4,HOME APPLIANCE,Leaving Care Team 4,429.17,Equipment & Furniture,1920Nov_PC00048
Sandwell Metropolitan Borough Council,http://www.sandwell.gov.uk/info/200202/performance_and_spending/3233/government_procurement_cards,05-Nov-19,Childrens Services,SANDWELL&WEST BIRMINGH,Childrens Services,10,Car Parking,1920Nov_PC00049
Sandwell Metropolitan Borough Council,http://www.sandwell.gov.uk/info/200202/performance_and_spending/3233/government_procurement_cards,06-Nov-19,Resources (Inc SIU),Flextronics,Assistant Chief Executive (Excl SIU),424.84,ICT,1920Nov_PC00050
Sandwell Metropolitan Borough Council,http://www.sandwell.gov.uk/info/200202/performance_and_spending/3233/government_procurement_cards,06-Nov-19,Childrens Services,WAYFAIR,Childrens Services,298.6,Equipment & Furniture,1920Nov_PC00051
Sandwell Metropolitan Borough Council,http://www.sandwell.gov.uk/info/200202/performance_and_spending/3233/government_procurement_cards,06-Nov-19,Dead Capital 1,OFFICE DEPOT UK,Total Adult Social Care,104.35,Printing Stationery&Gen Office,1920Nov_PC00052
Sandwell Metropolitan Borough Council,http://www.sandwell.gov.uk/info/200202/performance_and_spending/3233/government_procurement_cards,06-Nov-19,Dead Capital 1,AMZNMKTPLACE AMAZON.CO,Total Adult Social Care,12.49,Printing Stationery&Gen Office,1920Nov_PC00053
Sandwell Metropolitan Borough Council,http://www.sandwell.gov.uk/info/200202/performance_and_spending/3233/government_procurement_cards,06-Nov-19,Dead Capital 1,AMZNMktplace,Total Adult Social Care,29.05,Printing Stationery&Gen Office,1920Nov_PC00054
Sandwell Metropolitan Borough Council,http://www.sandwell.gov.uk/info/200202/performance_and_spending/3233/government_procurement_cards,06-Nov-19,Resources (Inc SIU),POUNDSTRETCHER 240,Assistant Chief Executive (Excl SIU),6.21,Printing Stationery&Gen Office,1920Nov_PC00055
Sandwell Metropolitan Borough Council,http://www.sandwell.gov.uk/info/200202/performance_and_spending/3233/government_procurement_cards,06-Nov-19,Housing & Communities,Virgin Trains,Neighbourhoods,5.3,Public Transport,1920Nov_PC00056
Sandwell Metropolitan Borough Council,http://www.sandwell.gov.uk/info/200202/performance_and_spending/3233/government_procurement_cards,06-Nov-19,Childrens Services,AMZNMktplace,Childrens Services,99.99,Equipment & Furniture,1920Nov_PC00057
Sandwell Metropolitan Borough Council,http://www.sandwell.gov.uk/info/200202/performance_and_spending/3233/government_procurement_cards,06-Nov-19,Housing & Communities,DARLASTON BUILDERS MER,Neighbourhoods,295.29,R& M - Building Maint&Imp.,1920Nov_PC00058
Sandwell Metropolitan Borough Council,http://www.sandwell.gov.uk/info/200202/performance_and_spending/3233/government_procurement_cards,06-Nov-19,Housing & Communities,PAYPAL  TOOLSTATION,Neighbourhoods,144.65,R& M - Building Maint&Imp.,1920Nov_PC00059
Sandwell Metropolitan Borough Council,http://www.sandwell.gov.uk/info/200202/performance_and_spending/3233/government_procurement_cards,06-Nov-19,Housing & Communities,KS WINES,Neighbourhoods,7.1,Printing Stationery&Gen Office,1920Nov_PC00060
Sandwell Metropolitan Borough Council,http://www.sandwell.gov.uk/info/200202/performance_and_spending/3233/government_procurement_cards,06-Nov-19,Dead Capital 1,AMZNMktplace,Total Adult Social Care,130.63,Printing Stationery&Gen Office,1920Nov_PC00061
Sandwell Metropolitan Borough Council,http://www.sandwell.gov.uk/info/200202/performance_and_spending/3233/government_procurement_cards,06-Nov-19,Adult Social Care Health and Wellbeing - Total,AMZNMktplace,Public Health,146.9,Printing Stationery&Gen Office,1920Nov_PC00062
Sandwell Metropolitan Borough Council,http://www.sandwell.gov.uk/info/200202/performance_and_spending/3233/government_procurement_cards,06-Nov-19,Resources (Inc SIU),SURE 24 LTD,Assistant Chief Executive (Excl SIU),299.5,Protective Clothing&Uniforms,1920Nov_PC00063
Sandwell Metropolitan Borough Council,http://www.sandwell.gov.uk/info/200202/performance_and_spending/3233/government_procurement_cards,06-Nov-19,Childrens Services,QUICKMANANDVAN.CO.UK,Childrens Services,247.46,Professional Services External,1920Nov_PC00064
Sandwell Metropolitan Borough Council,http://www.sandwell.gov.uk/info/200202/performance_and_spending/3233/government_procurement_cards,06-Nov-19,Childrens Services,Trainline,Childrens Services,20.75,Public Transport,1920Nov_PC00065
Sandwell Metropolitan Borough Council,http://www.sandwell.gov.uk/info/200202/performance_and_spending/3233/government_procurement_cards,06-Nov-19,Total Housing Revenue Account,SumUp   Mouse House Vi,Total Housing Revenue Account,135,Catering Provisions,1920Nov_PC00066
Sandwell Metropolitan Borough Council,http://www.sandwell.gov.uk/info/200202/performance_and_spending/3233/government_procurement_cards,06-Nov-19,Resources (Inc SIU),Virgin Trains,Assistant Chief Executive (Excl SIU),473.4,Public Transport,1920Nov_PC00067
Sandwell Metropolitan Borough Council,http://www.sandwell.gov.uk/info/200202/performance_and_spending/3233/government_procurement_cards,06-Nov-19,Total Housing Revenue Account,WWW.ALDERCROSS.COM,Total Housing Revenue Account,375,Conference Expenses,1920Nov_PC00068
Sandwell Metropolitan Borough Council,http://www.sandwell.gov.uk/info/200202/performance_and_spending/3233/government_procurement_cards,06-Nov-19,Dead Capital 1,AMZNMktplace,Total Adult Social Care,24.12,Printing Stationery&Gen Office,1920Nov_PC00069
Sandwell Metropolitan Borough Council,http://www.sandwell.gov.uk/info/200202/performance_and_spending/3233/government_procurement_cards,06-Nov-19,Dead Capital 1,AMZNMktplace,Total Adult Social Care,20.45,Printing Stationery&Gen Office,1920Nov_PC00070
Sandwell Metropolitan Borough Council,http://www.sandwell.gov.uk/info/200202/performance_and_spending/3233/government_procurement_cards,06-Nov-19,Dead Capital 1,AMZNMktplace,Total Adult Social Care,14.94,Printing Stationery&Gen Office,1920Nov_PC00071
Sandwell Metropolitan Borough Council,http://www.sandwell.gov.uk/info/200202/performance_and_spending/3233/government_procurement_cards,07-Nov-19,Housing & Communities,ASDA SUPERSTORE,Neighbourhoods,8.08,Catering Provisions,1920Nov_PC00072
Sandwell Metropolitan Borough Council,http://www.sandwell.gov.uk/info/200202/performance_and_spending/3233/government_procurement_cards,07-Nov-19,Housing & Communities,AMZNMktplace,Neighbourhoods,8.15,Materials & Consumables,1920Nov_PC00073
Sandwell Metropolitan Borough Council,http://www.sandwell.gov.uk/info/200202/performance_and_spending/3233/government_procurement_cards,07-Nov-19,Resources (Inc SIU),HMCOURTS-SERVICE.G,Assistant Chief Executive (Excl SIU),262.5,Council Tax,1920Nov_PC00074
Sandwell Metropolitan Borough Council,http://www.sandwell.gov.uk/info/200202/performance_and_spending/3233/government_procurement_cards,07-Nov-19,Childrens Services,CURRYS ONLINE,Childrens Services,228.33,Equipment & Furniture,1920Nov_PC00075
Sandwell Metropolitan Borough Council,http://www.sandwell.gov.uk/info/200202/performance_and_spending/3233/government_procurement_cards,07-Nov-19,Childrens Services,Trainline,Childrens Services,8.55,Public Transport,1920Nov_PC00076
Sandwell Metropolitan Borough Council,http://www.sandwell.gov.uk/info/200202/performance_and_spending/3233/government_procurement_cards,07-Nov-19,Childrens Services,Trainline,Childrens Services,29.75,Public Transport,1920Nov_PC00077
Sandwell Metropolitan Borough Council,http://www.sandwell.gov.uk/info/200202/performance_and_spending/3233/government_procurement_cards,07-Nov-19,Childrens Services,Trainline,Childrens Services,47.9,Public Transport,1920Nov_PC00078
Sandwell Metropolitan Borough Council,http://www.sandwell.gov.uk/info/200202/performance_and_spending/3233/government_procurement_cards,07-Nov-19,Childrens Services,SAINSBURYS SACAT0558,Childrens Services,19.85,Catering Provisions,1920Nov_PC00079
Sandwell Metropolitan Borough Council,http://www.sandwell.gov.uk/info/200202/performance_and_spending/3233/government_procurement_cards,07-Nov-19,Housing & Communities,TRAVELODGE,Neighbourhoods,258.27,Operational Services,1920Nov_PC00080
Sandwell Metropolitan Borough Council,http://www.sandwell.gov.uk/info/200202/performance_and_spending/3233/government_procurement_cards,07-Nov-19,Regeneration & Growth,WWW.CIOB.ORG.UK,Regeneration And The Economy,310,Ind. Emp Exp-Staff Dev&Training,1920Nov_PC00081
Sandwell Metropolitan Borough Council,http://www.sandwell.gov.uk/info/200202/performance_and_spending/3233/government_procurement_cards,07-Nov-19,Childrens Services,WM MORRISONS STORE,Childrens Services,4.4,Catering Provisions,1920Nov_PC00082
Sandwell Metropolitan Borough Council,http://www.sandwell.gov.uk/info/200202/performance_and_spending/3233/government_procurement_cards,07-Nov-19,Adult Social Care Health and Wellbeing - Total,SAINSBURYS 0558,Public Health,45.42,Catering Provisions,1920Nov_PC00083
Sandwell Metropolitan Borough Council,http://www.sandwell.gov.uk/info/200202/performance_and_spending/3233/government_procurement_cards,07-Nov-19,Adult Social Care Health and Wellbeing - Total,OFFICE DEPOT UK,Public Health,43.87,Printing Stationery&Gen Office,1920Nov_PC00084
Sandwell Metropolitan Borough Council,http://www.sandwell.gov.uk/info/200202/performance_and_spending/3233/government_procurement_cards,07-Nov-19,Dead Capital 1,OFFICE DEPOT UK,Total Adult Social Care,93.6,Printing Stationery&Gen Office,1920Nov_PC00085
Sandwell Metropolitan Borough Council,http://www.sandwell.gov.uk/info/200202/performance_and_spending/3233/government_procurement_cards,07-Nov-19,Adult Social Care Health and Wellbeing - Total,OFFICE DEPOT UK,Public Health,33.18,Catering Provisions,1920Nov_PC00086
Sandwell Metropolitan Borough Council,http://www.sandwell.gov.uk/info/200202/performance_and_spending/3233/government_procurement_cards,07-Nov-19,Dead Capital 1,AMZNMktplace,Total Adult Social Care,16.66,Printing Stationery&Gen Office,1920Nov_PC00087
Sandwell Metropolitan Borough Council,http://www.sandwell.gov.uk/info/200202/performance_and_spending/3233/government_procurement_cards,07-Nov-19,Resources (Inc SIU),B & M RETAIL,Assistant Chief Executive (Excl SIU),15.97,Printing Stationery&Gen Office,1920Nov_PC00088
Sandwell Metropolitan Borough Council,http://www.sandwell.gov.uk/info/200202/performance_and_spending/3233/government_procurement_cards,07-Nov-19,Housing & Communities,Amazon Prime XP9MK5KX5,Neighbourhoods,6.66,Rent Allowances Local Scheme,1920Nov_PC00089
Sandwell Metropolitan Borough Council,http://www.sandwell.gov.uk/info/200202/performance_and_spending/3233/government_procurement_cards,07-Nov-19,Childrens Services,TRAVELODGE,Childrens Services,122.49,Extra Care - Other establishments,1920Nov_PC00090
Sandwell Metropolitan Borough Council,http://www.sandwell.gov.uk/info/200202/performance_and_spending/3233/government_procurement_cards,07-Nov-19,Childrens Services,Trainline,Childrens Services,93.7,Public Transport,1920Nov_PC00091
Sandwell Metropolitan Borough Council,http://www.sandwell.gov.uk/info/200202/performance_and_spending/3233/government_procurement_cards,07-Nov-19,Dead Capital 1,OFFICE DEPOT UK,Total Adult Social Care,40.6,Printing Stationery&Gen Office,1920Nov_PC00092
Sandwell Metropolitan Borough Council,http://www.sandwell.gov.uk/info/200202/performance_and_spending/3233/government_procurement_cards,07-Nov-19,Dead Capital 1,OFFICE DEPOT UK,Total Adult Social Care,145.9,Materials & Consumables,1920Nov_PC00093
Sandwell Metropolitan Borough Council,http://www.sandwell.gov.uk/info/200202/performance_and_spending/3233/government_procurement_cards,07-Nov-19,Resources (Inc SIU),OFFICE DEPOT UK,Assistant Chief Executive (Excl SIU),7.36,Printing Stationery&Gen Office,1920Nov_PC00094
Sandwell Metropolitan Borough Council,http://www.sandwell.gov.uk/info/200202/performance_and_spending/3233/government_procurement_cards,07-Nov-19,Resources (Inc SIU),OFFICE DEPOT UK,Assistant Chief Executive (Excl SIU),173.73,Printing Stationery&Gen Office,1920Nov_PC00095
Sandwell Metropolitan Borough Council,http://www.sandwell.gov.uk/info/200202/performance_and_spending/3233/government_procurement_cards,07-Nov-19,Total Housing Revenue Account,ARCO LTD,Total Housing Revenue Account,231.73,Protective Clothing&Uniforms,1920Nov_PC00096
Sandwell Metropolitan Borough Council,http://www.sandwell.gov.uk/info/200202/performance_and_spending/3233/government_procurement_cards,07-Nov-19,Total Housing Revenue Account,Amazon.co.uk 0G1L19TD5,Total Housing Revenue Account,116.28,ICT,1920Nov_PC00097
Sandwell Metropolitan Borough Council,http://www.sandwell.gov.uk/info/200202/performance_and_spending/3233/government_procurement_cards,07-Nov-19,Childrens Services,ARGOS RETAIL GROUP,Childrens Services,83.32,Equipment & Furniture,1920Nov_PC00098
Sandwell Metropolitan Borough Council,http://www.sandwell.gov.uk/info/200202/performance_and_spending/3233/government_procurement_cards,07-Nov-19,Total Housing Revenue Account,WP-UNICORN TRAINING GR,Total Housing Revenue Account,50,Ind. Emp Exp-Staff Dev&Training,1920Nov_PC00099
Sandwell Metropolitan Borough Council,http://www.sandwell.gov.uk/info/200202/performance_and_spending/3233/government_procurement_cards,07-Nov-19,Total Housing Revenue Account,Transport for Wales,Total Housing Revenue Account,78,Public Transport,1920Nov_PC00100
Sandwell Metropolitan Borough Council,http://www.sandwell.gov.uk/info/200202/performance_and_spending/3233/government_procurement_cards,07-Nov-19,Total Housing Revenue Account,BT REPAYMENT WORKS,Total Housing Revenue Account,1422.73,Materials & Consumables,1920Nov_PC00101
Sandwell Metropolitan Borough Council,http://www.sandwell.gov.uk/info/200202/performance_and_spending/3233/government_procurement_cards,07-Nov-19,Total Housing Revenue Account,AMZNMKTPLACE AMAZON.CO,Total Housing Revenue Account,99.06,Materials & Consumables,1920Nov_PC00102
Sandwell Metropolitan Borough Council,http://www.sandwell.gov.uk/info/200202/performance_and_spending/3233/government_procurement_cards,07-Nov-19,Housing & Communities,OFFICE DEPOT UK,Neighbourhoods,40.56,ICT,1920Nov_PC00103
Sandwell Metropolitan Borough Council,http://www.sandwell.gov.uk/info/200202/performance_and_spending/3233/government_procurement_cards,08-Nov-19,Housing & Communities,AMZNMKTPLACE AMAZON.CO,Neighbourhoods,34.95,Materials & Consumables,1920Nov_PC00104
Sandwell Metropolitan Borough Council,http://www.sandwell.gov.uk/info/200202/performance_and_spending/3233/government_procurement_cards,08-Nov-19,Resources (Inc SIU),AMZNMktplace,Assistant Chief Executive (Excl SIU),25.98,Materials & Consumables,1920Nov_PC00105
Sandwell Metropolitan Borough Council,http://www.sandwell.gov.uk/info/200202/performance_and_spending/3233/government_procurement_cards,08-Nov-19,Housing & Communities,HIGHFIELD HOUSE HO,Neighbourhoods,37.5,Operational Services,1920Nov_PC00106
Sandwell Metropolitan Borough Council,http://www.sandwell.gov.uk/info/200202/performance_and_spending/3233/government_procurement_cards,08-Nov-19,Dead Capital 1,OFFICE DEPOT UK,Total Adult Social Care,5.26,Printing Stationery&Gen Office,1920Nov_PC00107
Sandwell Metropolitan Borough Council,http://www.sandwell.gov.uk/info/200202/performance_and_spending/3233/government_procurement_cards,08-Nov-19,Childrens Services,POUNDLAND LTD 1729,Childrens Services,5,Catering Provisions,1920Nov_PC00108
Sandwell Metropolitan Borough Council,http://www.sandwell.gov.uk/info/200202/performance_and_spending/3233/government_procurement_cards,08-Nov-19,Childrens Services,ALDI 62 772,Childrens Services,58.15,Catering Provisions,1920Nov_PC00109
Sandwell Metropolitan Borough Council,http://www.sandwell.gov.uk/info/200202/performance_and_spending/3233/government_procurement_cards,08-Nov-19,Housing & Communities,WWW.VICARAGELODGE.COM,Neighbourhoods,825,Operational Services,1920Nov_PC00110
Sandwell Metropolitan Borough Council,http://www.sandwell.gov.uk/info/200202/performance_and_spending/3233/government_procurement_cards,08-Nov-19,Childrens Services,AVH SUPPLIES,Childrens Services,1.83,R& M - Building Maint&Imp.,1920Nov_PC00111
Sandwell Metropolitan Borough Council,http://www.sandwell.gov.uk/info/200202/performance_and_spending/3233/government_procurement_cards,08-Nov-19,Childrens Services,WAYFAIR #2772257658,Childrens Services,139.16,Equipment & Furniture,1920Nov_PC00112
Sandwell Metropolitan Borough Council,http://www.sandwell.gov.uk/info/200202/performance_and_spending/3233/government_procurement_cards,08-Nov-19,Dead Capital 1,WHITE RIBBON UK,Total Adult Social Care,53.5,Advertising & Publicity,1920Nov_PC00113
Sandwell Metropolitan Borough Council,http://www.sandwell.gov.uk/info/200202/performance_and_spending/3233/government_procurement_cards,08-Nov-19,Adult Social Care Health and Wellbeing - Total,EB  THE GUARDIAN PUBLI,Public Health,125.16,Civic Events,1920Nov_PC00114
Sandwell Metropolitan Borough Council,http://www.sandwell.gov.uk/info/200202/performance_and_spending/3233/government_procurement_cards,08-Nov-19,Childrens Services,AMZNMktplace,Childrens Services,16.66,Equipment & Furniture,1920Nov_PC00115
Sandwell Metropolitan Borough Council,http://www.sandwell.gov.uk/info/200202/performance_and_spending/3233/government_procurement_cards,08-Nov-19,Childrens Services,OFFICE DEPOT UK,Childrens Services,56.63,Printing Stationery&Gen Office,1920Nov_PC00116
Sandwell Metropolitan Borough Council,http://www.sandwell.gov.uk/info/200202/performance_and_spending/3233/government_procurement_cards,08-Nov-19,Childrens Services,OFFICE DEPOT UK,Childrens Services,11.04,Printing Stationery&Gen Office,1920Nov_PC00117
Sandwell Metropolitan Borough Council,http://www.sandwell.gov.uk/info/200202/performance_and_spending/3233/government_procurement_cards,08-Nov-19,Childrens Services,OFFICE DEPOT UK,Childrens Services,178.77,Printing Stationery&Gen Office,1920Nov_PC00118
Sandwell Metropolitan Borough Council,http://www.sandwell.gov.uk/info/200202/performance_and_spending/3233/government_procurement_cards,08-Nov-19,Childrens Services,OFFICE DEPOT UK,Childrens Services,15.22,Printing Stationery&Gen Office,1920Nov_PC00119
Sandwell Metropolitan Borough Council,http://www.sandwell.gov.uk/info/200202/performance_and_spending/3233/government_procurement_cards,08-Nov-19,Childrens Services,ONLINECARPETS.COUK,Childrens Services,204,Rent Allowances Local Scheme,1920Nov_PC00120
Sandwell Metropolitan Borough Council,http://www.sandwell.gov.uk/info/200202/performance_and_spending/3233/government_procurement_cards,08-Nov-19,Childrens Services,Trainline,Childrens Services,6.95,Public Transport,1920Nov_PC00121
Sandwell Metropolitan Borough Council,http://www.sandwell.gov.uk/info/200202/performance_and_spending/3233/government_procurement_cards,08-Nov-19,Childrens Services,Trainline,Childrens Services,6.95,Public Transport,1920Nov_PC00122
Sandwell Metropolitan Borough Council,http://www.sandwell.gov.uk/info/200202/performance_and_spending/3233/government_procurement_cards,08-Nov-19,Dead Capital 1,AMZNMktplace,Total Adult Social Care,32.57,Printing Stationery&Gen Office,1920Nov_PC00123
Sandwell Metropolitan Borough Council,http://www.sandwell.gov.uk/info/200202/performance_and_spending/3233/government_procurement_cards,08-Nov-19,Resources (Inc SIU),Virgin Trains,Assistant Chief Executive (Excl SIU),-10.5,Public Transport,1920Nov_PC00124
Sandwell Metropolitan Borough Council,http://www.sandwell.gov.uk/info/200202/performance_and_spending/3233/government_procurement_cards,08-Nov-19,Resources (Inc SIU),WWW.HFLTD.COM,Assistant Chief Executive (Excl SIU),115.44,Materials & Consumables,1920Nov_PC00125
Sandwell Metropolitan Borough Council,http://www.sandwell.gov.uk/info/200202/performance_and_spending/3233/government_procurement_cards,08-Nov-19,Housing & Communities,ICELAND 1603,Neighbourhoods,3.49,Catering Provisions,1920Nov_PC00126
Sandwell Metropolitan Borough Council,http://www.sandwell.gov.uk/info/200202/performance_and_spending/3233/government_procurement_cards,08-Nov-19,Housing & Communities,POUNDLAND LTD 1729,Neighbourhoods,2,Catering Provisions,1920Nov_PC00127
Sandwell Metropolitan Borough Council,http://www.sandwell.gov.uk/info/200202/performance_and_spending/3233/government_procurement_cards,08-Nov-19,Housing & Communities,SAINSBURYS SACAT0558,Neighbourhoods,2.35,Catering Provisions,1920Nov_PC00128
Sandwell Metropolitan Borough Council,http://www.sandwell.gov.uk/info/200202/performance_and_spending/3233/government_procurement_cards,08-Nov-19,Adult Social Care Health and Wellbeing - Total,Amazon.co.uk,Public Health,-12.78,Catering Provisions,1920Nov_PC00129
Sandwell Metropolitan Borough Council,http://www.sandwell.gov.uk/info/200202/performance_and_spending/3233/government_procurement_cards,08-Nov-19,Adult Social Care Health and Wellbeing - Total,Amazon.co.uk XH2CH9C95,Public Health,12.78,Catering Provisions,1920Nov_PC00130
Sandwell Metropolitan Borough Council,http://www.sandwell.gov.uk/info/200202/performance_and_spending/3233/government_procurement_cards,08-Nov-19,Childrens Services,AMZNMKTPLACE AMAZON.CO,Childrens Services,58.1,Catering Provisions,1920Nov_PC00131
Sandwell Metropolitan Borough Council,http://www.sandwell.gov.uk/info/200202/performance_and_spending/3233/government_procurement_cards,08-Nov-19,Childrens Services,Trainline,Childrens Services,-10,Public Transport,1920Nov_PC00132
Sandwell Metropolitan Borough Council,http://www.sandwell.gov.uk/info/200202/performance_and_spending/3233/government_procurement_cards,08-Nov-19,Leaving Care Team 4,ABS CARPETS AND BE,Leaving Care Team 4,341.67,Fixtures & Fittings,1920Nov_PC00133
Sandwell Metropolitan Borough Council,http://www.sandwell.gov.uk/info/200202/performance_and_spending/3233/government_procurement_cards,08-Nov-19,Leaving Care Team 4,THE TOOLS MARKET GREAT,Leaving Care Team 4,7.5,Equipment & Furniture,1920Nov_PC00134
Sandwell Metropolitan Borough Council,http://www.sandwell.gov.uk/info/200202/performance_and_spending/3233/government_procurement_cards,08-Nov-19,Dead Capital 1,SAINSBURYS 0558,Total Adult Social Care,3,Cleaning,1920Nov_PC00135
Sandwell Metropolitan Borough Council,http://www.sandwell.gov.uk/info/200202/performance_and_spending/3233/government_procurement_cards,11-Nov-19,Housing & Communities,TOOLSTATION LTD,Neighbourhoods,171.35,Grounds Maint&Improvements,1920Nov_PC00136
Sandwell Metropolitan Borough Council,http://www.sandwell.gov.uk/info/200202/performance_and_spending/3233/government_procurement_cards,11-Nov-19,Housing & Communities,TESCO STORES 6197,Neighbourhoods,9.5,Catering Provisions,1920Nov_PC00137
Sandwell Metropolitan Borough Council,http://www.sandwell.gov.uk/info/200202/performance_and_spending/3233/government_procurement_cards,11-Nov-19,Childrens Services,Amazon.co.uk GP0DZ4U75,Childrens Services,11.03,Equipment & Furniture,1920Nov_PC00138
Sandwell Metropolitan Borough Council,http://www.sandwell.gov.uk/info/200202/performance_and_spending/3233/government_procurement_cards,11-Nov-19,Resources (Inc SIU),Amazon Prime EA9P28AU5,Assistant Chief Executive (Excl SIU),6.66,Subscriptions,1920Nov_PC00139
Sandwell Metropolitan Borough Council,http://www.sandwell.gov.uk/info/200202/performance_and_spending/3233/government_procurement_cards,11-Nov-19,Childrens Services,AMZNMktplace,Childrens Services,17.87,Printing Stationery&Gen Office,1920Nov_PC00140
Sandwell Metropolitan Borough Council,http://www.sandwell.gov.uk/info/200202/performance_and_spending/3233/government_procurement_cards,11-Nov-19,Housing & Communities,OFFICE DEPOT UK,Neighbourhoods,205.4,Printing Stationery&Gen Office,1920Nov_PC00141
Sandwell Metropolitan Borough Council,http://www.sandwell.gov.uk/info/200202/performance_and_spending/3233/government_procurement_cards,11-Nov-19,Total Housing Revenue Account,AMZNMktplace,Total Housing Revenue Account,42.9,Materials & Consumables,1920Nov_PC00142
Sandwell Metropolitan Borough Council,http://www.sandwell.gov.uk/info/200202/performance_and_spending/3233/government_procurement_cards,11-Nov-19,Resources (Inc SIU),AMZNMktplace,Assistant Chief Executive (Excl SIU),14.48,ICT,1920Nov_PC00143
Sandwell Metropolitan Borough Council,http://www.sandwell.gov.uk/info/200202/performance_and_spending/3233/government_procurement_cards,11-Nov-19,Childrens Services,THE RANGE,Childrens Services,4.13,Equipment & Furniture,1920Nov_PC00144
Sandwell Metropolitan Borough Council,http://www.sandwell.gov.uk/info/200202/performance_and_spending/3233/government_procurement_cards,11-Nov-19,Childrens Services,THE RANGE,Childrens Services,13.3,Equipment & Furniture,1920Nov_PC00145
Sandwell Metropolitan Borough Council,http://www.sandwell.gov.uk/info/200202/performance_and_spending/3233/government_procurement_cards,11-Nov-19,Childrens Services,Amazon.co.uk 8C5GL22B5,Childrens Services,290.83,Equipment & Furniture,1920Nov_PC00146
Sandwell Metropolitan Borough Council,http://www.sandwell.gov.uk/info/200202/performance_and_spending/3233/government_procurement_cards,11-Nov-19,Childrens Services,AMZNMktplace,Childrens Services,71.21,Equipment & Furniture,1920Nov_PC00147
Sandwell Metropolitan Borough Council,http://www.sandwell.gov.uk/info/200202/performance_and_spending/3233/government_procurement_cards,11-Nov-19,Childrens Services,Amazon.co.uk M93818HI5,Childrens Services,32.96,Equipment & Furniture,1920Nov_PC00148
Sandwell Metropolitan Borough Council,http://www.sandwell.gov.uk/info/200202/performance_and_spending/3233/government_procurement_cards,11-Nov-19,Childrens Services,DVLA DRIVER ONLINE,Childrens Services,34,Licences,1920Nov_PC00149
Sandwell Metropolitan Borough Council,http://www.sandwell.gov.uk/info/200202/performance_and_spending/3233/government_procurement_cards,11-Nov-19,Regeneration & Growth,Trainline,Regeneration And The Economy,314.36,Public Transport,1920Nov_PC00150
Sandwell Metropolitan Borough Council,http://www.sandwell.gov.uk/info/200202/performance_and_spending/3233/government_procurement_cards,11-Nov-19,Regeneration & Growth,Trainline,Regeneration And The Economy,152.32,Public Transport,1920Nov_PC00151
